{"text_format":"1","workbook":"xlsx","n_sheets":1,"sheets":["Tabelle1"],"not_rendered":{"charts":0,"images":0,"macros":1,"external_links":0,"defined_names":0,"comments":0,"pivot_tables":0},"unopened":[],"bounds":{"document_bytes":16777216,"sheet_cells":100000,"rows_first":2000,"rows_last":500,"rows_between":2000,"halvings":0,"cell_chars":16384,"cell_head_chars":4096},"cells_cut":0,"cells_raw":0,"read":"whole","date_system":"1900"}

{"sheet":"Tabelle1","index":0,"n_rows":4999,"n_cols":15,"rows_kept":4999,"cut":false,"hidden":false,"merged":[[0,0,1,10]]}
["Autogrammliste"]
[]
["Name","Geboren am","Alter","gestorben","Artist","geschrieben / getroffen","angegekommen / getroffen","RTS","Tage","Bilder mitgeschickt","Land ","Adresse","Rolle","Serie / Film / Musik Gruppe","Info"]
["Jacqueline White","1922-11-23",{"$f":"IF(B4=\"\",\"\",IF(D4<>\"\",DATEDIF(B4,D4,\"Y\"),DATEDIF(B4,TODAY(),\"Y\")))","v":102},null,"Schauspielerin","2024-11-19","2024-12-04",null,{"$f":"IF(F4=\"\",\"\",IF(H4<>\"\",H4-F4,IF(G4<>\"\",G4-F4,\"\")))","v":15},4,"Schweiz","Liselotte Schmid-Pulver - c/o Burgerspittel Bern - Viererfeldweg 7 - 3012 Bern - Switzerland"]
["Liselotte Pulver","1929-10-11",{"$f":"IF(B5=\"\",\"\",IF(D5<>\"\",DATEDIF(B5,D5,\"Y\"),DATEDIF(B5,TODAY(),\"Y\")))","v":96},null,"Schauspielerin","2024-11-19","2024-12-04",null,{"$f":"IF(F5=\"\",\"\",IF(H5<>\"\",H5-F5,IF(G5<>\"\",G5-F5,\"\")))","v":15},4,"Schweiz","Liselotte Schmid-Pulver - c/o Burgerspittel Bern - Viererfeldweg 7 - 3012 Bern - Switzerland"]
["Ernest Borgnine","1917-01-24",{"$f":"IF(B6=\"\",\"\",IF(D6<>\"\",DATEDIF(B6,D6,\"Y\"),DATEDIF(B6,TODAY(),\"Y\")))","v":95},"2012-07-28","Schauspieler","2024-11-07",null,null,{"$f":"IF(F6=\"\",\"\",IF(H6<>\"\",H6-F6,IF(G6<>\"\",G6-F6,\"\")))","v":""},2,"USA","Clint Eastwood - Malpaso Productions - 10100 Santa Monica Blvd. - Suite 650 - Los Angeles - CA 90067-4102 - USA"]
["Clint Eastwood","1930-05-31",{"$f":"IF(B7=\"\",\"\",IF(D7<>\"\",DATEDIF(B7,D7,\"Y\"),DATEDIF(B7,TODAY(),\"Y\")))","v":95},null,"Schauspielerin","2025-05-19","2025-06-17",null,{"$f":"IF(F7=\"\",\"\",IF(H7<>\"\",H7-F7,IF(G7<>\"\",G7-F7,\"\")))","v":29},7,"USA","Jacqueline White Anderson - 11115 S. Country Squire Street - Houston - TX 77024-7406 - U.S.A"]
["Armin Mueller-Stahl","1930-12-17",{"$f":"IF(B8=\"\",\"\",IF(D8<>\"\",DATEDIF(B8,D8,\"Y\"),DATEDIF(B8,TODAY(),\"Y\")))","v":94},null,"Schauspieler","1993-11-28","1994-01-15",null,{"$f":"IF(F8=\"\",\"\",IF(H8<>\"\",H8-F8,IF(G8<>\"\",G8-F8,\"\")))","v":48},3,"USA","Ernest Borgnine - 11100 Hortense Avenue - Nort Hollywood - CA 91602 - USA",null,null,"Original auf mitgeschickten TV Spielfilm Sammelkarte, mW \"Best Wishes\" (doppelt geschrieben weil erste Unterschrift zu schlecht )"]
["David Harewood","1965-12-08",{"$f":"IF(B9=\"\",\"\",IF(D9<>\"\",DATEDIF(B9,D9,\"Y\"),DATEDIF(B9,TODAY(),\"Y\")))","v":59},null,"Schauspieler","2025-07-21",null,"2025-09-12",{"$f":"IF(F9=\"\",\"\",IF(H9<>\"\",H9-F9,IF(G9<>\"\",G9-F9,\"\")))","v":53},5,"England","David Harewood - c/o Conway Van Gelder Grant Ltd. - 3rd Floor - 8-12 Broadwick Street - London W1F 8HW - England"]
["Jack Black","1969-08-28",{"$f":"IF(B10=\"\",\"\",IF(D10<>\"\",DATEDIF(B10,D10,\"Y\"),DATEDIF(B10,TODAY(),\"Y\")))","v":56},null,"Schauspieler, Musiker","2025-07-21",null,null,{"$f":"IF(F10=\"\",\"\",IF(H10<>\"\",H10-F10,IF(G10<>\"\",G10-F10,\"\")))","v":""},6,"USA","Jack Black - Electric Dynamite Produktions -  Grant Tani Barash & Altman, LLC - 9100 Wilshire Blvd. - Suite 1000 W - Beverly Hills - CA 90212 - U.S.A"]
["Timothy Boldt","1990-12-10",{"$f":"IF(B11=\"\",\"\",IF(D11<>\"\",DATEDIF(B11,D11,\"Y\"),DATEDIF(B11,TODAY(),\"Y\")))","v":34},null,"Schauspieler","2025-10-18","2025-11-12",null,{"$f":"IF(F11=\"\",\"\",IF(H11<>\"\",H11-F11,IF(G11<>\"\",G11-F11,\"\")))","v":25},null,"Deutschland","Unter Uns - c/o Ufa Serial Drama - Gebäude Süd - Studio 39+40 - Butzweilerstr. 255 - 50829 Köln"]
["Nick Jonas","1992-09-16",{"$f":"IF(B12=\"\",\"\",IF(D12<>\"\",DATEDIF(B12,D12,\"Y\"),DATEDIF(B12,TODAY(),\"Y\")))","v":33},null,"Schauspieler","2025-05-16",null,null,{"$f":"IF(F12=\"\",\"\",IF(H12<>\"\",H12-F12,IF(G12<>\"\",G12-F12,\"\")))","v":""},5,"USA","via Venue: Hudson Theatre - c/o personal \"Nick Jonas\" - Musical \"The Last Five Years\" - 141 West 44th Street - New York - NY 10036 - U.S.A"]
["Ryan McCartan","1993-06-14",{"$f":"IF(B13=\"\",\"\",IF(D13<>\"\",DATEDIF(B13,D13,\"Y\"),DATEDIF(B13,TODAY(),\"Y\")))","v":32},null,"Schauspieler","2025-01-13","2025-02-03",null,{"$f":"IF(F13=\"\",\"\",IF(H13<>\"\",H13-F13,IF(G13<>\"\",G13-F13,\"\")))","v":21},4,"USA","Broadway Theatre - c/o personal \"Ryan McCartan\" - The Great Gatsby - 1681 Broadway - New York - NY10019 - USA"]
["Marcel Sabitzer","1994-03-17",{"$f":"IF(B14=\"\",\"\",IF(D14<>\"\",DATEDIF(B14,D14,\"Y\"),DATEDIF(B14,TODAY(),\"Y\")))","v":31},null,"Fußballspieler","2024-12-31","2025-01-15",null,{"$f":"IF(F14=\"\",\"\",IF(H14<>\"\",H14-F14,IF(G14<>\"\",G14-F14,\"\")))","v":15},0,"Deutschland","Borussia Dortmund GmbH & Co. - KGaA - Traditionsmannschaft - Reinlanddamm 207-209 - 44137 Dortmund","Mittelfeld","BVB"]
["Nico Schlotterbeck","1999-12-01",{"$f":"IF(B15=\"\",\"\",IF(D15<>\"\",DATEDIF(B15,D15,\"Y\"),DATEDIF(B15,TODAY(),\"Y\")))","v":25},null,"Fußballspieler","2024-12-09","2024-12-14",null,{"$f":"IF(F15=\"\",\"\",IF(H15<>\"\",H15-F15,IF(G15<>\"\",G15-F15,\"\")))","v":5},0,"Deutschland","Borussia Dortmund GmbH & Co. - KGaA - Traditionsmannschaft - Reinlanddamm 207-209 - 44137 Dortmund","Abwehr","BVB"]
[null,null,{"$f":"IF(B16=\"\",\"\",IF(D16<>\"\",DATEDIF(B16,D16,\"Y\"),DATEDIF(B16,TODAY(),\"Y\")))","v":""},null,null,null,null,null,{"$f":"IF(F16=\"\",\"\",IF(H16<>\"\",H16-F16,IF(G16<>\"\",G16-F16,\"\")))","v":""}]
[null,null,"",null,null,null,null,null,""]
[null,null,"",null,null,null,null,null,""]
[null,null,"",null,null,null,null,null,""]
[null,null,"",null,null,null,null,null,""]
[null,null,"",null,null,null,null,null,""]
[null,null,"",null,null,null,null,null,""]
[null,null,"",null,null,null,null,null,""]
[null,null,"",null,null,null,null,null,""]
[null,null,"",null,null,null,null,null,""]
[null,null,"",null,null,null,null,null,""]
[null,null,"",null,null,null,null,null,""]
[null,null,"",null,null,null,null,null,""]
[null,null,"",null,null,null,null,null,""]
[null,null,"",null,null,null,null,null,""]
[null,null,"",null,null,null,null,null,""]
[null,null,"",null,null,null,null,null,""]
[null,null,"",null,null,null,null,null,""]
[null,null,"",null,null,null,null,null,""]
[null,null,"",null,null,null,null,null,""]
[null,null,"",null,null,null,null,null,""]
[null,null,"",null,null,null,null,null,""]
[null,null,"",null,null,null,null,null,""]
[null,null,"",null,null,null,null,null,""]
[null,null,"",null,null,null,null,null,""]
[null,null,"",null,null,null,null,null,""]
[null,null,"",null,null,null,null,null,""]
[null,null,"",null,null,null,null,null,""]
[null,null,"",null,null,null,null,null,""]
[null,null,"",null,null,null,null,null,""]
[null,null,"",null,null,null,null,null,""]
[null,null,"",null,null,null,null,null,""]
[null,null,"",null,null,null,null,null,""]
[null,null,"",null,null,null,null,null,""]
[null,null,"",null,null,null,null,null,""]
[null,null,"",null,null,null,null,null,""]
[null,null,"",null,null,null,null,null,""]
[null,null,"",null,null,null,null,null,""]
[null,null,"",null,null,null,null,null,""]
[null,null,"",null,null,null,null,null,""]
[null,null,"",null,null,null,null,null,""]
[null,null,"",null,null,null,null,null,""]
[null,null,"",null,null,null,null,null,""]
[null,null,"",null,null,null,null,null,""]
[null,null,"",null,null,null,null,null,""]
[null,null,"",null,null,null,null,null,""]
[null,null,"",null,null,null,null,null,""]
[null,null,"",null,null,null,null,null,""]
[null,null,"",null,null,null,null,null,""]
[null,null,"",null,null,null,null,null,""]
[null,null,"",null,null,null,null,null,""]
[null,null,{"$f":"IF(B67=\"\",\"\",IF(D67<>\"\",DATEDIF(B67,D67,\"Y\"),DATEDIF(B67,TODAY(),\"Y\")))","v":""},null,null,null,null,null,""]
[null,null,"",null,null,null,null,null,""]
[null,null,"",null,null,null,null,null,""]
[null,null,"",null,null,null,null,null,""]
[null,null,"",null,null,null,null,null,""]
[null,null,"",null,null,null,null,null,""]
[null,null,"",null,null,null,null,null,""]
[null,null,"",null,null,null,null,null,""]
[null,null,"",null,null,null,null,null,""]
[null,null,"",null,null,null,null,null,""]
[null,null,"",null,null,null,null,null,""]
[null,null,"",null,null,null,null,null,""]
[null,null,"",null,null,null,null,null,""]
[null,null,"",null,null,null,null,null,{"$f":"IF(F80=\"\",\"\",IF(H80<>\"\",H80-F80,IF(G80<>\"\",G80-F80,\"\")))","v":""}]
[null,null,"",null,null,null,null,null,""]
[null,null,"",null,null,null,null,null,""]
[null,null,"",null,null,null,null,null,""]
[null,null,"",null,null,null,null,null,""]
[null,null,"",null,null,null,null,null,""]
[null,null,"",null,null,null,null,null,""]
[null,null,"",null,null,null,null,null,""]
[null,null,"",null,null,null,null,null,""]
[null,null,"",null,null,null,null,null,""]
[null,null,"",null,null,null,null,null,""]
[null,null,"",null,null,null,null,null,""]
[null,null,"",null,null,null,null,null,""]
[null,null,"",null,null,null,null,null,""]
[null,null,"",null,null,null,null,null,""]
[null,null,"",null,null,null,null,null,""]
[null,null,"",null,null,null,null,null,""]
[null,null,"",null,null,null,null,null,""]
[null,null,"",null,null,null,null,null,""]
[null,null,"",null,null,null,null,null,""]
[null,null,"",null,null,null,null,null,""]
[null,null,"",null,null,null,null,null,""]
[null,null,"",null,null,null,null,null,""]
[null,null,"",null,null,null,null,null,""]
[null,null,"",null,null,null,null,null,""]
[null,null,"",null,null,null,null,null,""]
[null,null,"",null,null,null,null,null,""]
[null,null,"",null,null,null,null,null,""]
[null,null,"",null,null,null,null,null,""]
[null,null,"",null,null,null,null,null,""]
[null,null,"",null,null,null,null,null,""]
[null,null,"",null,null,null,null,null,""]
[null,null,"",null,null,null,null,null,""]
[null,null,"",null,null,null,null,null,""]
[null,null,"",null,null,null,null,null,""]
[null,null,"",null,null,null,null,null,""]
[null,null,"",null,null,null,null,null,""]
[null,null,"",null,null,null,null,null,""]
[null,null,"",null,null,null,null,null,""]
[null,null,"",null,null,null,null,null,""]
[null,null,"",null,null,null,null,null,""]
[null,null,"",null,null,null,null,null,""]
[null,null,"",null,null,null,null,null,""]
[null,null,"",null,null,null,null,null,""]
[null,null,"",null,null,null,null,null,""]
[null,null,"",null,null,null,null,null,""]
[null,null,"",null,null,null,null,null,""]
[null,null,"",null,null,null,null,null,""]
[null,null,"",null,null,null,null,null,""]
[null,null,"",null,null,null,null,null,""]
[null,null,"",null,null,null,null,null,""]
[null,null,{"$f":"IF(B131=\"\",\"\",IF(D131<>\"\",DATEDIF(B131,D131,\"Y\"),DATEDIF(B131,TODAY(),\"Y\")))","v":""},null,null,null,null,null,""]
[null,null,"",null,null,null,null,null,""]
[null,null,"",null,null,null,null,null,""]
[null,null,"",null,null,null,null,null,""]
[null,null,"",null,null,null,null,null,""]
[null,null,"",null,null,null,null,null,""]
[null,null,"",null,null,null,null,null,""]
[null,null,"",null,null,null,null,null,""]
[null,null,"",null,null,null,null,null,""]
[null,null,"",null,null,null,null,null,""]
[null,null,"",null,null,null,null,null,""]
[null,null,"",null,null,null,null,null,""]
[null,null,"",null,null,null,null,null,""]
[null,null,"",null,null,null,null,null,{"$f":"IF(F144=\"\",\"\",IF(H144<>\"\",H144-F144,IF(G144<>\"\",G144-F144,\"\")))","v":""}]
[null,null,"",null,null,null,null,null,""]
[null,null,"",null,null,null,null,null,""]
[null,null,"",null,null,null,null,null,""]
[null,null,"",null,null,null,null,null,""]
[null,null,"",null,null,null,null,null,""]
[null,null,"",null,null,null,null,null,""]
[null,null,"",null,null,null,null,null,""]
[null,null,"",null,null,null,null,null,""]
[null,null,"",null,null,null,null,null,""]
[null,null,"",null,null,null,null,null,""]
[null,null,"",null,null,null,null,null,""]
[null,null,"",null,null,null,null,null,""]
[null,null,"",null,null,null,null,null,""]
[null,null,"",null,null,null,null,null,""]
[null,null,"",null,null,null,null,null,""]
[null,null,"",null,null,null,null,null,""]
[null,null,"",null,null,null,null,null,""]
[null,null,"",null,null,null,null,null,""]
[null,null,"",null,null,null,null,null,""]
[null,null,"",null,null,null,null,null,""]
[null,null,"",null,null,null,null,null,""]
[null,null,"",null,null,null,null,null,""]
[null,null,"",null,null,null,null,null,""]
[null,null,"",null,null,null,null,null,""]
[null,null,"",null,null,null,null,null,""]
[null,null,"",null,null,null,null,null,""]
[null,null,"",null,null,null,null,null,""]
[null,null,"",null,null,null,null,null,""]
[null,null,"",null,null,null,null,null,""]
[null,null,"",null,null,null,null,null,""]
[null,null,"",null,null,null,null,null,""]
[null,null,"",null,null,null,null,null,""]
[null,null,"",null,null,null,null,null,""]
[null,null,"",null,null,null,null,null,""]
[null,null,"",null,null,null,null,null,""]
[null,null,"",null,null,null,null,null,""]
[null,null,"",null,null,null,null,null,""]
[null,null,"",null,null,null,null,null,""]
[null,null,"",null,null,null,null,null,""]
[null,null,"",null,null,null,null,null,""]
[null,null,"",null,null,null,null,null,""]
[null,null,"",null,null,null,null,null,""]
[null,null,"",null,null,null,null,null,""]
[null,null,"",null,null,null,null,null,""]
[null,null,"",null,null,null,null,null,""]
[null,null,"",null,null,null,null,null,""]
[null,null,"",null,null,null,null,null,""]
[null,null,"",null,null,null,null,null,""]
[null,null,"",null,null,null,null,null,""]
[null,null,"",null,null,null,null,null,""]
[null,null,{"$f":"IF(B195=\"\",\"\",IF(D195<>\"\",DATEDIF(B195,D195,\"Y\"),DATEDIF(B195,TODAY(),\"Y\")))","v":""},null,null,null,null,null,""]
[null,null,"",null,null,null,null,null,""]
[null,null,"",null,null,null,null,null,""]
[null,null,"",null,null,null,null,null,""]
[null,null,"",null,null,null,null,null,""]
[null,null,"",null,null,null,null,null,""]
[null,null,"",null,null,null,null,null,""]
[null,null,"",null,null,null,null,null,""]
[null,null,"",null,null,null,null,null,""]
[null,null,"",null,null,null,null,null,""]
[null,null,"",null,null,null,null,null,""]
[null,null,"",null,null,null,null,null,""]
[null,null,"",null,null,null,null,null,""]
[null,null,"",null,null,null,null,null,{"$f":"IF(F208=\"\",\"\",IF(H208<>\"\",H208-F208,IF(G208<>\"\",G208-F208,\"\")))","v":""}]
[null,null,"",null,null,null,null,null,""]
[null,null,"",null,null,null,null,null,""]
[null,null,"",null,null,null,null,null,""]
[null,null,"",null,null,null,null,null,""]
[null,null,"",null,null,null,null,null,""]
[null,null,"",null,null,null,null,null,""]
[null,null,"",null,null,null,null,null,""]
[null,null,"",null,null,null,null,null,""]
[null,null,"",null,null,null,null,null,""]
[null,null,"",null,null,null,null,null,""]
[null,null,"",null,null,null,null,null,""]
[null,null,"",null,null,null,null,null,""]
[null,null,"",null,null,null,null,null,""]
[null,null,"",null,null,null,null,null,""]
[null,null,"",null,null,null,null,null,""]
[null,null,"",null,null,null,null,null,""]
[null,null,"",null,null,null,null,null,""]
[null,null,"",null,null,null,null,null,""]
[null,null,"",null,null,null,null,null,""]
[null,null,"",null,null,null,null,null,""]
[null,null,"",null,null,null,null,null,""]
[null,null,"",null,null,null,null,null,""]
[null,null,"",null,null,null,null,null,""]
[null,null,"",null,null,null,null,null,""]
[null,null,"",null,null,null,null,null,""]
[null,null,"",null,null,null,null,null,""]
[null,null,"",null,null,null,null,null,""]
[null,null,"",null,null,null,null,null,""]
[null,null,"",null,null,null,null,null,""]
[null,null,"",null,null,null,null,null,""]
[null,null,"",null,null,null,null,null,""]
[null,null,"",null,null,null,null,null,""]
[null,null,"",null,null,null,null,null,""]
[null,null,"",null,null,null,null,null,""]
[null,null,"",null,null,null,null,null,""]
[null,null,"",null,null,null,null,null,""]
[null,null,"",null,null,null,null,null,""]
[null,null,"",null,null,null,null,null,""]
[null,null,"",null,null,null,null,null,""]
[null,null,"",null,null,null,null,null,""]
[null,null,"",null,null,null,null,null,""]
[null,null,"",null,null,null,null,null,""]
[null,null,"",null,null,null,null,null,""]
[null,null,"",null,null,null,null,null,""]
[null,null,"",null,null,null,null,null,""]
[null,null,"",null,null,null,null,null,""]
[null,null,"",null,null,null,null,null,""]
[null,null,"",null,null,null,null,null,""]
[null,null,"",null,null,null,null,null,""]
[null,null,"",null,null,null,null,null,""]
[null,null,{"$f":"IF(B259=\"\",\"\",IF(D259<>\"\",DATEDIF(B259,D259,\"Y\"),DATEDIF(B259,TODAY(),\"Y\")))","v":""},null,null,null,null,null,""]
[null,null,"",null,null,null,null,null,""]
[null,null,"",null,null,null,null,null,""]
[null,null,"",null,null,null,null,null,""]
[null,null,"",null,null,null,null,null,""]
[null,null,"",null,null,null,null,null,""]
[null,null,"",null,null,null,null,null,""]
[null,null,"",null,null,null,null,null,""]
[null,null,"",null,null,null,null,null,""]
[null,null,"",null,null,null,null,null,""]
[null,null,"",null,null,null,null,null,""]
[null,null,"",null,null,null,null,null,""]
[null,null,"",null,null,null,null,null,""]
[null,null,"",null,null,null,null,null,{"$f":"IF(F272=\"\",\"\",IF(H272<>\"\",H272-F272,IF(G272<>\"\",G272-F272,\"\")))","v":""}]
[null,null,"",null,null,null,null,null,""]
[null,null,"",null,null,null,null,null,""]
[null,null,"",null,null,null,null,null,""]
[null,null,"",null,null,null,null,null,""]
[null,null,"",null,null,null,null,null,""]
[null,null,"",null,null,null,null,null,""]
[null,null,"",null,null,null,null,null,""]
[null,null,"",null,null,null,null,null,""]
[null,null,"",null,null,null,null,null,""]
[null,null,"",null,null,null,null,null,""]
[null,null,"",null,null,null,null,null,""]
[null,null,"",null,null,null,null,null,""]
[null,null,"",null,null,null,null,null,""]
[null,null,"",null,null,null,null,null,""]
[null,null,"",null,null,null,null,null,""]
[null,null,"",null,null,null,null,null,""]
[null,null,"",null,null,null,null,null,""]
[null,null,"",null,null,null,null,null,""]
[null,null,"",null,null,null,null,null,""]
[null,null,"",null,null,null,null,null,""]
[null,null,"",null,null,null,null,null,""]
[null,null,"",null,null,null,null,null,""]
[null,null,"",null,null,null,null,null,""]
[null,null,"",null,null,null,null,null,""]
[null,null,"",null,null,null,null,null,""]
[null,null,"",null,null,null,null,null,""]
[null,null,"",null,null,null,null,null,""]
[null,null,"",null,null,null,null,null,""]
[null,null,"",null,null,null,null,null,""]
[null,null,"",null,null,null,null,null,""]
[null,null,"",null,null,null,null,null,""]
[null,null,"",null,null,null,null,null,""]
[null,null,"",null,null,null,null,null,""]
[null,null,"",null,null,null,null,null,""]
[null,null,"",null,null,null,null,null,""]
[null,null,"",null,null,null,null,null,""]
[null,null,"",null,null,null,null,null,""]
[null,null,"",null,null,null,null,null,""]
[null,null,"",null,null,null,null,null,""]
[null,null,"",null,null,null,null,null,""]
[null,null,"",null,null,null,null,null,""]
[null,null,"",null,null,null,null,null,""]
[null,null,"",null,null,null,null,null,""]
[null,null,"",null,null,null,null,null,""]
[null,null,"",null,null,null,null,null,""]
[null,null,"",null,null,null,null,null,""]
[null,null,"",null,null,null,null,null,""]
[null,null,"",null,null,null,null,null,""]
[null,null,"",null,null,null,null,null,""]
[null,null,"",null,null,null,null,null,""]
[null,null,{"$f":"IF(B323=\"\",\"\",IF(D323<>\"\",DATEDIF(B323,D323,\"Y\"),DATEDIF(B323,TODAY(),\"Y\")))","v":""},null,null,null,null,null,""]
[null,null,"",null,null,null,null,null,""]
[null,null,"",null,null,null,null,null,""]
[null,null,"",null,null,null,null,null,""]
[null,null,"",null,null,null,null,null,""]
[null,null,"",null,null,null,null,null,""]
[null,null,"",null,null,null,null,null,""]
[null,null,"",null,null,null,null,null,""]
[null,null,"",null,null,null,null,null,""]
[null,null,"",null,null,null,null,null,""]
[null,null,"",null,null,null,null,null,""]
[null,null,"",null,null,null,null,null,""]
[null,null,"",null,null,null,null,null,""]
[null,null,"",null,null,null,null,null,{"$f":"IF(F336=\"\",\"\",IF(H336<>\"\",H336-F336,IF(G336<>\"\",G336-F336,\"\")))","v":""}]
[null,null,"",null,null,null,null,null,""]
[null,null,"",null,null,null,null,null,""]
[null,null,"",null,null,null,null,null,""]
[null,null,"",null,null,null,null,null,""]
[null,null,"",null,null,null,null,null,""]
[null,null,"",null,null,null,null,null,""]
[null,null,"",null,null,null,null,null,""]
[null,null,"",null,null,null,null,null,""]
[null,null,"",null,null,null,null,null,""]
[null,null,"",null,null,null,null,null,""]
[null,null,"",null,null,null,null,null,""]
[null,null,"",null,null,null,null,null,""]
[null,null,"",null,null,null,null,null,""]
[null,null,"",null,null,null,null,null,""]
[null,null,"",null,null,null,null,null,""]
[null,null,"",null,null,null,null,null,""]
[null,null,"",null,null,null,null,null,""]
[null,null,"",null,null,null,null,null,""]
[null,null,"",null,null,null,null,null,""]
[null,null,"",null,null,null,null,null,""]
[null,null,"",null,null,null,null,null,""]
[null,null,"",null,null,null,null,null,""]
[null,null,"",null,null,null,null,null,""]
[null,null,"",null,null,null,null,null,""]
[null,null,"",null,null,null,null,null,""]
[null,null,"",null,null,null,null,null,""]
[null,null,"",null,null,null,null,null,""]
[null,null,"",null,null,null,null,null,""]
[null,null,"",null,null,null,null,null,""]
[null,null,"",null,null,null,null,null,""]
[null,null,"",null,null,null,null,null,""]
[null,null,"",null,null,null,null,null,""]
[null,null,"",null,null,null,null,null,""]
[null,null,"",null,null,null,null,null,""]
[null,null,"",null,null,null,null,null,""]
[null,null,"",null,null,null,null,null,""]
[null,null,"",null,null,null,null,null,""]
[null,null,"",null,null,null,null,null,""]
[null,null,"",null,null,null,null,null,""]
[null,null,"",null,null,null,null,null,""]
[null,null,"",null,null,null,null,null,""]
[null,null,"",null,null,null,null,null,""]
[null,null,"",null,null,null,null,null,""]
[null,null,"",null,null,null,null,null,""]
[null,null,"",null,null,null,null,null,""]
[null,null,"",null,null,null,null,null,""]
[null,null,"",null,null,null,null,null,""]
[null,null,"",null,null,null,null,null,""]
[null,null,"",null,null,null,null,null,""]
[null,null,"",null,null,null,null,null,""]
[null,null,{"$f":"IF(B387=\"\",\"\",IF(D387<>\"\",DATEDIF(B387,D387,\"Y\"),DATEDIF(B387,TODAY(),\"Y\")))","v":""},null,null,null,null,null,""]
[null,null,"",null,null,null,null,null,""]
[null,null,"",null,null,null,null,null,""]
[null,null,"",null,null,null,null,null,""]
[null,null,"",null,null,null,null,null,""]
[null,null,"",null,null,null,null,null,""]
[null,null,"",null,null,null,null,null,""]
[null,null,"",null,null,null,null,null,""]
[null,null,"",null,null,null,null,null,""]
[null,null,"",null,null,null,null,null,""]
[null,null,"",null,null,null,null,null,""]
[null,null,"",null,null,null,null,null,""]
[null,null,"",null,null,null,null,null,""]
[null,null,"",null,null,null,null,null,{"$f":"IF(F400=\"\",\"\",IF(H400<>\"\",H400-F400,IF(G400<>\"\",G400-F400,\"\")))","v":""}]
[null,null,"",null,null,null,null,null,""]
[null,null,"",null,null,null,null,null,""]
[null,null,"",null,null,null,null,null,""]
[null,null,"",null,null,null,null,null,""]
[null,null,"",null,null,null,null,null,""]
[null,null,"",null,null,null,null,null,""]
[null,null,"",null,null,null,null,null,""]
[null,null,"",null,null,null,null,null,""]
[null,null,"",null,null,null,null,null,""]
[null,null,"",null,null,null,null,null,""]
[null,null,"",null,null,null,null,null,""]
[null,null,"",null,null,null,null,null,""]
[null,null,"",null,null,null,null,null,""]
[null,null,"",null,null,null,null,null,""]
[null,null,"",null,null,null,null,null,""]
[null,null,"",null,null,null,null,null,""]
[null,null,"",null,null,null,null,null,""]
[null,null,"",null,null,null,null,null,""]
[null,null,"",null,null,null,null,null,""]
[null,null,"",null,null,null,null,null,""]
[null,null,"",null,null,null,null,null,""]
[null,null,"",null,null,null,null,null,""]
[null,null,"",null,null,null,null,null,""]
[null,null,"",null,null,null,null,null,""]
[null,null,"",null,null,null,null,null,""]
[null,null,"",null,null,null,null,null,""]
[null,null,"",null,null,null,null,null,""]
[null,null,"",null,null,null,null,null,""]
[null,null,"",null,null,null,null,null,""]
[null,null,"",null,null,null,null,null,""]
[null,null,"",null,null,null,null,null,""]
[null,null,"",null,null,null,null,null,""]
[null,null,"",null,null,null,null,null,""]
[null,null,"",null,null,null,null,null,""]
[null,null,"",null,null,null,null,null,""]
[null,null,"",null,null,null,null,null,""]
[null,null,"",null,null,null,null,null,""]
[null,null,"",null,null,null,null,null,""]
[null,null,"",null,null,null,null,null,""]
[null,null,"",null,null,null,null,null,""]
[null,null,"",null,null,null,null,null,""]
[null,null,"",null,null,null,null,null,""]
[null,null,"",null,null,null,null,null,""]
[null,null,"",null,null,null,null,null,""]
[null,null,"",null,null,null,null,null,""]
[null,null,"",null,null,null,null,null,""]
[null,null,"",null,null,null,null,null,""]
[null,null,"",null,null,null,null,null,""]
[null,null,"",null,null,null,null,null,""]
[null,null,"",null,null,null,null,null,""]
[null,null,{"$f":"IF(B451=\"\",\"\",IF(D451<>\"\",DATEDIF(B451,D451,\"Y\"),DATEDIF(B451,TODAY(),\"Y\")))","v":""},null,null,null,null,null,""]
[null,null,"",null,null,null,null,null,""]
[null,null,"",null,null,null,null,null,""]
[null,null,"",null,null,null,null,null,""]
[null,null,"",null,null,null,null,null,""]
[null,null,"",null,null,null,null,null,""]
[null,null,"",null,null,null,null,null,""]
[null,null,"",null,null,null,null,null,""]
[null,null,"",null,null,null,null,null,""]
[null,null,"",null,null,null,null,null,""]
[null,null,"",null,null,null,null,null,""]
[null,null,"",null,null,null,null,null,""]
[null,null,"",null,null,null,null,null,""]
[null,null,"",null,null,null,null,null,{"$f":"IF(F464=\"\",\"\",IF(H464<>\"\",H464-F464,IF(G464<>\"\",G464-F464,\"\")))","v":""}]
[null,null,"",null,null,null,null,null,""]
[null,null,"",null,null,null,null,null,""]
[null,null,"",null,null,null,null,null,""]
[null,null,"",null,null,null,null,null,""]
[null,null,"",null,null,null,null,null,""]
[null,null,"",null,null,null,null,null,""]
[null,null,"",null,null,null,null,null,""]
[null,null,"",null,null,null,null,null,""]
[null,null,"",null,null,null,null,null,""]
[null,null,"",null,null,null,null,null,""]
[null,null,"",null,null,null,null,null,""]
[null,null,"",null,null,null,null,null,""]
[null,null,"",null,null,null,null,null,""]
[null,null,"",null,null,null,null,null,""]
[null,null,"",null,null,null,null,null,""]
[null,null,"",null,null,null,null,null,""]
[null,null,"",null,null,null,null,null,""]
[null,null,"",null,null,null,null,null,""]
[null,null,"",null,null,null,null,null,""]
[null,null,"",null,null,null,null,null,""]
[null,null,"",null,null,null,null,null,""]
[null,null,"",null,null,null,null,null,""]
[null,null,"",null,null,null,null,null,""]
[null,null,"",null,null,null,null,null,""]
[null,null,"",null,null,null,null,null,""]
[null,null,"",null,null,null,null,null,""]
[null,null,"",null,null,null,null,null,""]
[null,null,"",null,null,null,null,null,""]
[null,null,"",null,null,null,null,null,""]
[null,null,"",null,null,null,null,null,""]
[null,null,"",null,null,null,null,null,""]
[null,null,"",null,null,null,null,null,""]
[null,null,"",null,null,null,null,null,""]
[null,null,"",null,null,null,null,null,""]
[null,null,"",null,null,null,null,null,""]
[null,null,"",null,null,null,null,null,""]
[null,null,"",null,null,null,null,null,""]
[null,null,"",null,null,null,null,null,""]
[null,null,"",null,null,null,null,null,""]
[null,null,"",null,null,null,null,null,""]
[null,null,"",null,null,null,null,null,""]
[null,null,"",null,null,null,null,null,""]
[null,null,"",null,null,null,null,null,""]
[null,null,"",null,null,null,null,null,""]
[null,null,"",null,null,null,null,null,""]
[null,null,"",null,null,null,null,null,""]
[null,null,"",null,null,null,null,null,""]
[null,null,"",null,null,null,null,null,""]
[null,null,"",null,null,null,null,null,""]
[null,null,"",null,null,null,null,null,""]
[null,null,{"$f":"IF(B515=\"\",\"\",IF(D515<>\"\",DATEDIF(B515,D515,\"Y\"),DATEDIF(B515,TODAY(),\"Y\")))","v":""},null,null,null,null,null,""]
[null,null,"",null,null,null,null,null,""]
[null,null,"",null,null,null,null,null,""]
[null,null,"",null,null,null,null,null,""]
[null,null,"",null,null,null,null,null,""]
[null,null,"",null,null,null,null,null,""]
[null,null,"",null,null,null,null,null,""]
[null,null,"",null,null,null,null,null,""]
[null,null,"",null,null,null,null,null,""]
[null,null,"",null,null,null,null,null,""]
[null,null,"",null,null,null,null,null,""]
[null,null,"",null,null,null,null,null,""]
[null,null,"",null,null,null,null,null,""]
[null,null,"",null,null,null,null,null,{"$f":"IF(F528=\"\",\"\",IF(H528<>\"\",H528-F528,IF(G528<>\"\",G528-F528,\"\")))","v":""}]
[null,null,"",null,null,null,null,null,""]
[null,null,"",null,null,null,null,null,""]
[null,null,"",null,null,null,null,null,""]
[null,null,"",null,null,null,null,null,""]
[null,null,"",null,null,null,null,null,""]
[null,null,"",null,null,null,null,null,""]
[null,null,"",null,null,null,null,null,""]
[null,null,"",null,null,null,null,null,""]
[null,null,"",null,null,null,null,null,""]
[null,null,"",null,null,null,null,null,""]
[null,null,"",null,null,null,null,null,""]
[null,null,"",null,null,null,null,null,""]
[null,null,"",null,null,null,null,null,""]
[null,null,"",null,null,null,null,null,""]
[null,null,"",null,null,null,null,null,""]
[null,null,"",null,null,null,null,null,""]
[null,null,"",null,null,null,null,null,""]
[null,null,"",null,null,null,null,null,""]
[null,null,"",null,null,null,null,null,""]
[null,null,"",null,null,null,null,null,""]
[null,null,"",null,null,null,null,null,""]
[null,null,"",null,null,null,null,null,""]
[null,null,"",null,null,null,null,null,""]
[null,null,"",null,null,null,null,null,""]
[null,null,"",null,null,null,null,null,""]
[null,null,"",null,null,null,null,null,""]
[null,null,"",null,null,null,null,null,""]
[null,null,"",null,null,null,null,null,""]
[null,null,"",null,null,null,null,null,""]
[null,null,"",null,null,null,null,null,""]
[null,null,"",null,null,null,null,null,""]
[null,null,"",null,null,null,null,null,""]
[null,null,"",null,null,null,null,null,""]
[null,null,"",null,null,null,null,null,""]
[null,null,"",null,null,null,null,null,""]
[null,null,"",null,null,null,null,null,""]
[null,null,"",null,null,null,null,null,""]
[null,null,"",null,null,null,null,null,""]
[null,null,"",null,null,null,null,null,""]
[null,null,"",null,null,null,null,null,""]
[null,null,"",null,null,null,null,null,""]
[null,null,"",null,null,null,null,null,""]
[null,null,"",null,null,null,null,null,""]
[null,null,"",null,null,null,null,null,""]
[null,null,"",null,null,null,null,null,""]
[null,null,"",null,null,null,null,null,""]
[null,null,"",null,null,null,null,null,""]
[null,null,"",null,null,null,null,null,""]
[null,null,"",null,null,null,null,null,""]
[null,null,"",null,null,null,null,null,""]
[null,null,{"$f":"IF(B579=\"\",\"\",IF(D579<>\"\",DATEDIF(B579,D579,\"Y\"),DATEDIF(B579,TODAY(),\"Y\")))","v":""},null,null,null,null,null,""]
[null,null,"",null,null,null,null,null,""]
[null,null,"",null,null,null,null,null,""]
[null,null,"",null,null,null,null,null,""]
[null,null,"",null,null,null,null,null,""]
[null,null,"",null,null,null,null,null,""]
[null,null,"",null,null,null,null,null,""]
[null,null,"",null,null,null,null,null,""]
[null,null,"",null,null,null,null,null,""]
[null,null,"",null,null,null,null,null,""]
[null,null,"",null,null,null,null,null,""]
[null,null,"",null,null,null,null,null,""]
[null,null,"",null,null,null,null,null,""]
[null,null,"",null,null,null,null,null,{"$f":"IF(F592=\"\",\"\",IF(H592<>\"\",H592-F592,IF(G592<>\"\",G592-F592,\"\")))","v":""}]
[null,null,"",null,null,null,null,null,""]
[null,null,"",null,null,null,null,null,""]
[null,null,"",null,null,null,null,null,""]
[null,null,"",null,null,null,null,null,""]
[null,null,"",null,null,null,null,null,""]
[null,null,"",null,null,null,null,null,""]
[null,null,"",null,null,null,null,null,""]
[null,null,"",null,null,null,null,null,""]
[null,null,"",null,null,null,null,null,""]
[null,null,"",null,null,null,null,null,""]
[null,null,"",null,null,null,null,null,""]
[null,null,"",null,null,null,null,null,""]
[null,null,"",null,null,null,null,null,""]
[null,null,"",null,null,null,null,null,""]
[null,null,"",null,null,null,null,null,""]
[null,null,"",null,null,null,null,null,""]
[null,null,"",null,null,null,null,null,""]
[null,null,"",null,null,null,null,null,""]
[null,null,"",null,null,null,null,null,""]
[null,null,"",null,null,null,null,null,""]
[null,null,"",null,null,null,null,null,""]
[null,null,"",null,null,null,null,null,""]
[null,null,"",null,null,null,null,null,""]
[null,null,"",null,null,null,null,null,""]
[null,null,"",null,null,null,null,null,""]
[null,null,"",null,null,null,null,null,""]
[null,null,"",null,null,null,null,null,""]
[null,null,"",null,null,null,null,null,""]
[null,null,"",null,null,null,null,null,""]
[null,null,"",null,null,null,null,null,""]
[null,null,"",null,null,null,null,null,""]
[null,null,"",null,null,null,null,null,""]
[null,null,"",null,null,null,null,null,""]
[null,null,"",null,null,null,null,null,""]
[null,null,"",null,null,null,null,null,""]
[null,null,"",null,null,null,null,null,""]
[null,null,"",null,null,null,null,null,""]
[null,null,"",null,null,null,null,null,""]
[null,null,"",null,null,null,null,null,""]
[null,null,"",null,null,null,null,null,""]
[null,null,"",null,null,null,null,null,""]
[null,null,"",null,null,null,null,null,""]
[null,null,"",null,null,null,null,null,""]
[null,null,"",null,null,null,null,null,""]
[null,null,"",null,null,null,null,null,""]
[null,null,"",null,null,null,null,null,""]
[null,null,"",null,null,null,null,null,""]
[null,null,"",null,null,null,null,null,""]
[null,null,"",null,null,null,null,null,""]
[null,null,"",null,null,null,null,null,""]
[null,null,{"$f":"IF(B643=\"\",\"\",IF(D643<>\"\",DATEDIF(B643,D643,\"Y\"),DATEDIF(B643,TODAY(),\"Y\")))","v":""},null,null,null,null,null,""]
[null,null,"",null,null,null,null,null,""]
[null,null,"",null,null,null,null,null,""]
[null,null,"",null,null,null,null,null,""]
[null,null,"",null,null,null,null,null,""]
[null,null,"",null,null,null,null,null,""]
[null,null,"",null,null,null,null,null,""]
[null,null,"",null,null,null,null,null,""]
[null,null,"",null,null,null,null,null,""]
[null,null,"",null,null,null,null,null,""]
[null,null,"",null,null,null,null,null,""]
[null,null,"",null,null,null,null,null,""]
[null,null,"",null,null,null,null,null,""]
[null,null,"",null,null,null,null,null,{"$f":"IF(F656=\"\",\"\",IF(H656<>\"\",H656-F656,IF(G656<>\"\",G656-F656,\"\")))","v":""}]
[null,null,"",null,null,null,null,null,""]
[null,null,"",null,null,null,null,null,""]
[null,null,"",null,null,null,null,null,""]
[null,null,"",null,null,null,null,null,""]
[null,null,"",null,null,null,null,null,""]
[null,null,"",null,null,null,null,null,""]
[null,null,"",null,null,null,null,null,""]
[null,null,"",null,null,null,null,null,""]
[null,null,"",null,null,null,null,null,""]
[null,null,"",null,null,null,null,null,""]
[null,null,"",null,null,null,null,null,""]
[null,null,"",null,null,null,null,null,""]
[null,null,"",null,null,null,null,null,""]
[null,null,"",null,null,null,null,null,""]
[null,null,"",null,null,null,null,null,""]
[null,null,"",null,null,null,null,null,""]
[null,null,"",null,null,null,null,null,""]
[null,null,"",null,null,null,null,null,""]
[null,null,"",null,null,null,null,null,""]
[null,null,"",null,null,null,null,null,""]
[null,null,"",null,null,null,null,null,""]
[null,null,"",null,null,null,null,null,""]
[null,null,"",null,null,null,null,null,""]
[null,null,"",null,null,null,null,null,""]
[null,null,"",null,null,null,null,null,""]
[null,null,"",null,null,null,null,null,""]
[null,null,"",null,null,null,null,null,""]
[null,null,"",null,null,null,null,null,""]
[null,null,"",null,null,null,null,null,""]
[null,null,"",null,null,null,null,null,""]
[null,null,"",null,null,null,null,null,""]
[null,null,"",null,null,null,null,null,""]
[null,null,"",null,null,null,null,null,""]
[null,null,"",null,null,null,null,null,""]
[null,null,"",null,null,null,null,null,""]
[null,null,"",null,null,null,null,null,""]
[null,null,"",null,null,null,null,null,""]
[null,null,"",null,null,null,null,null,""]
[null,null,"",null,null,null,null,null,""]
[null,null,"",null,null,null,null,null,""]
[null,null,"",null,null,null,null,null,""]
[null,null,"",null,null,null,null,null,""]
[null,null,"",null,null,null,null,null,""]
[null,null,"",null,null,null,null,null,""]
[null,null,"",null,null,null,null,null,""]
[null,null,"",null,null,null,null,null,""]
[null,null,"",null,null,null,null,null,""]
[null,null,"",null,null,null,null,null,""]
[null,null,"",null,null,null,null,null,""]
[null,null,"",null,null,null,null,null,""]
[null,null,{"$f":"IF(B707=\"\",\"\",IF(D707<>\"\",DATEDIF(B707,D707,\"Y\"),DATEDIF(B707,TODAY(),\"Y\")))","v":""},null,null,null,null,null,""]
[null,null,"",null,null,null,null,null,""]
[null,null,"",null,null,null,null,null,""]
[null,null,"",null,null,null,null,null,""]
[null,null,"",null,null,null,null,null,""]
[null,null,"",null,null,null,null,null,""]
[null,null,"",null,null,null,null,null,""]
[null,null,"",null,null,null,null,null,""]
[null,null,"",null,null,null,null,null,""]
[null,null,"",null,null,null,null,null,""]
[null,null,"",null,null,null,null,null,""]
[null,null,"",null,null,null,null,null,""]
[null,null,"",null,null,null,null,null,""]
[null,null,"",null,null,null,null,null,{"$f":"IF(F720=\"\",\"\",IF(H720<>\"\",H720-F720,IF(G720<>\"\",G720-F720,\"\")))","v":""}]
[null,null,"",null,null,null,null,null,""]
[null,null,"",null,null,null,null,null,""]
[null,null,"",null,null,null,null,null,""]
[null,null,"",null,null,null,null,null,""]
[null,null,"",null,null,null,null,null,""]
[null,null,"",null,null,null,null,null,""]
[null,null,"",null,null,null,null,null,""]
[null,null,"",null,null,null,null,null,""]
[null,null,"",null,null,null,null,null,""]
[null,null,"",null,null,null,null,null,""]
[null,null,"",null,null,null,null,null,""]
[null,null,"",null,null,null,null,null,""]
[null,null,"",null,null,null,null,null,""]
[null,null,"",null,null,null,null,null,""]
[null,null,"",null,null,null,null,null,""]
[null,null,"",null,null,null,null,null,""]
[null,null,"",null,null,null,null,null,""]
[null,null,"",null,null,null,null,null,""]
[null,null,"",null,null,null,null,null,""]
[null,null,"",null,null,null,null,null,""]
[null,null,"",null,null,null,null,null,""]
[null,null,"",null,null,null,null,null,""]
[null,null,"",null,null,null,null,null,""]
[null,null,"",null,null,null,null,null,""]
[null,null,"",null,null,null,null,null,""]
[null,null,"",null,null,null,null,null,""]
[null,null,"",null,null,null,null,null,""]
[null,null,"",null,null,null,null,null,""]
[null,null,"",null,null,null,null,null,""]
[null,null,"",null,null,null,null,null,""]
[null,null,"",null,null,null,null,null,""]
[null,null,"",null,null,null,null,null,""]
[null,null,"",null,null,null,null,null,""]
[null,null,"",null,null,null,null,null,""]
[null,null,"",null,null,null,null,null,""]
[null,null,"",null,null,null,null,null,""]
[null,null,"",null,null,null,null,null,""]
[null,null,"",null,null,null,null,null,""]
[null,null,"",null,null,null,null,null,""]
[null,null,"",null,null,null,null,null,""]
[null,null,"",null,null,null,null,null,""]
[null,null,"",null,null,null,null,null,""]
[null,null,"",null,null,null,null,null,""]
[null,null,"",null,null,null,null,null,""]
[null,null,"",null,null,null,null,null,""]
[null,null,"",null,null,null,null,null,""]
[null,null,"",null,null,null,null,null,""]
[null,null,"",null,null,null,null,null,""]
[null,null,"",null,null,null,null,null,""]
[null,null,"",null,null,null,null,null,""]
[null,null,{"$f":"IF(B771=\"\",\"\",IF(D771<>\"\",DATEDIF(B771,D771,\"Y\"),DATEDIF(B771,TODAY(),\"Y\")))","v":""},null,null,null,null,null,""]
[null,null,"",null,null,null,null,null,""]
[null,null,"",null,null,null,null,null,""]
[null,null,"",null,null,null,null,null,""]
[null,null,"",null,null,null,null,null,""]
[null,null,"",null,null,null,null,null,""]
[null,null,"",null,null,null,null,null,""]
[null,null,"",null,null,null,null,null,""]
[null,null,"",null,null,null,null,null,""]
[null,null,"",null,null,null,null,null,""]
[null,null,"",null,null,null,null,null,""]
[null,null,"",null,null,null,null,null,""]
[null,null,"",null,null,null,null,null,""]
[null,null,"",null,null,null,null,null,{"$f":"IF(F784=\"\",\"\",IF(H784<>\"\",H784-F784,IF(G784<>\"\",G784-F784,\"\")))","v":""}]
[null,null,"",null,null,null,null,null,""]
[null,null,"",null,null,null,null,null,""]
[null,null,"",null,null,null,null,null,""]
[null,null,"",null,null,null,null,null,""]
[null,null,"",null,null,null,null,null,""]
[null,null,"",null,null,null,null,null,""]
[null,null,"",null,null,null,null,null,""]
[null,null,"",null,null,null,null,null,""]
[null,null,"",null,null,null,null,null,""]
[null,null,"",null,null,null,null,null,""]
[null,null,"",null,null,null,null,null,""]
[null,null,"",null,null,null,null,null,""]
[null,null,"",null,null,null,null,null,""]
[null,null,"",null,null,null,null,null,""]
[null,null,"",null,null,null,null,null,""]
[null,null,"",null,null,null,null,null,""]
[null,null,"",null,null,null,null,null,""]
[null,null,"",null,null,null,null,null,""]
[null,null,"",null,null,null,null,null,""]
[null,null,"",null,null,null,null,null,""]
[null,null,"",null,null,null,null,null,""]
[null,null,"",null,null,null,null,null,""]
[null,null,"",null,null,null,null,null,""]
[null,null,"",null,null,null,null,null,""]
[null,null,"",null,null,null,null,null,""]
[null,null,"",null,null,null,null,null,""]
[null,null,"",null,null,null,null,null,""]
[null,null,"",null,null,null,null,null,""]
[null,null,"",null,null,null,null,null,""]
[null,null,"",null,null,null,null,null,""]
[null,null,"",null,null,null,null,null,""]
[null,null,"",null,null,null,null,null,""]
[null,null,"",null,null,null,null,null,""]
[null,null,"",null,null,null,null,null,""]
[null,null,"",null,null,null,null,null,""]
[null,null,"",null,null,null,null,null,""]
[null,null,"",null,null,null,null,null,""]
[null,null,"",null,null,null,null,null,""]
[null,null,"",null,null,null,null,null,""]
[null,null,"",null,null,null,null,null,""]
[null,null,"",null,null,null,null,null,""]
[null,null,"",null,null,null,null,null,""]
[null,null,"",null,null,null,null,null,""]
[null,null,"",null,null,null,null,null,""]
[null,null,"",null,null,null,null,null,""]
[null,null,"",null,null,null,null,null,""]
[null,null,"",null,null,null,null,null,""]
[null,null,"",null,null,null,null,null,""]
[null,null,"",null,null,null,null,null,""]
[null,null,"",null,null,null,null,null,""]
[null,null,{"$f":"IF(B835=\"\",\"\",IF(D835<>\"\",DATEDIF(B835,D835,\"Y\"),DATEDIF(B835,TODAY(),\"Y\")))","v":""},null,null,null,null,null,""]
[null,null,"",null,null,null,null,null,""]
[null,null,"",null,null,null,null,null,""]
[null,null,"",null,null,null,null,null,""]
[null,null,"",null,null,null,null,null,""]
[null,null,"",null,null,null,null,null,""]
[null,null,"",null,null,null,null,null,""]
[null,null,"",null,null,null,null,null,""]
[null,null,"",null,null,null,null,null,""]
[null,null,"",null,null,null,null,null,""]
[null,null,"",null,null,null,null,null,""]
[null,null,"",null,null,null,null,null,""]
[null,null,"",null,null,null,null,null,""]
[null,null,"",null,null,null,null,null,{"$f":"IF(F848=\"\",\"\",IF(H848<>\"\",H848-F848,IF(G848<>\"\",G848-F848,\"\")))","v":""}]
[null,null,"",null,null,null,null,null,""]
[null,null,"",null,null,null,null,null,""]
[null,null,"",null,null,null,null,null,""]
[null,null,"",null,null,null,null,null,""]
[null,null,"",null,null,null,null,null,""]
[null,null,"",null,null,null,null,null,""]
[null,null,"",null,null,null,null,null,""]
[null,null,"",null,null,null,null,null,""]
[null,null,"",null,null,null,null,null,""]
[null,null,"",null,null,null,null,null,""]
[null,null,"",null,null,null,null,null,""]
[null,null,"",null,null,null,null,null,""]
[null,null,"",null,null,null,null,null,""]
[null,null,"",null,null,null,null,null,""]
[null,null,"",null,null,null,null,null,""]
[null,null,"",null,null,null,null,null,""]
[null,null,"",null,null,null,null,null,""]
[null,null,"",null,null,null,null,null,""]
[null,null,"",null,null,null,null,null,""]
[null,null,"",null,null,null,null,null,""]
[null,null,"",null,null,null,null,null,""]
[null,null,"",null,null,null,null,null,""]
[null,null,"",null,null,null,null,null,""]
[null,null,"",null,null,null,null,null,""]
[null,null,"",null,null,null,null,null,""]
[null,null,"",null,null,null,null,null,""]
[null,null,"",null,null,null,null,null,""]
[null,null,"",null,null,null,null,null,""]
[null,null,"",null,null,null,null,null,""]
[null,null,"",null,null,null,null,null,""]
[null,null,"",null,null,null,null,null,""]
[null,null,"",null,null,null,null,null,""]
[null,null,"",null,null,null,null,null,""]
[null,null,"",null,null,null,null,null,""]
[null,null,"",null,null,null,null,null,""]
[null,null,"",null,null,null,null,null,""]
[null,null,"",null,null,null,null,null,""]
[null,null,"",null,null,null,null,null,""]
[null,null,"",null,null,null,null,null,""]
[null,null,"",null,null,null,null,null,""]
[null,null,"",null,null,null,null,null,""]
[null,null,"",null,null,null,null,null,""]
[null,null,"",null,null,null,null,null,""]
[null,null,"",null,null,null,null,null,""]
[null,null,"",null,null,null,null,null,""]
[null,null,"",null,null,null,null,null,""]
[null,null,"",null,null,null,null,null,""]
[null,null,"",null,null,null,null,null,""]
[null,null,"",null,null,null,null,null,""]
[null,null,"",null,null,null,null,null,""]
[null,null,{"$f":"IF(B899=\"\",\"\",IF(D899<>\"\",DATEDIF(B899,D899,\"Y\"),DATEDIF(B899,TODAY(),\"Y\")))","v":""},null,null,null,null,null,""]
[null,null,"",null,null,null,null,null,""]
[null,null,"",null,null,null,null,null,""]
[null,null,"",null,null,null,null,null,""]
[null,null,"",null,null,null,null,null,""]
[null,null,"",null,null,null,null,null,""]
[null,null,"",null,null,null,null,null,""]
[null,null,"",null,null,null,null,null,""]
[null,null,"",null,null,null,null,null,""]
[null,null,"",null,null,null,null,null,""]
[null,null,"",null,null,null,null,null,""]
[null,null,"",null,null,null,null,null,""]
[null,null,"",null,null,null,null,null,""]
[null,null,"",null,null,null,null,null,{"$f":"IF(F912=\"\",\"\",IF(H912<>\"\",H912-F912,IF(G912<>\"\",G912-F912,\"\")))","v":""}]
[null,null,"",null,null,null,null,null,""]
[null,null,"",null,null,null,null,null,""]
[null,null,"",null,null,null,null,null,""]
[null,null,"",null,null,null,null,null,""]
[null,null,"",null,null,null,null,null,""]
[null,null,"",null,null,null,null,null,""]
[null,null,"",null,null,null,null,null,""]
[null,null,"",null,null,null,null,null,""]
[null,null,"",null,null,null,null,null,""]
[null,null,"",null,null,null,null,null,""]
[null,null,"",null,null,null,null,null,""]
[null,null,"",null,null,null,null,null,""]
[null,null,"",null,null,null,null,null,""]
[null,null,"",null,null,null,null,null,""]
[null,null,"",null,null,null,null,null,""]
[null,null,"",null,null,null,null,null,""]
[null,null,"",null,null,null,null,null,""]
[null,null,"",null,null,null,null,null,""]
[null,null,"",null,null,null,null,null,""]
[null,null,"",null,null,null,null,null,""]
[null,null,"",null,null,null,null,null,""]
[null,null,"",null,null,null,null,null,""]
[null,null,"",null,null,null,null,null,""]
[null,null,"",null,null,null,null,null,""]
[null,null,"",null,null,null,null,null,""]
[null,null,"",null,null,null,null,null,""]
[null,null,"",null,null,null,null,null,""]
[null,null,"",null,null,null,null,null,""]
[null,null,"",null,null,null,null,null,""]
[null,null,"",null,null,null,null,null,""]
[null,null,"",null,null,null,null,null,""]
[null,null,"",null,null,null,null,null,""]
[null,null,"",null,null,null,null,null,""]
[null,null,"",null,null,null,null,null,""]
[null,null,"",null,null,null,null,null,""]
[null,null,"",null,null,null,null,null,""]
[null,null,"",null,null,null,null,null,""]
[null,null,"",null,null,null,null,null,""]
[null,null,"",null,null,null,null,null,""]
[null,null,"",null,null,null,null,null,""]
[null,null,"",null,null,null,null,null,""]
[null,null,"",null,null,null,null,null,""]
[null,null,"",null,null,null,null,null,""]
[null,null,"",null,null,null,null,null,""]
[null,null,"",null,null,null,null,null,""]
[null,null,"",null,null,null,null,null,""]
[null,null,"",null,null,null,null,null,""]
[null,null,"",null,null,null,null,null,""]
[null,null,"",null,null,null,null,null,""]
[null,null,"",null,null,null,null,null,""]
[null,null,{"$f":"IF(B963=\"\",\"\",IF(D963<>\"\",DATEDIF(B963,D963,\"Y\"),DATEDIF(B963,TODAY(),\"Y\")))","v":""},null,null,null,null,null,""]
[null,null,"",null,null,null,null,null,""]
[null,null,"",null,null,null,null,null,""]
[null,null,"",null,null,null,null,null,""]
[null,null,"",null,null,null,null,null,""]
[null,null,"",null,null,null,null,null,""]
[null,null,"",null,null,null,null,null,""]
[null,null,"",null,null,null,null,null,""]
[null,null,"",null,null,null,null,null,""]
[null,null,"",null,null,null,null,null,""]
[null,null,"",null,null,null,null,null,""]
[null,null,"",null,null,null,null,null,""]
[null,null,"",null,null,null,null,null,""]
[null,null,"",null,null,null,null,null,{"$f":"IF(F976=\"\",\"\",IF(H976<>\"\",H976-F976,IF(G976<>\"\",G976-F976,\"\")))","v":""}]
[null,null,"",null,null,null,null,null,""]
[null,null,"",null,null,null,null,null,""]
[null,null,"",null,null,null,null,null,""]
[null,null,"",null,null,null,null,null,""]
[null,null,"",null,null,null,null,null,""]
[null,null,"",null,null,null,null,null,""]
[null,null,"",null,null,null,null,null,""]
[null,null,"",null,null,null,null,null,""]
[null,null,"",null,null,null,null,null,""]
[null,null,"",null,null,null,null,null,""]
[null,null,"",null,null,null,null,null,""]
[null,null,"",null,null,null,null,null,""]
[null,null,"",null,null,null,null,null,""]
[null,null,"",null,null,null,null,null,""]
[null,null,"",null,null,null,null,null,""]
[null,null,"",null,null,null,null,null,""]
[null,null,"",null,null,null,null,null,""]
[null,null,"",null,null,null,null,null,""]
[null,null,"",null,null,null,null,null,""]
[null,null,"",null,null,null,null,null,""]
[null,null,"",null,null,null,null,null,""]
[null,null,"",null,null,null,null,null,""]
[null,null,"",null,null,null,null,null,""]
[null,null,"",null,null,null,null,null,""]
[null,null,"",null,null,null,null,null,""]
[null,null,"",null,null,null,null,null,""]
[null,null,"",null,null,null,null,null,""]
[null,null,"",null,null,null,null,null,""]
[null,null,"",null,null,null,null,null,""]
[null,null,"",null,null,null,null,null,""]
[null,null,"",null,null,null,null,null,""]
[null,null,"",null,null,null,null,null,""]
[null,null,"",null,null,null,null,null,""]
[null,null,"",null,null,null,null,null,""]
[null,null,"",null,null,null,null,null,""]
[null,null,"",null,null,null,null,null,""]
[null,null,"",null,null,null,null,null,""]
[null,null,"",null,null,null,null,null,""]
[null,null,"",null,null,null,null,null,""]
[null,null,"",null,null,null,null,null,""]
[null,null,"",null,null,null,null,null,""]
[null,null,"",null,null,null,null,null,""]
[null,null,"",null,null,null,null,null,""]
[null,null,"",null,null,null,null,null,""]
[null,null,"",null,null,null,null,null,""]
[null,null,"",null,null,null,null,null,""]
[null,null,"",null,null,null,null,null,""]
[null,null,"",null,null,null,null,null,""]
[null,null,"",null,null,null,null,null,""]
[null,null,"",null,null,null,null,null,""]
[null,null,{"$f":"IF(B1027=\"\",\"\",IF(D1027<>\"\",DATEDIF(B1027,D1027,\"Y\"),DATEDIF(B1027,TODAY(),\"Y\")))","v":""},null,null,null,null,null,""]
[null,null,"",null,null,null,null,null,""]
[null,null,"",null,null,null,null,null,""]
[null,null,"",null,null,null,null,null,""]
[null,null,"",null,null,null,null,null,""]
[null,null,"",null,null,null,null,null,""]
[null,null,"",null,null,null,null,null,""]
[null,null,"",null,null,null,null,null,""]
[null,null,"",null,null,null,null,null,""]
[null,null,"",null,null,null,null,null,""]
[null,null,"",null,null,null,null,null,""]
[null,null,"",null,null,null,null,null,""]
[null,null,"",null,null,null,null,null,""]
[null,null,"",null,null,null,null,null,{"$f":"IF(F1040=\"\",\"\",IF(H1040<>\"\",H1040-F1040,IF(G1040<>\"\",G1040-F1040,\"\")))","v":""}]
[null,null,"",null,null,null,null,null,""]
[null,null,"",null,null,null,null,null,""]
[null,null,"",null,null,null,null,null,""]
[null,null,"",null,null,null,null,null,""]
[null,null,"",null,null,null,null,null,""]
[null,null,"",null,null,null,null,null,""]
[null,null,"",null,null,null,null,null,""]
[null,null,"",null,null,null,null,null,""]
[null,null,"",null,null,null,null,null,""]
[null,null,"",null,null,null,null,null,""]
[null,null,"",null,null,null,null,null,""]
[null,null,"",null,null,null,null,null,""]
[null,null,"",null,null,null,null,null,""]
[null,null,"",null,null,null,null,null,""]
[null,null,"",null,null,null,null,null,""]
[null,null,"",null,null,null,null,null,""]
[null,null,"",null,null,null,null,null,""]
[null,null,"",null,null,null,null,null,""]
[null,null,"",null,null,null,null,null,""]
[null,null,"",null,null,null,null,null,""]
[null,null,"",null,null,null,null,null,""]
[null,null,"",null,null,null,null,null,""]
[null,null,"",null,null,null,null,null,""]
[null,null,"",null,null,null,null,null,""]
[null,null,"",null,null,null,null,null,""]
[null,null,"",null,null,null,null,null,""]
[null,null,"",null,null,null,null,null,""]
[null,null,"",null,null,null,null,null,""]
[null,null,"",null,null,null,null,null,""]
[null,null,"",null,null,null,null,null,""]
[null,null,"",null,null,null,null,null,""]
[null,null,"",null,null,null,null,null,""]
[null,null,"",null,null,null,null,null,""]
[null,null,"",null,null,null,null,null,""]
[null,null,"",null,null,null,null,null,""]
[null,null,"",null,null,null,null,null,""]
[null,null,"",null,null,null,null,null,""]
[null,null,"",null,null,null,null,null,""]
[null,null,"",null,null,null,null,null,""]
[null,null,"",null,null,null,null,null,""]
[null,null,"",null,null,null,null,null,""]
[null,null,"",null,null,null,null,null,""]
[null,null,"",null,null,null,null,null,""]
[null,null,"",null,null,null,null,null,""]
[null,null,"",null,null,null,null,null,""]
[null,null,"",null,null,null,null,null,""]
[null,null,"",null,null,null,null,null,""]
[null,null,"",null,null,null,null,null,""]
[null,null,"",null,null,null,null,null,""]
[null,null,"",null,null,null,null,null,""]
[null,null,{"$f":"IF(B1091=\"\",\"\",IF(D1091<>\"\",DATEDIF(B1091,D1091,\"Y\"),DATEDIF(B1091,TODAY(),\"Y\")))","v":""},null,null,null,null,null,""]
[null,null,"",null,null,null,null,null,""]
[null,null,"",null,null,null,null,null,""]
[null,null,"",null,null,null,null,null,""]
[null,null,"",null,null,null,null,null,""]
[null,null,"",null,null,null,null,null,""]
[null,null,"",null,null,null,null,null,""]
[null,null,"",null,null,null,null,null,""]
[null,null,"",null,null,null,null,null,""]
[null,null,"",null,null,null,null,null,""]
[null,null,"",null,null,null,null,null,""]
[null,null,"",null,null,null,null,null,""]
[null,null,"",null,null,null,null,null,""]
[null,null,"",null,null,null,null,null,{"$f":"IF(F1104=\"\",\"\",IF(H1104<>\"\",H1104-F1104,IF(G1104<>\"\",G1104-F1104,\"\")))","v":""}]
[null,null,"",null,null,null,null,null,""]
[null,null,"",null,null,null,null,null,""]
[null,null,"",null,null,null,null,null,""]
[null,null,"",null,null,null,null,null,""]
[null,null,"",null,null,null,null,null,""]
[null,null,"",null,null,null,null,null,""]
[null,null,"",null,null,null,null,null,""]
[null,null,"",null,null,null,null,null,""]
[null,null,"",null,null,null,null,null,""]
[null,null,"",null,null,null,null,null,""]
[null,null,"",null,null,null,null,null,""]
[null,null,"",null,null,null,null,null,""]
[null,null,"",null,null,null,null,null,""]
[null,null,"",null,null,null,null,null,""]
[null,null,"",null,null,null,null,null,""]
[null,null,"",null,null,null,null,null,""]
[null,null,"",null,null,null,null,null,""]
[null,null,"",null,null,null,null,null,""]
[null,null,"",null,null,null,null,null,""]
[null,null,"",null,null,null,null,null,""]
[null,null,"",null,null,null,null,null,""]
[null,null,"",null,null,null,null,null,""]
[null,null,"",null,null,null,null,null,""]
[null,null,"",null,null,null,null,null,""]
[null,null,"",null,null,null,null,null,""]
[null,null,"",null,null,null,null,null,""]
[null,null,"",null,null,null,null,null,""]
[null,null,"",null,null,null,null,null,""]
[null,null,"",null,null,null,null,null,""]
[null,null,"",null,null,null,null,null,""]
[null,null,"",null,null,null,null,null,""]
[null,null,"",null,null,null,null,null,""]
[null,null,"",null,null,null,null,null,""]
[null,null,"",null,null,null,null,null,""]
[null,null,"",null,null,null,null,null,""]
[null,null,"",null,null,null,null,null,""]
[null,null,"",null,null,null,null,null,""]
[null,null,"",null,null,null,null,null,""]
[null,null,"",null,null,null,null,null,""]
[null,null,"",null,null,null,null,null,""]
[null,null,"",null,null,null,null,null,""]
[null,null,"",null,null,null,null,null,""]
[null,null,"",null,null,null,null,null,""]
[null,null,"",null,null,null,null,null,""]
[null,null,"",null,null,null,null,null,""]
[null,null,"",null,null,null,null,null,""]
[null,null,"",null,null,null,null,null,""]
[null,null,"",null,null,null,null,null,""]
[null,null,"",null,null,null,null,null,""]
[null,null,"",null,null,null,null,null,""]
[null,null,{"$f":"IF(B1155=\"\",\"\",IF(D1155<>\"\",DATEDIF(B1155,D1155,\"Y\"),DATEDIF(B1155,TODAY(),\"Y\")))","v":""},null,null,null,null,null,""]
[null,null,"",null,null,null,null,null,""]
[null,null,"",null,null,null,null,null,""]
[null,null,"",null,null,null,null,null,""]
[null,null,"",null,null,null,null,null,""]
[null,null,"",null,null,null,null,null,""]
[null,null,"",null,null,null,null,null,""]
[null,null,"",null,null,null,null,null,""]
[null,null,"",null,null,null,null,null,""]
[null,null,"",null,null,null,null,null,""]
[null,null,"",null,null,null,null,null,""]
[null,null,"",null,null,null,null,null,""]
[null,null,"",null,null,null,null,null,""]
[null,null,"",null,null,null,null,null,{"$f":"IF(F1168=\"\",\"\",IF(H1168<>\"\",H1168-F1168,IF(G1168<>\"\",G1168-F1168,\"\")))","v":""}]
[null,null,"",null,null,null,null,null,""]
[null,null,"",null,null,null,null,null,""]
[null,null,"",null,null,null,null,null,""]
[null,null,"",null,null,null,null,null,""]
[null,null,"",null,null,null,null,null,""]
[null,null,"",null,null,null,null,null,""]
[null,null,"",null,null,null,null,null,""]
[null,null,"",null,null,null,null,null,""]
[null,null,"",null,null,null,null,null,""]
[null,null,"",null,null,null,null,null,""]
[null,null,"",null,null,null,null,null,""]
[null,null,"",null,null,null,null,null,""]
[null,null,"",null,null,null,null,null,""]
[null,null,"",null,null,null,null,null,""]
[null,null,"",null,null,null,null,null,""]
[null,null,"",null,null,null,null,null,""]
[null,null,"",null,null,null,null,null,""]
[null,null,"",null,null,null,null,null,""]
[null,null,"",null,null,null,null,null,""]
[null,null,"",null,null,null,null,null,""]
[null,null,"",null,null,null,null,null,""]
[null,null,"",null,null,null,null,null,""]
[null,null,"",null,null,null,null,null,""]
[null,null,"",null,null,null,null,null,""]
[null,null,"",null,null,null,null,null,""]
[null,null,"",null,null,null,null,null,""]
[null,null,"",null,null,null,null,null,""]
[null,null,"",null,null,null,null,null,""]
[null,null,"",null,null,null,null,null,""]
[null,null,"",null,null,null,null,null,""]
[null,null,"",null,null,null,null,null,""]
[null,null,"",null,null,null,null,null,""]
[null,null,"",null,null,null,null,null,""]
[null,null,"",null,null,null,null,null,""]
[null,null,"",null,null,null,null,null,""]
[null,null,"",null,null,null,null,null,""]
[null,null,"",null,null,null,null,null,""]
[null,null,"",null,null,null,null,null,""]
[null,null,"",null,null,null,null,null,""]
[null,null,"",null,null,null,null,null,""]
[null,null,"",null,null,null,null,null,""]
[null,null,"",null,null,null,null,null,""]
[null,null,"",null,null,null,null,null,""]
[null,null,"",null,null,null,null,null,""]
[null,null,"",null,null,null,null,null,""]
[null,null,"",null,null,null,null,null,""]
[null,null,"",null,null,null,null,null,""]
[null,null,"",null,null,null,null,null,""]
[null,null,"",null,null,null,null,null,""]
[null,null,"",null,null,null,null,null,""]
[null,null,{"$f":"IF(B1219=\"\",\"\",IF(D1219<>\"\",DATEDIF(B1219,D1219,\"Y\"),DATEDIF(B1219,TODAY(),\"Y\")))","v":""},null,null,null,null,null,""]
[null,null,"",null,null,null,null,null,""]
[null,null,"",null,null,null,null,null,""]
[null,null,"",null,null,null,null,null,""]
[null,null,"",null,null,null,null,null,""]
[null,null,"",null,null,null,null,null,""]
[null,null,"",null,null,null,null,null,""]
[null,null,"",null,null,null,null,null,""]
[null,null,"",null,null,null,null,null,""]
[null,null,"",null,null,null,null,null,""]
[null,null,"",null,null,null,null,null,""]
[null,null,"",null,null,null,null,null,""]
[null,null,"",null,null,null,null,null,""]
[null,null,"",null,null,null,null,null,{"$f":"IF(F1232=\"\",\"\",IF(H1232<>\"\",H1232-F1232,IF(G1232<>\"\",G1232-F1232,\"\")))","v":""}]
[null,null,"",null,null,null,null,null,""]
[null,null,"",null,null,null,null,null,""]
[null,null,"",null,null,null,null,null,""]
[null,null,"",null,null,null,null,null,""]
[null,null,"",null,null,null,null,null,""]
[null,null,"",null,null,null,null,null,""]
[null,null,"",null,null,null,null,null,""]
[null,null,"",null,null,null,null,null,""]
[null,null,"",null,null,null,null,null,""]
[null,null,"",null,null,null,null,null,""]
[null,null,"",null,null,null,null,null,""]
[null,null,"",null,null,null,null,null,""]
[null,null,"",null,null,null,null,null,""]
[null,null,"",null,null,null,null,null,""]
[null,null,"",null,null,null,null,null,""]
[null,null,"",null,null,null,null,null,""]
[null,null,"",null,null,null,null,null,""]
[null,null,"",null,null,null,null,null,""]
[null,null,"",null,null,null,null,null,""]
[null,null,"",null,null,null,null,null,""]
[null,null,"",null,null,null,null,null,""]
[null,null,"",null,null,null,null,null,""]
[null,null,"",null,null,null,null,null,""]
[null,null,"",null,null,null,null,null,""]
[null,null,"",null,null,null,null,null,""]
[null,null,"",null,null,null,null,null,""]
[null,null,"",null,null,null,null,null,""]
[null,null,"",null,null,null,null,null,""]
[null,null,"",null,null,null,null,null,""]
[null,null,"",null,null,null,null,null,""]
[null,null,"",null,null,null,null,null,""]
[null,null,"",null,null,null,null,null,""]
[null,null,"",null,null,null,null,null,""]
[null,null,"",null,null,null,null,null,""]
[null,null,"",null,null,null,null,null,""]
[null,null,"",null,null,null,null,null,""]
[null,null,"",null,null,null,null,null,""]
[null,null,"",null,null,null,null,null,""]
[null,null,"",null,null,null,null,null,""]
[null,null,"",null,null,null,null,null,""]
[null,null,"",null,null,null,null,null,""]
[null,null,"",null,null,null,null,null,""]
[null,null,"",null,null,null,null,null,""]
[null,null,"",null,null,null,null,null,""]
[null,null,"",null,null,null,null,null,""]
[null,null,"",null,null,null,null,null,""]
[null,null,"",null,null,null,null,null,""]
[null,null,"",null,null,null,null,null,""]
[null,null,"",null,null,null,null,null,""]
[null,null,"",null,null,null,null,null,""]
[null,null,{"$f":"IF(B1283=\"\",\"\",IF(D1283<>\"\",DATEDIF(B1283,D1283,\"Y\"),DATEDIF(B1283,TODAY(),\"Y\")))","v":""},null,null,null,null,null,""]
[null,null,"",null,null,null,null,null,""]
[null,null,"",null,null,null,null,null,""]
[null,null,"",null,null,null,null,null,""]
[null,null,"",null,null,null,null,null,""]
[null,null,"",null,null,null,null,null,""]
[null,null,"",null,null,null,null,null,""]
[null,null,"",null,null,null,null,null,""]
[null,null,"",null,null,null,null,null,""]
[null,null,"",null,null,null,null,null,""]
[null,null,"",null,null,null,null,null,""]
[null,null,"",null,null,null,null,null,""]
[null,null,"",null,null,null,null,null,""]
[null,null,"",null,null,null,null,null,{"$f":"IF(F1296=\"\",\"\",IF(H1296<>\"\",H1296-F1296,IF(G1296<>\"\",G1296-F1296,\"\")))","v":""}]
[null,null,"",null,null,null,null,null,""]
[null,null,"",null,null,null,null,null,""]
[null,null,"",null,null,null,null,null,""]
[null,null,"",null,null,null,null,null,""]
[null,null,"",null,null,null,null,null,""]
[null,null,"",null,null,null,null,null,""]
[null,null,"",null,null,null,null,null,""]
[null,null,"",null,null,null,null,null,""]
[null,null,"",null,null,null,null,null,""]
[null,null,"",null,null,null,null,null,""]
[null,null,"",null,null,null,null,null,""]
[null,null,"",null,null,null,null,null,""]
[null,null,"",null,null,null,null,null,""]
[null,null,"",null,null,null,null,null,""]
[null,null,"",null,null,null,null,null,""]
[null,null,"",null,null,null,null,null,""]
[null,null,"",null,null,null,null,null,""]
[null,null,"",null,null,null,null,null,""]
[null,null,"",null,null,null,null,null,""]
[null,null,"",null,null,null,null,null,""]
[null,null,"",null,null,null,null,null,""]
[null,null,"",null,null,null,null,null,""]
[null,null,"",null,null,null,null,null,""]
[null,null,"",null,null,null,null,null,""]
[null,null,"",null,null,null,null,null,""]
[null,null,"",null,null,null,null,null,""]
[null,null,"",null,null,null,null,null,""]
[null,null,"",null,null,null,null,null,""]
[null,null,"",null,null,null,null,null,""]
[null,null,"",null,null,null,null,null,""]
[null,null,"",null,null,null,null,null,""]
[null,null,"",null,null,null,null,null,""]
[null,null,"",null,null,null,null,null,""]
[null,null,"",null,null,null,null,null,""]
[null,null,"",null,null,null,null,null,""]
[null,null,"",null,null,null,null,null,""]
[null,null,"",null,null,null,null,null,""]
[null,null,"",null,null,null,null,null,""]
[null,null,"",null,null,null,null,null,""]
[null,null,"",null,null,null,null,null,""]
[null,null,"",null,null,null,null,null,""]
[null,null,"",null,null,null,null,null,""]
[null,null,"",null,null,null,null,null,""]
[null,null,"",null,null,null,null,null,""]
[null,null,"",null,null,null,null,null,""]
[null,null,"",null,null,null,null,null,""]
[null,null,"",null,null,null,null,null,""]
[null,null,"",null,null,null,null,null,""]
[null,null,"",null,null,null,null,null,""]
[null,null,"",null,null,null,null,null,""]
[null,null,{"$f":"IF(B1347=\"\",\"\",IF(D1347<>\"\",DATEDIF(B1347,D1347,\"Y\"),DATEDIF(B1347,TODAY(),\"Y\")))","v":""},null,null,null,null,null,""]
[null,null,"",null,null,null,null,null,""]
[null,null,"",null,null,null,null,null,""]
[null,null,"",null,null,null,null,null,""]
[null,null,"",null,null,null,null,null,""]
[null,null,"",null,null,null,null,null,""]
[null,null,"",null,null,null,null,null,""]
[null,null,"",null,null,null,null,null,""]
[null,null,"",null,null,null,null,null,""]
[null,null,"",null,null,null,null,null,""]
[null,null,"",null,null,null,null,null,""]
[null,null,"",null,null,null,null,null,""]
[null,null,"",null,null,null,null,null,""]
[null,null,"",null,null,null,null,null,{"$f":"IF(F1360=\"\",\"\",IF(H1360<>\"\",H1360-F1360,IF(G1360<>\"\",G1360-F1360,\"\")))","v":""}]
[null,null,"",null,null,null,null,null,""]
[null,null,"",null,null,null,null,null,""]
[null,null,"",null,null,null,null,null,""]
[null,null,"",null,null,null,null,null,""]
[null,null,"",null,null,null,null,null,""]
[null,null,"",null,null,null,null,null,""]
[null,null,"",null,null,null,null,null,""]
[null,null,"",null,null,null,null,null,""]
[null,null,"",null,null,null,null,null,""]
[null,null,"",null,null,null,null,null,""]
[null,null,"",null,null,null,null,null,""]
[null,null,"",null,null,null,null,null,""]
[null,null,"",null,null,null,null,null,""]
[null,null,"",null,null,null,null,null,""]
[null,null,"",null,null,null,null,null,""]
[null,null,"",null,null,null,null,null,""]
[null,null,"",null,null,null,null,null,""]
[null,null,"",null,null,null,null,null,""]
[null,null,"",null,null,null,null,null,""]
[null,null,"",null,null,null,null,null,""]
[null,null,"",null,null,null,null,null,""]
[null,null,"",null,null,null,null,null,""]
[null,null,"",null,null,null,null,null,""]
[null,null,"",null,null,null,null,null,""]
[null,null,"",null,null,null,null,null,""]
[null,null,"",null,null,null,null,null,""]
[null,null,"",null,null,null,null,null,""]
[null,null,"",null,null,null,null,null,""]
[null,null,"",null,null,null,null,null,""]
[null,null,"",null,null,null,null,null,""]
[null,null,"",null,null,null,null,null,""]
[null,null,"",null,null,null,null,null,""]
[null,null,"",null,null,null,null,null,""]
[null,null,"",null,null,null,null,null,""]
[null,null,"",null,null,null,null,null,""]
[null,null,"",null,null,null,null,null,""]
[null,null,"",null,null,null,null,null,""]
[null,null,"",null,null,null,null,null,""]
[null,null,"",null,null,null,null,null,""]
[null,null,"",null,null,null,null,null,""]
[null,null,"",null,null,null,null,null,""]
[null,null,"",null,null,null,null,null,""]
[null,null,"",null,null,null,null,null,""]
[null,null,"",null,null,null,null,null,""]
[null,null,"",null,null,null,null,null,""]
[null,null,"",null,null,null,null,null,""]
[null,null,"",null,null,null,null,null,""]
[null,null,"",null,null,null,null,null,""]
[null,null,"",null,null,null,null,null,""]
[null,null,"",null,null,null,null,null,""]
[null,null,{"$f":"IF(B1411=\"\",\"\",IF(D1411<>\"\",DATEDIF(B1411,D1411,\"Y\"),DATEDIF(B1411,TODAY(),\"Y\")))","v":""},null,null,null,null,null,""]
[null,null,"",null,null,null,null,null,""]
[null,null,"",null,null,null,null,null,""]
[null,null,"",null,null,null,null,null,""]
[null,null,"",null,null,null,null,null,""]
[null,null,"",null,null,null,null,null,""]
[null,null,"",null,null,null,null,null,""]
[null,null,"",null,null,null,null,null,""]
[null,null,"",null,null,null,null,null,""]
[null,null,"",null,null,null,null,null,""]
[null,null,"",null,null,null,null,null,""]
[null,null,"",null,null,null,null,null,""]
[null,null,"",null,null,null,null,null,""]
[null,null,"",null,null,null,null,null,{"$f":"IF(F1424=\"\",\"\",IF(H1424<>\"\",H1424-F1424,IF(G1424<>\"\",G1424-F1424,\"\")))","v":""}]
[null,null,"",null,null,null,null,null,""]
[null,null,"",null,null,null,null,null,""]
[null,null,"",null,null,null,null,null,""]
[null,null,"",null,null,null,null,null,""]
[null,null,"",null,null,null,null,null,""]
[null,null,"",null,null,null,null,null,""]
[null,null,"",null,null,null,null,null,""]
[null,null,"",null,null,null,null,null,""]
[null,null,"",null,null,null,null,null,""]
[null,null,"",null,null,null,null,null,""]
[null,null,"",null,null,null,null,null,""]
[null,null,"",null,null,null,null,null,""]
[null,null,"",null,null,null,null,null,""]
[null,null,"",null,null,null,null,null,""]
[null,null,"",null,null,null,null,null,""]
[null,null,"",null,null,null,null,null,""]
[null,null,"",null,null,null,null,null,""]
[null,null,"",null,null,null,null,null,""]
[null,null,"",null,null,null,null,null,""]
[null,null,"",null,null,null,null,null,""]
[null,null,"",null,null,null,null,null,""]
[null,null,"",null,null,null,null,null,""]
[null,null,"",null,null,null,null,null,""]
[null,null,"",null,null,null,null,null,""]
[null,null,"",null,null,null,null,null,""]
[null,null,"",null,null,null,null,null,""]
[null,null,"",null,null,null,null,null,""]
[null,null,"",null,null,null,null,null,""]
[null,null,"",null,null,null,null,null,""]
[null,null,"",null,null,null,null,null,""]
[null,null,"",null,null,null,null,null,""]
[null,null,"",null,null,null,null,null,""]
[null,null,"",null,null,null,null,null,""]
[null,null,"",null,null,null,null,null,""]
[null,null,"",null,null,null,null,null,""]
[null,null,"",null,null,null,null,null,""]
[null,null,"",null,null,null,null,null,""]
[null,null,"",null,null,null,null,null,""]
[null,null,"",null,null,null,null,null,""]
[null,null,"",null,null,null,null,null,""]
[null,null,"",null,null,null,null,null,""]
[null,null,"",null,null,null,null,null,""]
[null,null,"",null,null,null,null,null,""]
[null,null,"",null,null,null,null,null,""]
[null,null,"",null,null,null,null,null,""]
[null,null,"",null,null,null,null,null,""]
[null,null,"",null,null,null,null,null,""]
[null,null,"",null,null,null,null,null,""]
[null,null,"",null,null,null,null,null,""]
[null,null,"",null,null,null,null,null,""]
[null,null,{"$f":"IF(B1475=\"\",\"\",IF(D1475<>\"\",DATEDIF(B1475,D1475,\"Y\"),DATEDIF(B1475,TODAY(),\"Y\")))","v":""},null,null,null,null,null,""]
[null,null,"",null,null,null,null,null,""]
[null,null,"",null,null,null,null,null,""]
[null,null,"",null,null,null,null,null,""]
[null,null,"",null,null,null,null,null,""]
[null,null,"",null,null,null,null,null,""]
[null,null,"",null,null,null,null,null,""]
[null,null,"",null,null,null,null,null,""]
[null,null,"",null,null,null,null,null,""]
[null,null,"",null,null,null,null,null,""]
[null,null,"",null,null,null,null,null,""]
[null,null,"",null,null,null,null,null,""]
[null,null,"",null,null,null,null,null,""]
[null,null,"",null,null,null,null,null,{"$f":"IF(F1488=\"\",\"\",IF(H1488<>\"\",H1488-F1488,IF(G1488<>\"\",G1488-F1488,\"\")))","v":""}]
[null,null,"",null,null,null,null,null,""]
[null,null,"",null,null,null,null,null,""]
[null,null,"",null,null,null,null,null,""]
[null,null,"",null,null,null,null,null,""]
[null,null,"",null,null,null,null,null,""]
[null,null,"",null,null,null,null,null,""]
[null,null,"",null,null,null,null,null,""]
[null,null,"",null,null,null,null,null,""]
[null,null,"",null,null,null,null,null,""]
[null,null,"",null,null,null,null,null,""]
[null,null,"",null,null,null,null,null,""]
[null,null,"",null,null,null,null,null,""]
[null,null,"",null,null,null,null,null,""]
[null,null,"",null,null,null,null,null,""]
[null,null,"",null,null,null,null,null,""]
[null,null,"",null,null,null,null,null,""]
[null,null,"",null,null,null,null,null,""]
[null,null,"",null,null,null,null,null,""]
[null,null,"",null,null,null,null,null,""]
[null,null,"",null,null,null,null,null,""]
[null,null,"",null,null,null,null,null,""]
[null,null,"",null,null,null,null,null,""]
[null,null,"",null,null,null,null,null,""]
[null,null,"",null,null,null,null,null,""]
[null,null,"",null,null,null,null,null,""]
[null,null,"",null,null,null,null,null,""]
[null,null,"",null,null,null,null,null,""]
[null,null,"",null,null,null,null,null,""]
[null,null,"",null,null,null,null,null,""]
[null,null,"",null,null,null,null,null,""]
[null,null,"",null,null,null,null,null,""]
[null,null,"",null,null,null,null,null,""]
[null,null,"",null,null,null,null,null,""]
[null,null,"",null,null,null,null,null,""]
[null,null,"",null,null,null,null,null,""]
[null,null,"",null,null,null,null,null,""]
[null,null,"",null,null,null,null,null,""]
[null,null,"",null,null,null,null,null,""]
[null,null,"",null,null,null,null,null,""]
[null,null,"",null,null,null,null,null,""]
[null,null,"",null,null,null,null,null,""]
[null,null,"",null,null,null,null,null,""]
[null,null,"",null,null,null,null,null,""]
[null,null,"",null,null,null,null,null,""]
[null,null,"",null,null,null,null,null,""]
[null,null,"",null,null,null,null,null,""]
[null,null,"",null,null,null,null,null,""]
[null,null,"",null,null,null,null,null,""]
[null,null,"",null,null,null,null,null,""]
[null,null,"",null,null,null,null,null,""]
[null,null,{"$f":"IF(B1539=\"\",\"\",IF(D1539<>\"\",DATEDIF(B1539,D1539,\"Y\"),DATEDIF(B1539,TODAY(),\"Y\")))","v":""},null,null,null,null,null,""]
[null,null,"",null,null,null,null,null,""]
[null,null,"",null,null,null,null,null,""]
[null,null,"",null,null,null,null,null,""]
[null,null,"",null,null,null,null,null,""]
[null,null,"",null,null,null,null,null,""]
[null,null,"",null,null,null,null,null,""]
[null,null,"",null,null,null,null,null,""]
[null,null,"",null,null,null,null,null,""]
[null,null,"",null,null,null,null,null,""]
[null,null,"",null,null,null,null,null,""]
[null,null,"",null,null,null,null,null,""]
[null,null,"",null,null,null,null,null,""]
[null,null,"",null,null,null,null,null,{"$f":"IF(F1552=\"\",\"\",IF(H1552<>\"\",H1552-F1552,IF(G1552<>\"\",G1552-F1552,\"\")))","v":""}]
[null,null,"",null,null,null,null,null,""]
[null,null,"",null,null,null,null,null,""]
[null,null,"",null,null,null,null,null,""]
[null,null,"",null,null,null,null,null,""]
[null,null,"",null,null,null,null,null,""]
[null,null,"",null,null,null,null,null,""]
[null,null,"",null,null,null,null,null,""]
[null,null,"",null,null,null,null,null,""]
[null,null,"",null,null,null,null,null,""]
[null,null,"",null,null,null,null,null,""]
[null,null,"",null,null,null,null,null,""]
[null,null,"",null,null,null,null,null,""]
[null,null,"",null,null,null,null,null,""]
[null,null,"",null,null,null,null,null,""]
[null,null,"",null,null,null,null,null,""]
[null,null,"",null,null,null,null,null,""]
[null,null,"",null,null,null,null,null,""]
[null,null,"",null,null,null,null,null,""]
[null,null,"",null,null,null,null,null,""]
[null,null,"",null,null,null,null,null,""]
[null,null,"",null,null,null,null,null,""]
[null,null,"",null,null,null,null,null,""]
[null,null,"",null,null,null,null,null,""]
[null,null,"",null,null,null,null,null,""]
[null,null,"",null,null,null,null,null,""]
[null,null,"",null,null,null,null,null,""]
[null,null,"",null,null,null,null,null,""]
[null,null,"",null,null,null,null,null,""]
[null,null,"",null,null,null,null,null,""]
[null,null,"",null,null,null,null,null,""]
[null,null,"",null,null,null,null,null,""]
[null,null,"",null,null,null,null,null,""]
[null,null,"",null,null,null,null,null,""]
[null,null,"",null,null,null,null,null,""]
[null,null,"",null,null,null,null,null,""]
[null,null,"",null,null,null,null,null,""]
[null,null,"",null,null,null,null,null,""]
[null,null,"",null,null,null,null,null,""]
[null,null,"",null,null,null,null,null,""]
[null,null,"",null,null,null,null,null,""]
[null,null,"",null,null,null,null,null,""]
[null,null,"",null,null,null,null,null,""]
[null,null,"",null,null,null,null,null,""]
[null,null,"",null,null,null,null,null,""]
[null,null,"",null,null,null,null,null,""]
[null,null,"",null,null,null,null,null,""]
[null,null,"",null,null,null,null,null,""]
[null,null,"",null,null,null,null,null,""]
[null,null,"",null,null,null,null,null,""]
[null,null,"",null,null,null,null,null,""]
[null,null,{"$f":"IF(B1603=\"\",\"\",IF(D1603<>\"\",DATEDIF(B1603,D1603,\"Y\"),DATEDIF(B1603,TODAY(),\"Y\")))","v":""},null,null,null,null,null,""]
[null,null,"",null,null,null,null,null,""]
[null,null,"",null,null,null,null,null,""]
[null,null,"",null,null,null,null,null,""]
[null,null,"",null,null,null,null,null,""]
[null,null,"",null,null,null,null,null,""]
[null,null,"",null,null,null,null,null,""]
[null,null,"",null,null,null,null,null,""]
[null,null,"",null,null,null,null,null,""]
[null,null,"",null,null,null,null,null,""]
[null,null,"",null,null,null,null,null,""]
[null,null,"",null,null,null,null,null,""]
[null,null,"",null,null,null,null,null,""]
[null,null,"",null,null,null,null,null,{"$f":"IF(F1616=\"\",\"\",IF(H1616<>\"\",H1616-F1616,IF(G1616<>\"\",G1616-F1616,\"\")))","v":""}]
[null,null,"",null,null,null,null,null,""]
[null,null,"",null,null,null,null,null,""]
[null,null,"",null,null,null,null,null,""]
[null,null,"",null,null,null,null,null,""]
[null,null,"",null,null,null,null,null,""]
[null,null,"",null,null,null,null,null,""]
[null,null,"",null,null,null,null,null,""]
[null,null,"",null,null,null,null,null,""]
[null,null,"",null,null,null,null,null,""]
[null,null,"",null,null,null,null,null,""]
[null,null,"",null,null,null,null,null,""]
[null,null,"",null,null,null,null,null,""]
[null,null,"",null,null,null,null,null,""]
[null,null,"",null,null,null,null,null,""]
[null,null,"",null,null,null,null,null,""]
[null,null,"",null,null,null,null,null,""]
[null,null,"",null,null,null,null,null,""]
[null,null,"",null,null,null,null,null,""]
[null,null,"",null,null,null,null,null,""]
[null,null,"",null,null,null,null,null,""]
[null,null,"",null,null,null,null,null,""]
[null,null,"",null,null,null,null,null,""]
[null,null,"",null,null,null,null,null,""]
[null,null,"",null,null,null,null,null,""]
[null,null,"",null,null,null,null,null,""]
[null,null,"",null,null,null,null,null,""]
[null,null,"",null,null,null,null,null,""]
[null,null,"",null,null,null,null,null,""]
[null,null,"",null,null,null,null,null,""]
[null,null,"",null,null,null,null,null,""]
[null,null,"",null,null,null,null,null,""]
[null,null,"",null,null,null,null,null,""]
[null,null,"",null,null,null,null,null,""]
[null,null,"",null,null,null,null,null,""]
[null,null,"",null,null,null,null,null,""]
[null,null,"",null,null,null,null,null,""]
[null,null,"",null,null,null,null,null,""]
[null,null,"",null,null,null,null,null,""]
[null,null,"",null,null,null,null,null,""]
[null,null,"",null,null,null,null,null,""]
[null,null,"",null,null,null,null,null,""]
[null,null,"",null,null,null,null,null,""]
[null,null,"",null,null,null,null,null,""]
[null,null,"",null,null,null,null,null,""]
[null,null,"",null,null,null,null,null,""]
[null,null,"",null,null,null,null,null,""]
[null,null,"",null,null,null,null,null,""]
[null,null,"",null,null,null,null,null,""]
[null,null,"",null,null,null,null,null,""]
[null,null,"",null,null,null,null,null,""]
[null,null,{"$f":"IF(B1667=\"\",\"\",IF(D1667<>\"\",DATEDIF(B1667,D1667,\"Y\"),DATEDIF(B1667,TODAY(),\"Y\")))","v":""},null,null,null,null,null,""]
[null,null,"",null,null,null,null,null,""]
[null,null,"",null,null,null,null,null,""]
[null,null,"",null,null,null,null,null,""]
[null,null,"",null,null,null,null,null,""]
[null,null,"",null,null,null,null,null,""]
[null,null,"",null,null,null,null,null,""]
[null,null,"",null,null,null,null,null,""]
[null,null,"",null,null,null,null,null,""]
[null,null,"",null,null,null,null,null,""]
[null,null,"",null,null,null,null,null,""]
[null,null,"",null,null,null,null,null,""]
[null,null,"",null,null,null,null,null,""]
[null,null,"",null,null,null,null,null,{"$f":"IF(F1680=\"\",\"\",IF(H1680<>\"\",H1680-F1680,IF(G1680<>\"\",G1680-F1680,\"\")))","v":""}]
[null,null,"",null,null,null,null,null,""]
[null,null,"",null,null,null,null,null,""]
[null,null,"",null,null,null,null,null,""]
[null,null,"",null,null,null,null,null,""]
[null,null,"",null,null,null,null,null,""]
[null,null,"",null,null,null,null,null,""]
[null,null,"",null,null,null,null,null,""]
[null,null,"",null,null,null,null,null,""]
[null,null,"",null,null,null,null,null,""]
[null,null,"",null,null,null,null,null,""]
[null,null,"",null,null,null,null,null,""]
[null,null,"",null,null,null,null,null,""]
[null,null,"",null,null,null,null,null,""]
[null,null,"",null,null,null,null,null,""]
[null,null,"",null,null,null,null,null,""]
[null,null,"",null,null,null,null,null,""]
[null,null,"",null,null,null,null,null,""]
[null,null,"",null,null,null,null,null,""]
[null,null,"",null,null,null,null,null,""]
[null,null,"",null,null,null,null,null,""]
[null,null,"",null,null,null,null,null,""]
[null,null,"",null,null,null,null,null,""]
[null,null,"",null,null,null,null,null,""]
[null,null,"",null,null,null,null,null,""]
[null,null,"",null,null,null,null,null,""]
[null,null,"",null,null,null,null,null,""]
[null,null,"",null,null,null,null,null,""]
[null,null,"",null,null,null,null,null,""]
[null,null,"",null,null,null,null,null,""]
[null,null,"",null,null,null,null,null,""]
[null,null,"",null,null,null,null,null,""]
[null,null,"",null,null,null,null,null,""]
[null,null,"",null,null,null,null,null,""]
[null,null,"",null,null,null,null,null,""]
[null,null,"",null,null,null,null,null,""]
[null,null,"",null,null,null,null,null,""]
[null,null,"",null,null,null,null,null,""]
[null,null,"",null,null,null,null,null,""]
[null,null,"",null,null,null,null,null,""]
[null,null,"",null,null,null,null,null,""]
[null,null,"",null,null,null,null,null,""]
[null,null,"",null,null,null,null,null,""]
[null,null,"",null,null,null,null,null,""]
[null,null,"",null,null,null,null,null,""]
[null,null,"",null,null,null,null,null,""]
[null,null,"",null,null,null,null,null,""]
[null,null,"",null,null,null,null,null,""]
[null,null,"",null,null,null,null,null,""]
[null,null,"",null,null,null,null,null,""]
[null,null,"",null,null,null,null,null,""]
[null,null,{"$f":"IF(B1731=\"\",\"\",IF(D1731<>\"\",DATEDIF(B1731,D1731,\"Y\"),DATEDIF(B1731,TODAY(),\"Y\")))","v":""},null,null,null,null,null,""]
[null,null,"",null,null,null,null,null,""]
[null,null,"",null,null,null,null,null,""]
[null,null,"",null,null,null,null,null,""]
[null,null,"",null,null,null,null,null,""]
[null,null,"",null,null,null,null,null,""]
[null,null,"",null,null,null,null,null,""]
[null,null,"",null,null,null,null,null,""]
[null,null,"",null,null,null,null,null,""]
[null,null,"",null,null,null,null,null,""]
[null,null,"",null,null,null,null,null,""]
[null,null,"",null,null,null,null,null,""]
[null,null,"",null,null,null,null,null,""]
[null,null,"",null,null,null,null,null,{"$f":"IF(F1744=\"\",\"\",IF(H1744<>\"\",H1744-F1744,IF(G1744<>\"\",G1744-F1744,\"\")))","v":""}]
[null,null,"",null,null,null,null,null,""]
[null,null,"",null,null,null,null,null,""]
[null,null,"",null,null,null,null,null,""]
[null,null,"",null,null,null,null,null,""]
[null,null,"",null,null,null,null,null,""]
[null,null,"",null,null,null,null,null,""]
[null,null,"",null,null,null,null,null,""]
[null,null,"",null,null,null,null,null,""]
[null,null,"",null,null,null,null,null,""]
[null,null,"",null,null,null,null,null,""]
[null,null,"",null,null,null,null,null,""]
[null,null,"",null,null,null,null,null,""]
[null,null,"",null,null,null,null,null,""]
[null,null,"",null,null,null,null,null,""]
[null,null,"",null,null,null,null,null,""]
[null,null,"",null,null,null,null,null,""]
[null,null,"",null,null,null,null,null,""]
[null,null,"",null,null,null,null,null,""]
[null,null,"",null,null,null,null,null,""]
[null,null,"",null,null,null,null,null,""]
[null,null,"",null,null,null,null,null,""]
[null,null,"",null,null,null,null,null,""]
[null,null,"",null,null,null,null,null,""]
[null,null,"",null,null,null,null,null,""]
[null,null,"",null,null,null,null,null,""]
[null,null,"",null,null,null,null,null,""]
[null,null,"",null,null,null,null,null,""]
[null,null,"",null,null,null,null,null,""]
[null,null,"",null,null,null,null,null,""]
[null,null,"",null,null,null,null,null,""]
[null,null,"",null,null,null,null,null,""]
[null,null,"",null,null,null,null,null,""]
[null,null,"",null,null,null,null,null,""]
[null,null,"",null,null,null,null,null,""]
[null,null,"",null,null,null,null,null,""]
[null,null,"",null,null,null,null,null,""]
[null,null,"",null,null,null,null,null,""]
[null,null,"",null,null,null,null,null,""]
[null,null,"",null,null,null,null,null,""]
[null,null,"",null,null,null,null,null,""]
[null,null,"",null,null,null,null,null,""]
[null,null,"",null,null,null,null,null,""]
[null,null,"",null,null,null,null,null,""]
[null,null,"",null,null,null,null,null,""]
[null,null,"",null,null,null,null,null,""]
[null,null,"",null,null,null,null,null,""]
[null,null,"",null,null,null,null,null,""]
[null,null,"",null,null,null,null,null,""]
[null,null,"",null,null,null,null,null,""]
[null,null,"",null,null,null,null,null,""]
[null,null,{"$f":"IF(B1795=\"\",\"\",IF(D1795<>\"\",DATEDIF(B1795,D1795,\"Y\"),DATEDIF(B1795,TODAY(),\"Y\")))","v":""},null,null,null,null,null,""]
[null,null,"",null,null,null,null,null,""]
[null,null,"",null,null,null,null,null,""]
[null,null,"",null,null,null,null,null,""]
[null,null,"",null,null,null,null,null,""]
[null,null,"",null,null,null,null,null,""]
[null,null,"",null,null,null,null,null,""]
[null,null,"",null,null,null,null,null,""]
[null,null,"",null,null,null,null,null,""]
[null,null,"",null,null,null,null,null,""]
[null,null,"",null,null,null,null,null,""]
[null,null,"",null,null,null,null,null,""]
[null,null,"",null,null,null,null,null,""]
[null,null,"",null,null,null,null,null,{"$f":"IF(F1808=\"\",\"\",IF(H1808<>\"\",H1808-F1808,IF(G1808<>\"\",G1808-F1808,\"\")))","v":""}]
[null,null,"",null,null,null,null,null,""]
[null,null,"",null,null,null,null,null,""]
[null,null,"",null,null,null,null,null,""]
[null,null,"",null,null,null,null,null,""]
[null,null,"",null,null,null,null,null,""]
[null,null,"",null,null,null,null,null,""]
[null,null,"",null,null,null,null,null,""]
[null,null,"",null,null,null,null,null,""]
[null,null,"",null,null,null,null,null,""]
[null,null,"",null,null,null,null,null,""]
[null,null,"",null,null,null,null,null,""]
[null,null,"",null,null,null,null,null,""]
[null,null,"",null,null,null,null,null,""]
[null,null,"",null,null,null,null,null,""]
[null,null,"",null,null,null,null,null,""]
[null,null,"",null,null,null,null,null,""]
[null,null,"",null,null,null,null,null,""]
[null,null,"",null,null,null,null,null,""]
[null,null,"",null,null,null,null,null,""]
[null,null,"",null,null,null,null,null,""]
[null,null,"",null,null,null,null,null,""]
[null,null,"",null,null,null,null,null,""]
[null,null,"",null,null,null,null,null,""]
[null,null,"",null,null,null,null,null,""]
[null,null,"",null,null,null,null,null,""]
[null,null,"",null,null,null,null,null,""]
[null,null,"",null,null,null,null,null,""]
[null,null,"",null,null,null,null,null,""]
[null,null,"",null,null,null,null,null,""]
[null,null,"",null,null,null,null,null,""]
[null,null,"",null,null,null,null,null,""]
[null,null,"",null,null,null,null,null,""]
[null,null,"",null,null,null,null,null,""]
[null,null,"",null,null,null,null,null,""]
[null,null,"",null,null,null,null,null,""]
[null,null,"",null,null,null,null,null,""]
[null,null,"",null,null,null,null,null,""]
[null,null,"",null,null,null,null,null,""]
[null,null,"",null,null,null,null,null,""]
[null,null,"",null,null,null,null,null,""]
[null,null,"",null,null,null,null,null,""]
[null,null,"",null,null,null,null,null,""]
[null,null,"",null,null,null,null,null,""]
[null,null,"",null,null,null,null,null,""]
[null,null,"",null,null,null,null,null,""]
[null,null,"",null,null,null,null,null,""]
[null,null,"",null,null,null,null,null,""]
[null,null,"",null,null,null,null,null,""]
[null,null,"",null,null,null,null,null,""]
[null,null,"",null,null,null,null,null,""]
[null,null,{"$f":"IF(B1859=\"\",\"\",IF(D1859<>\"\",DATEDIF(B1859,D1859,\"Y\"),DATEDIF(B1859,TODAY(),\"Y\")))","v":""},null,null,null,null,null,""]
[null,null,"",null,null,null,null,null,""]
[null,null,"",null,null,null,null,null,""]
[null,null,"",null,null,null,null,null,""]
[null,null,"",null,null,null,null,null,""]
[null,null,"",null,null,null,null,null,""]
[null,null,"",null,null,null,null,null,""]
[null,null,"",null,null,null,null,null,""]
[null,null,"",null,null,null,null,null,""]
[null,null,"",null,null,null,null,null,""]
[null,null,"",null,null,null,null,null,""]
[null,null,"",null,null,null,null,null,""]
[null,null,"",null,null,null,null,null,""]
[null,null,"",null,null,null,null,null,{"$f":"IF(F1872=\"\",\"\",IF(H1872<>\"\",H1872-F1872,IF(G1872<>\"\",G1872-F1872,\"\")))","v":""}]
[null,null,"",null,null,null,null,null,""]
[null,null,"",null,null,null,null,null,""]
[null,null,"",null,null,null,null,null,""]
[null,null,"",null,null,null,null,null,""]
[null,null,"",null,null,null,null,null,""]
[null,null,"",null,null,null,null,null,""]
[null,null,"",null,null,null,null,null,""]
[null,null,"",null,null,null,null,null,""]
[null,null,"",null,null,null,null,null,""]
[null,null,"",null,null,null,null,null,""]
[null,null,"",null,null,null,null,null,""]
[null,null,"",null,null,null,null,null,""]
[null,null,"",null,null,null,null,null,""]
[null,null,"",null,null,null,null,null,""]
[null,null,"",null,null,null,null,null,""]
[null,null,"",null,null,null,null,null,""]
[null,null,"",null,null,null,null,null,""]
[null,null,"",null,null,null,null,null,""]
[null,null,"",null,null,null,null,null,""]
[null,null,"",null,null,null,null,null,""]
[null,null,"",null,null,null,null,null,""]
[null,null,"",null,null,null,null,null,""]
[null,null,"",null,null,null,null,null,""]
[null,null,"",null,null,null,null,null,""]
[null,null,"",null,null,null,null,null,""]
[null,null,"",null,null,null,null,null,""]
[null,null,"",null,null,null,null,null,""]
[null,null,"",null,null,null,null,null,""]
[null,null,"",null,null,null,null,null,""]
[null,null,"",null,null,null,null,null,""]
[null,null,"",null,null,null,null,null,""]
[null,null,"",null,null,null,null,null,""]
[null,null,"",null,null,null,null,null,""]
[null,null,"",null,null,null,null,null,""]
[null,null,"",null,null,null,null,null,""]
[null,null,"",null,null,null,null,null,""]
[null,null,"",null,null,null,null,null,""]
[null,null,"",null,null,null,null,null,""]
[null,null,"",null,null,null,null,null,""]
[null,null,"",null,null,null,null,null,""]
[null,null,"",null,null,null,null,null,""]
[null,null,"",null,null,null,null,null,""]
[null,null,"",null,null,null,null,null,""]
[null,null,"",null,null,null,null,null,""]
[null,null,"",null,null,null,null,null,""]
[null,null,"",null,null,null,null,null,""]
[null,null,"",null,null,null,null,null,""]
[null,null,"",null,null,null,null,null,""]
[null,null,"",null,null,null,null,null,""]
[null,null,"",null,null,null,null,null,""]
[null,null,{"$f":"IF(B1923=\"\",\"\",IF(D1923<>\"\",DATEDIF(B1923,D1923,\"Y\"),DATEDIF(B1923,TODAY(),\"Y\")))","v":""},null,null,null,null,null,""]
[null,null,"",null,null,null,null,null,""]
[null,null,"",null,null,null,null,null,""]
[null,null,"",null,null,null,null,null,""]
[null,null,"",null,null,null,null,null,""]
[null,null,"",null,null,null,null,null,""]
[null,null,"",null,null,null,null,null,""]
[null,null,"",null,null,null,null,null,""]
[null,null,"",null,null,null,null,null,""]
[null,null,"",null,null,null,null,null,""]
[null,null,"",null,null,null,null,null,""]
[null,null,"",null,null,null,null,null,""]
[null,null,"",null,null,null,null,null,""]
[null,null,"",null,null,null,null,null,{"$f":"IF(F1936=\"\",\"\",IF(H1936<>\"\",H1936-F1936,IF(G1936<>\"\",G1936-F1936,\"\")))","v":""}]
[null,null,"",null,null,null,null,null,""]
[null,null,"",null,null,null,null,null,""]
[null,null,"",null,null,null,null,null,""]
[null,null,"",null,null,null,null,null,""]
[null,null,"",null,null,null,null,null,""]
[null,null,"",null,null,null,null,null,""]
[null,null,"",null,null,null,null,null,""]
[null,null,"",null,null,null,null,null,""]
[null,null,"",null,null,null,null,null,""]
[null,null,"",null,null,null,null,null,""]
[null,null,"",null,null,null,null,null,""]
[null,null,"",null,null,null,null,null,""]
[null,null,"",null,null,null,null,null,""]
[null,null,"",null,null,null,null,null,""]
[null,null,"",null,null,null,null,null,""]
[null,null,"",null,null,null,null,null,""]
[null,null,"",null,null,null,null,null,""]
[null,null,"",null,null,null,null,null,""]
[null,null,"",null,null,null,null,null,""]
[null,null,"",null,null,null,null,null,""]
[null,null,"",null,null,null,null,null,""]
[null,null,"",null,null,null,null,null,""]
[null,null,"",null,null,null,null,null,""]
[null,null,"",null,null,null,null,null,""]
[null,null,"",null,null,null,null,null,""]
[null,null,"",null,null,null,null,null,""]
[null,null,"",null,null,null,null,null,""]
[null,null,"",null,null,null,null,null,""]
[null,null,"",null,null,null,null,null,""]
[null,null,"",null,null,null,null,null,""]
[null,null,"",null,null,null,null,null,""]
[null,null,"",null,null,null,null,null,""]
[null,null,"",null,null,null,null,null,""]
[null,null,"",null,null,null,null,null,""]
[null,null,"",null,null,null,null,null,""]
[null,null,"",null,null,null,null,null,""]
[null,null,"",null,null,null,null,null,""]
[null,null,"",null,null,null,null,null,""]
[null,null,"",null,null,null,null,null,""]
[null,null,"",null,null,null,null,null,""]
[null,null,"",null,null,null,null,null,""]
[null,null,"",null,null,null,null,null,""]
[null,null,"",null,null,null,null,null,""]
[null,null,"",null,null,null,null,null,""]
[null,null,"",null,null,null,null,null,""]
[null,null,"",null,null,null,null,null,""]
[null,null,"",null,null,null,null,null,""]
[null,null,"",null,null,null,null,null,""]
[null,null,"",null,null,null,null,null,""]
[null,null,"",null,null,null,null,null,""]
[null,null,{"$f":"IF(B1987=\"\",\"\",IF(D1987<>\"\",DATEDIF(B1987,D1987,\"Y\"),DATEDIF(B1987,TODAY(),\"Y\")))","v":""},null,null,null,null,null,""]
[null,null,"",null,null,null,null,null,""]
[null,null,"",null,null,null,null,null,""]
[null,null,"",null,null,null,null,null,""]
[null,null,"",null,null,null,null,null,""]
[null,null,"",null,null,null,null,null,""]
[null,null,"",null,null,null,null,null,""]
[null,null,"",null,null,null,null,null,""]
[null,null,"",null,null,null,null,null,""]
[null,null,"",null,null,null,null,null,""]
[null,null,"",null,null,null,null,null,""]
[null,null,"",null,null,null,null,null,""]
[null,null,"",null,null,null,null,null,""]
[null,null,"",null,null,null,null,null,{"$f":"IF(F2000=\"\",\"\",IF(H2000<>\"\",H2000-F2000,IF(G2000<>\"\",G2000-F2000,\"\")))","v":""}]
[null,null,"",null,null,null,null,null,""]
[null,null,"",null,null,null,null,null,""]
[null,null,"",null,null,null,null,null,""]
[null,null,"",null,null,null,null,null,""]
[null,null,"",null,null,null,null,null,""]
[null,null,"",null,null,null,null,null,""]
[null,null,"",null,null,null,null,null,""]
[null,null,"",null,null,null,null,null,""]
[null,null,"",null,null,null,null,null,""]
[null,null,"",null,null,null,null,null,""]
[null,null,"",null,null,null,null,null,""]
[null,null,"",null,null,null,null,null,""]
[null,null,"",null,null,null,null,null,""]
[null,null,"",null,null,null,null,null,""]
[null,null,"",null,null,null,null,null,""]
[null,null,"",null,null,null,null,null,""]
[null,null,"",null,null,null,null,null,""]
[null,null,"",null,null,null,null,null,""]
[null,null,"",null,null,null,null,null,""]
[null,null,"",null,null,null,null,null,""]
[null,null,"",null,null,null,null,null,""]
[null,null,"",null,null,null,null,null,""]
[null,null,"",null,null,null,null,null,""]
[null,null,"",null,null,null,null,null,""]
[null,null,"",null,null,null,null,null,""]
[null,null,"",null,null,null,null,null,""]
[null,null,"",null,null,null,null,null,""]
[null,null,"",null,null,null,null,null,""]
[null,null,"",null,null,null,null,null,""]
[null,null,"",null,null,null,null,null,""]
[null,null,"",null,null,null,null,null,""]
[null,null,"",null,null,null,null,null,""]
[null,null,"",null,null,null,null,null,""]
[null,null,"",null,null,null,null,null,""]
[null,null,"",null,null,null,null,null,""]
[null,null,"",null,null,null,null,null,""]
[null,null,"",null,null,null,null,null,""]
[null,null,"",null,null,null,null,null,""]
[null,null,"",null,null,null,null,null,""]
[null,null,"",null,null,null,null,null,""]
[null,null,"",null,null,null,null,null,""]
[null,null,"",null,null,null,null,null,""]
[null,null,"",null,null,null,null,null,""]
[null,null,"",null,null,null,null,null,""]
[null,null,"",null,null,null,null,null,""]
[null,null,"",null,null,null,null,null,""]
[null,null,"",null,null,null,null,null,""]
[null,null,"",null,null,null,null,null,""]
[null,null,"",null,null,null,null,null,""]
[null,null,"",null,null,null,null,null,""]
[null,null,{"$f":"IF(B2051=\"\",\"\",IF(D2051<>\"\",DATEDIF(B2051,D2051,\"Y\"),DATEDIF(B2051,TODAY(),\"Y\")))","v":""},null,null,null,null,null,""]
[null,null,"",null,null,null,null,null,""]
[null,null,"",null,null,null,null,null,""]
[null,null,"",null,null,null,null,null,""]
[null,null,"",null,null,null,null,null,""]
[null,null,"",null,null,null,null,null,""]
[null,null,"",null,null,null,null,null,""]
[null,null,"",null,null,null,null,null,""]
[null,null,"",null,null,null,null,null,""]
[null,null,"",null,null,null,null,null,""]
[null,null,"",null,null,null,null,null,""]
[null,null,"",null,null,null,null,null,""]
[null,null,"",null,null,null,null,null,""]
[null,null,"",null,null,null,null,null,{"$f":"IF(F2064=\"\",\"\",IF(H2064<>\"\",H2064-F2064,IF(G2064<>\"\",G2064-F2064,\"\")))","v":""}]
[null,null,"",null,null,null,null,null,""]
[null,null,"",null,null,null,null,null,""]
[null,null,"",null,null,null,null,null,""]
[null,null,"",null,null,null,null,null,""]
[null,null,"",null,null,null,null,null,""]
[null,null,"",null,null,null,null,null,""]
[null,null,"",null,null,null,null,null,""]
[null,null,"",null,null,null,null,null,""]
[null,null,"",null,null,null,null,null,""]
[null,null,"",null,null,null,null,null,""]
[null,null,"",null,null,null,null,null,""]
[null,null,"",null,null,null,null,null,""]
[null,null,"",null,null,null,null,null,""]
[null,null,"",null,null,null,null,null,""]
[null,null,"",null,null,null,null,null,""]
[null,null,"",null,null,null,null,null,""]
[null,null,"",null,null,null,null,null,""]
[null,null,"",null,null,null,null,null,""]
[null,null,"",null,null,null,null,null,""]
[null,null,"",null,null,null,null,null,""]
[null,null,"",null,null,null,null,null,""]
[null,null,"",null,null,null,null,null,""]
[null,null,"",null,null,null,null,null,""]
[null,null,"",null,null,null,null,null,""]
[null,null,"",null,null,null,null,null,""]
[null,null,"",null,null,null,null,null,""]
[null,null,"",null,null,null,null,null,""]
[null,null,"",null,null,null,null,null,""]
[null,null,"",null,null,null,null,null,""]
[null,null,"",null,null,null,null,null,""]
[null,null,"",null,null,null,null,null,""]
[null,null,"",null,null,null,null,null,""]
[null,null,"",null,null,null,null,null,""]
[null,null,"",null,null,null,null,null,""]
[null,null,"",null,null,null,null,null,""]
[null,null,"",null,null,null,null,null,""]
[null,null,"",null,null,null,null,null,""]
[null,null,"",null,null,null,null,null,""]
[null,null,"",null,null,null,null,null,""]
[null,null,"",null,null,null,null,null,""]
[null,null,"",null,null,null,null,null,""]
[null,null,"",null,null,null,null,null,""]
[null,null,"",null,null,null,null,null,""]
[null,null,"",null,null,null,null,null,""]
[null,null,"",null,null,null,null,null,""]
[null,null,"",null,null,null,null,null,""]
[null,null,"",null,null,null,null,null,""]
[null,null,"",null,null,null,null,null,""]
[null,null,"",null,null,null,null,null,""]
[null,null,"",null,null,null,null,null,""]
[null,null,{"$f":"IF(B2115=\"\",\"\",IF(D2115<>\"\",DATEDIF(B2115,D2115,\"Y\"),DATEDIF(B2115,TODAY(),\"Y\")))","v":""},null,null,null,null,null,""]
[null,null,"",null,null,null,null,null,""]
[null,null,"",null,null,null,null,null,""]
[null,null,"",null,null,null,null,null,""]
[null,null,"",null,null,null,null,null,""]
[null,null,"",null,null,null,null,null,""]
[null,null,"",null,null,null,null,null,""]
[null,null,"",null,null,null,null,null,""]
[null,null,"",null,null,null,null,null,""]
[null,null,"",null,null,null,null,null,""]
[null,null,"",null,null,null,null,null,""]
[null,null,"",null,null,null,null,null,""]
[null,null,"",null,null,null,null,null,""]
[null,null,"",null,null,null,null,null,{"$f":"IF(F2128=\"\",\"\",IF(H2128<>\"\",H2128-F2128,IF(G2128<>\"\",G2128-F2128,\"\")))","v":""}]
[null,null,"",null,null,null,null,null,""]
[null,null,"",null,null,null,null,null,""]
[null,null,"",null,null,null,null,null,""]
[null,null,"",null,null,null,null,null,""]
[null,null,"",null,null,null,null,null,""]
[null,null,"",null,null,null,null,null,""]
[null,null,"",null,null,null,null,null,""]
[null,null,"",null,null,null,null,null,""]
[null,null,"",null,null,null,null,null,""]
[null,null,"",null,null,null,null,null,""]
[null,null,"",null,null,null,null,null,""]
[null,null,"",null,null,null,null,null,""]
[null,null,"",null,null,null,null,null,""]
[null,null,"",null,null,null,null,null,""]
[null,null,"",null,null,null,null,null,""]
[null,null,"",null,null,null,null,null,""]
[null,null,"",null,null,null,null,null,""]
[null,null,"",null,null,null,null,null,""]
[null,null,"",null,null,null,null,null,""]
[null,null,"",null,null,null,null,null,""]
[null,null,"",null,null,null,null,null,""]
[null,null,"",null,null,null,null,null,""]
[null,null,"",null,null,null,null,null,""]
[null,null,"",null,null,null,null,null,""]
[null,null,"",null,null,null,null,null,""]
[null,null,"",null,null,null,null,null,""]
[null,null,"",null,null,null,null,null,""]
[null,null,"",null,null,null,null,null,""]
[null,null,"",null,null,null,null,null,""]
[null,null,"",null,null,null,null,null,""]
[null,null,"",null,null,null,null,null,""]
[null,null,"",null,null,null,null,null,""]
[null,null,"",null,null,null,null,null,""]
[null,null,"",null,null,null,null,null,""]
[null,null,"",null,null,null,null,null,""]
[null,null,"",null,null,null,null,null,""]
[null,null,"",null,null,null,null,null,""]
[null,null,"",null,null,null,null,null,""]
[null,null,"",null,null,null,null,null,""]
[null,null,"",null,null,null,null,null,""]
[null,null,"",null,null,null,null,null,""]
[null,null,"",null,null,null,null,null,""]
[null,null,"",null,null,null,null,null,""]
[null,null,"",null,null,null,null,null,""]
[null,null,"",null,null,null,null,null,""]
[null,null,"",null,null,null,null,null,""]
[null,null,"",null,null,null,null,null,""]
[null,null,"",null,null,null,null,null,""]
[null,null,"",null,null,null,null,null,""]
[null,null,"",null,null,null,null,null,""]
[null,null,{"$f":"IF(B2179=\"\",\"\",IF(D2179<>\"\",DATEDIF(B2179,D2179,\"Y\"),DATEDIF(B2179,TODAY(),\"Y\")))","v":""},null,null,null,null,null,""]
[null,null,"",null,null,null,null,null,""]
[null,null,"",null,null,null,null,null,""]
[null,null,"",null,null,null,null,null,""]
[null,null,"",null,null,null,null,null,""]
[null,null,"",null,null,null,null,null,""]
[null,null,"",null,null,null,null,null,""]
[null,null,"",null,null,null,null,null,""]
[null,null,"",null,null,null,null,null,""]
[null,null,"",null,null,null,null,null,""]
[null,null,"",null,null,null,null,null,""]
[null,null,"",null,null,null,null,null,""]
[null,null,"",null,null,null,null,null,""]
[null,null,"",null,null,null,null,null,{"$f":"IF(F2192=\"\",\"\",IF(H2192<>\"\",H2192-F2192,IF(G2192<>\"\",G2192-F2192,\"\")))","v":""}]
[null,null,"",null,null,null,null,null,""]
[null,null,"",null,null,null,null,null,""]
[null,null,"",null,null,null,null,null,""]
[null,null,"",null,null,null,null,null,""]
[null,null,"",null,null,null,null,null,""]
[null,null,"",null,null,null,null,null,""]
[null,null,"",null,null,null,null,null,""]
[null,null,"",null,null,null,null,null,""]
[null,null,"",null,null,null,null,null,""]
[null,null,"",null,null,null,null,null,""]
[null,null,"",null,null,null,null,null,""]
[null,null,"",null,null,null,null,null,""]
[null,null,"",null,null,null,null,null,""]
[null,null,"",null,null,null,null,null,""]
[null,null,"",null,null,null,null,null,""]
[null,null,"",null,null,null,null,null,""]
[null,null,"",null,null,null,null,null,""]
[null,null,"",null,null,null,null,null,""]
[null,null,"",null,null,null,null,null,""]
[null,null,"",null,null,null,null,null,""]
[null,null,"",null,null,null,null,null,""]
[null,null,"",null,null,null,null,null,""]
[null,null,"",null,null,null,null,null,""]
[null,null,"",null,null,null,null,null,""]
[null,null,"",null,null,null,null,null,""]
[null,null,"",null,null,null,null,null,""]
[null,null,"",null,null,null,null,null,""]
[null,null,"",null,null,null,null,null,""]
[null,null,"",null,null,null,null,null,""]
[null,null,"",null,null,null,null,null,""]
[null,null,"",null,null,null,null,null,""]
[null,null,"",null,null,null,null,null,""]
[null,null,"",null,null,null,null,null,""]
[null,null,"",null,null,null,null,null,""]
[null,null,"",null,null,null,null,null,""]
[null,null,"",null,null,null,null,null,""]
[null,null,"",null,null,null,null,null,""]
[null,null,"",null,null,null,null,null,""]
[null,null,"",null,null,null,null,null,""]
[null,null,"",null,null,null,null,null,""]
[null,null,"",null,null,null,null,null,""]
[null,null,"",null,null,null,null,null,""]
[null,null,"",null,null,null,null,null,""]
[null,null,"",null,null,null,null,null,""]
[null,null,"",null,null,null,null,null,""]
[null,null,"",null,null,null,null,null,""]
[null,null,"",null,null,null,null,null,""]
[null,null,"",null,null,null,null,null,""]
[null,null,"",null,null,null,null,null,""]
[null,null,"",null,null,null,null,null,""]
[null,null,{"$f":"IF(B2243=\"\",\"\",IF(D2243<>\"\",DATEDIF(B2243,D2243,\"Y\"),DATEDIF(B2243,TODAY(),\"Y\")))","v":""},null,null,null,null,null,""]
[null,null,"",null,null,null,null,null,""]
[null,null,"",null,null,null,null,null,""]
[null,null,"",null,null,null,null,null,""]
[null,null,"",null,null,null,null,null,""]
[null,null,"",null,null,null,null,null,""]
[null,null,"",null,null,null,null,null,""]
[null,null,"",null,null,null,null,null,""]
[null,null,"",null,null,null,null,null,""]
[null,null,"",null,null,null,null,null,""]
[null,null,"",null,null,null,null,null,""]
[null,null,"",null,null,null,null,null,""]
[null,null,"",null,null,null,null,null,""]
[null,null,"",null,null,null,null,null,{"$f":"IF(F2256=\"\",\"\",IF(H2256<>\"\",H2256-F2256,IF(G2256<>\"\",G2256-F2256,\"\")))","v":""}]
[null,null,"",null,null,null,null,null,""]
[null,null,"",null,null,null,null,null,""]
[null,null,"",null,null,null,null,null,""]
[null,null,"",null,null,null,null,null,""]
[null,null,"",null,null,null,null,null,""]
[null,null,"",null,null,null,null,null,""]
[null,null,"",null,null,null,null,null,""]
[null,null,"",null,null,null,null,null,""]
[null,null,"",null,null,null,null,null,""]
[null,null,"",null,null,null,null,null,""]
[null,null,"",null,null,null,null,null,""]
[null,null,"",null,null,null,null,null,""]
[null,null,"",null,null,null,null,null,""]
[null,null,"",null,null,null,null,null,""]
[null,null,"",null,null,null,null,null,""]
[null,null,"",null,null,null,null,null,""]
[null,null,"",null,null,null,null,null,""]
[null,null,"",null,null,null,null,null,""]
[null,null,"",null,null,null,null,null,""]
[null,null,"",null,null,null,null,null,""]
[null,null,"",null,null,null,null,null,""]
[null,null,"",null,null,null,null,null,""]
[null,null,"",null,null,null,null,null,""]
[null,null,"",null,null,null,null,null,""]
[null,null,"",null,null,null,null,null,""]
[null,null,"",null,null,null,null,null,""]
[null,null,"",null,null,null,null,null,""]
[null,null,"",null,null,null,null,null,""]
[null,null,"",null,null,null,null,null,""]
[null,null,"",null,null,null,null,null,""]
[null,null,"",null,null,null,null,null,""]
[null,null,"",null,null,null,null,null,""]
[null,null,"",null,null,null,null,null,""]
[null,null,"",null,null,null,null,null,""]
[null,null,"",null,null,null,null,null,""]
[null,null,"",null,null,null,null,null,""]
[null,null,"",null,null,null,null,null,""]
[null,null,"",null,null,null,null,null,""]
[null,null,"",null,null,null,null,null,""]
[null,null,"",null,null,null,null,null,""]
[null,null,"",null,null,null,null,null,""]
[null,null,"",null,null,null,null,null,""]
[null,null,"",null,null,null,null,null,""]
[null,null,"",null,null,null,null,null,""]
[null,null,"",null,null,null,null,null,""]
[null,null,"",null,null,null,null,null,""]
[null,null,"",null,null,null,null,null,""]
[null,null,"",null,null,null,null,null,""]
[null,null,"",null,null,null,null,null,""]
[null,null,"",null,null,null,null,null,""]
[null,null,{"$f":"IF(B2307=\"\",\"\",IF(D2307<>\"\",DATEDIF(B2307,D2307,\"Y\"),DATEDIF(B2307,TODAY(),\"Y\")))","v":""},null,null,null,null,null,""]
[null,null,"",null,null,null,null,null,""]
[null,null,"",null,null,null,null,null,""]
[null,null,"",null,null,null,null,null,""]
[null,null,"",null,null,null,null,null,""]
[null,null,"",null,null,null,null,null,""]
[null,null,"",null,null,null,null,null,""]
[null,null,"",null,null,null,null,null,""]
[null,null,"",null,null,null,null,null,""]
[null,null,"",null,null,null,null,null,""]
[null,null,"",null,null,null,null,null,""]
[null,null,"",null,null,null,null,null,""]
[null,null,"",null,null,null,null,null,""]
[null,null,"",null,null,null,null,null,{"$f":"IF(F2320=\"\",\"\",IF(H2320<>\"\",H2320-F2320,IF(G2320<>\"\",G2320-F2320,\"\")))","v":""}]
[null,null,"",null,null,null,null,null,""]
[null,null,"",null,null,null,null,null,""]
[null,null,"",null,null,null,null,null,""]
[null,null,"",null,null,null,null,null,""]
[null,null,"",null,null,null,null,null,""]
[null,null,"",null,null,null,null,null,""]
[null,null,"",null,null,null,null,null,""]
[null,null,"",null,null,null,null,null,""]
[null,null,"",null,null,null,null,null,""]
[null,null,"",null,null,null,null,null,""]
[null,null,"",null,null,null,null,null,""]
[null,null,"",null,null,null,null,null,""]
[null,null,"",null,null,null,null,null,""]
[null,null,"",null,null,null,null,null,""]
[null,null,"",null,null,null,null,null,""]
[null,null,"",null,null,null,null,null,""]
[null,null,"",null,null,null,null,null,""]
[null,null,"",null,null,null,null,null,""]
[null,null,"",null,null,null,null,null,""]
[null,null,"",null,null,null,null,null,""]
[null,null,"",null,null,null,null,null,""]
[null,null,"",null,null,null,null,null,""]
[null,null,"",null,null,null,null,null,""]
[null,null,"",null,null,null,null,null,""]
[null,null,"",null,null,null,null,null,""]
[null,null,"",null,null,null,null,null,""]
[null,null,"",null,null,null,null,null,""]
[null,null,"",null,null,null,null,null,""]
[null,null,"",null,null,null,null,null,""]
[null,null,"",null,null,null,null,null,""]
[null,null,"",null,null,null,null,null,""]
[null,null,"",null,null,null,null,null,""]
[null,null,"",null,null,null,null,null,""]
[null,null,"",null,null,null,null,null,""]
[null,null,"",null,null,null,null,null,""]
[null,null,"",null,null,null,null,null,""]
[null,null,"",null,null,null,null,null,""]
[null,null,"",null,null,null,null,null,""]
[null,null,"",null,null,null,null,null,""]
[null,null,"",null,null,null,null,null,""]
[null,null,"",null,null,null,null,null,""]
[null,null,"",null,null,null,null,null,""]
[null,null,"",null,null,null,null,null,""]
[null,null,"",null,null,null,null,null,""]
[null,null,"",null,null,null,null,null,""]
[null,null,"",null,null,null,null,null,""]
[null,null,"",null,null,null,null,null,""]
[null,null,"",null,null,null,null,null,""]
[null,null,"",null,null,null,null,null,""]
[null,null,"",null,null,null,null,null,""]
[null,null,{"$f":"IF(B2371=\"\",\"\",IF(D2371<>\"\",DATEDIF(B2371,D2371,\"Y\"),DATEDIF(B2371,TODAY(),\"Y\")))","v":""},null,null,null,null,null,""]
[null,null,"",null,null,null,null,null,""]
[null,null,"",null,null,null,null,null,""]
[null,null,"",null,null,null,null,null,""]
[null,null,"",null,null,null,null,null,""]
[null,null,"",null,null,null,null,null,""]
[null,null,"",null,null,null,null,null,""]
[null,null,"",null,null,null,null,null,""]
[null,null,"",null,null,null,null,null,""]
[null,null,"",null,null,null,null,null,""]
[null,null,"",null,null,null,null,null,""]
[null,null,"",null,null,null,null,null,""]
[null,null,"",null,null,null,null,null,""]
[null,null,"",null,null,null,null,null,{"$f":"IF(F2384=\"\",\"\",IF(H2384<>\"\",H2384-F2384,IF(G2384<>\"\",G2384-F2384,\"\")))","v":""}]
[null,null,"",null,null,null,null,null,""]
[null,null,"",null,null,null,null,null,""]
[null,null,"",null,null,null,null,null,""]
[null,null,"",null,null,null,null,null,""]
[null,null,"",null,null,null,null,null,""]
[null,null,"",null,null,null,null,null,""]
[null,null,"",null,null,null,null,null,""]
[null,null,"",null,null,null,null,null,""]
[null,null,"",null,null,null,null,null,""]
[null,null,"",null,null,null,null,null,""]
[null,null,"",null,null,null,null,null,""]
[null,null,"",null,null,null,null,null,""]
[null,null,"",null,null,null,null,null,""]
[null,null,"",null,null,null,null,null,""]
[null,null,"",null,null,null,null,null,""]
[null,null,"",null,null,null,null,null,""]
[null,null,"",null,null,null,null,null,""]
[null,null,"",null,null,null,null,null,""]
[null,null,"",null,null,null,null,null,""]
[null,null,"",null,null,null,null,null,""]
[null,null,"",null,null,null,null,null,""]
[null,null,"",null,null,null,null,null,""]
[null,null,"",null,null,null,null,null,""]
[null,null,"",null,null,null,null,null,""]
[null,null,"",null,null,null,null,null,""]
[null,null,"",null,null,null,null,null,""]
[null,null,"",null,null,null,null,null,""]
[null,null,"",null,null,null,null,null,""]
[null,null,"",null,null,null,null,null,""]
[null,null,"",null,null,null,null,null,""]
[null,null,"",null,null,null,null,null,""]
[null,null,"",null,null,null,null,null,""]
[null,null,"",null,null,null,null,null,""]
[null,null,"",null,null,null,null,null,""]
[null,null,"",null,null,null,null,null,""]
[null,null,"",null,null,null,null,null,""]
[null,null,"",null,null,null,null,null,""]
[null,null,"",null,null,null,null,null,""]
[null,null,"",null,null,null,null,null,""]
[null,null,"",null,null,null,null,null,""]
[null,null,"",null,null,null,null,null,""]
[null,null,"",null,null,null,null,null,""]
[null,null,"",null,null,null,null,null,""]
[null,null,"",null,null,null,null,null,""]
[null,null,"",null,null,null,null,null,""]
[null,null,"",null,null,null,null,null,""]
[null,null,"",null,null,null,null,null,""]
[null,null,"",null,null,null,null,null,""]
[null,null,"",null,null,null,null,null,""]
[null,null,"",null,null,null,null,null,""]
[null,null,{"$f":"IF(B2435=\"\",\"\",IF(D2435<>\"\",DATEDIF(B2435,D2435,\"Y\"),DATEDIF(B2435,TODAY(),\"Y\")))","v":""},null,null,null,null,null,""]
[null,null,"",null,null,null,null,null,""]
[null,null,"",null,null,null,null,null,""]
[null,null,"",null,null,null,null,null,""]
[null,null,"",null,null,null,null,null,""]
[null,null,"",null,null,null,null,null,""]
[null,null,"",null,null,null,null,null,""]
[null,null,"",null,null,null,null,null,""]
[null,null,"",null,null,null,null,null,""]
[null,null,"",null,null,null,null,null,""]
[null,null,"",null,null,null,null,null,""]
[null,null,"",null,null,null,null,null,""]
[null,null,"",null,null,null,null,null,""]
[null,null,"",null,null,null,null,null,{"$f":"IF(F2448=\"\",\"\",IF(H2448<>\"\",H2448-F2448,IF(G2448<>\"\",G2448-F2448,\"\")))","v":""}]
[null,null,"",null,null,null,null,null,""]
[null,null,"",null,null,null,null,null,""]
[null,null,"",null,null,null,null,null,""]
[null,null,"",null,null,null,null,null,""]
[null,null,"",null,null,null,null,null,""]
[null,null,"",null,null,null,null,null,""]
[null,null,"",null,null,null,null,null,""]
[null,null,"",null,null,null,null,null,""]
[null,null,"",null,null,null,null,null,""]
[null,null,"",null,null,null,null,null,""]
[null,null,"",null,null,null,null,null,""]
[null,null,"",null,null,null,null,null,""]
[null,null,"",null,null,null,null,null,""]
[null,null,"",null,null,null,null,null,""]
[null,null,"",null,null,null,null,null,""]
[null,null,"",null,null,null,null,null,""]
[null,null,"",null,null,null,null,null,""]
[null,null,"",null,null,null,null,null,""]
[null,null,"",null,null,null,null,null,""]
[null,null,"",null,null,null,null,null,""]
[null,null,"",null,null,null,null,null,""]
[null,null,"",null,null,null,null,null,""]
[null,null,"",null,null,null,null,null,""]
[null,null,"",null,null,null,null,null,""]
[null,null,"",null,null,null,null,null,""]
[null,null,"",null,null,null,null,null,""]
[null,null,"",null,null,null,null,null,""]
[null,null,"",null,null,null,null,null,""]
[null,null,"",null,null,null,null,null,""]
[null,null,"",null,null,null,null,null,""]
[null,null,"",null,null,null,null,null,""]
[null,null,"",null,null,null,null,null,""]
[null,null,"",null,null,null,null,null,""]
[null,null,"",null,null,null,null,null,""]
[null,null,"",null,null,null,null,null,""]
[null,null,"",null,null,null,null,null,""]
[null,null,"",null,null,null,null,null,""]
[null,null,"",null,null,null,null,null,""]
[null,null,"",null,null,null,null,null,""]
[null,null,"",null,null,null,null,null,""]
[null,null,"",null,null,null,null,null,""]
[null,null,"",null,null,null,null,null,""]
[null,null,"",null,null,null,null,null,""]
[null,null,"",null,null,null,null,null,""]
[null,null,"",null,null,null,null,null,""]
[null,null,"",null,null,null,null,null,""]
[null,null,"",null,null,null,null,null,""]
[null,null,"",null,null,null,null,null,""]
[null,null,"",null,null,null,null,null,""]
[null,null,"",null,null,null,null,null,""]
[null,null,{"$f":"IF(B2499=\"\",\"\",IF(D2499<>\"\",DATEDIF(B2499,D2499,\"Y\"),DATEDIF(B2499,TODAY(),\"Y\")))","v":""},null,null,null,null,null,""]
[null,null,"",null,null,null,null,null,""]
[null,null,"",null,null,null,null,null,""]
[null,null,"",null,null,null,null,null,""]
[null,null,"",null,null,null,null,null,""]
[null,null,"",null,null,null,null,null,""]
[null,null,"",null,null,null,null,null,""]
[null,null,"",null,null,null,null,null,""]
[null,null,"",null,null,null,null,null,""]
[null,null,"",null,null,null,null,null,""]
[null,null,"",null,null,null,null,null,""]
[null,null,"",null,null,null,null,null,""]
[null,null,"",null,null,null,null,null,""]
[null,null,"",null,null,null,null,null,{"$f":"IF(F2512=\"\",\"\",IF(H2512<>\"\",H2512-F2512,IF(G2512<>\"\",G2512-F2512,\"\")))","v":""}]
[null,null,"",null,null,null,null,null,""]
[null,null,"",null,null,null,null,null,""]
[null,null,"",null,null,null,null,null,""]
[null,null,"",null,null,null,null,null,""]
[null,null,"",null,null,null,null,null,""]
[null,null,"",null,null,null,null,null,""]
[null,null,"",null,null,null,null,null,""]
[null,null,"",null,null,null,null,null,""]
[null,null,"",null,null,null,null,null,""]
[null,null,"",null,null,null,null,null,""]
[null,null,"",null,null,null,null,null,""]
[null,null,"",null,null,null,null,null,""]
[null,null,"",null,null,null,null,null,""]
[null,null,"",null,null,null,null,null,""]
[null,null,"",null,null,null,null,null,""]
[null,null,"",null,null,null,null,null,""]
[null,null,"",null,null,null,null,null,""]
[null,null,"",null,null,null,null,null,""]
[null,null,"",null,null,null,null,null,""]
[null,null,"",null,null,null,null,null,""]
[null,null,"",null,null,null,null,null,""]
[null,null,"",null,null,null,null,null,""]
[null,null,"",null,null,null,null,null,""]
[null,null,"",null,null,null,null,null,""]
[null,null,"",null,null,null,null,null,""]
[null,null,"",null,null,null,null,null,""]
[null,null,"",null,null,null,null,null,""]
[null,null,"",null,null,null,null,null,""]
[null,null,"",null,null,null,null,null,""]
[null,null,"",null,null,null,null,null,""]
[null,null,"",null,null,null,null,null,""]
[null,null,"",null,null,null,null,null,""]
[null,null,"",null,null,null,null,null,""]
[null,null,"",null,null,null,null,null,""]
[null,null,"",null,null,null,null,null,""]
[null,null,"",null,null,null,null,null,""]
[null,null,"",null,null,null,null,null,""]
[null,null,"",null,null,null,null,null,""]
[null,null,"",null,null,null,null,null,""]
[null,null,"",null,null,null,null,null,""]
[null,null,"",null,null,null,null,null,""]
[null,null,"",null,null,null,null,null,""]
[null,null,"",null,null,null,null,null,""]
[null,null,"",null,null,null,null,null,""]
[null,null,"",null,null,null,null,null,""]
[null,null,"",null,null,null,null,null,""]
[null,null,"",null,null,null,null,null,""]
[null,null,"",null,null,null,null,null,""]
[null,null,"",null,null,null,null,null,""]
[null,null,"",null,null,null,null,null,""]
[null,null,{"$f":"IF(B2563=\"\",\"\",IF(D2563<>\"\",DATEDIF(B2563,D2563,\"Y\"),DATEDIF(B2563,TODAY(),\"Y\")))","v":""},null,null,null,null,null,""]
[null,null,"",null,null,null,null,null,""]
[null,null,"",null,null,null,null,null,""]
[null,null,"",null,null,null,null,null,""]
[null,null,"",null,null,null,null,null,""]
[null,null,"",null,null,null,null,null,""]
[null,null,"",null,null,null,null,null,""]
[null,null,"",null,null,null,null,null,""]
[null,null,"",null,null,null,null,null,""]
[null,null,"",null,null,null,null,null,""]
[null,null,"",null,null,null,null,null,""]
[null,null,"",null,null,null,null,null,""]
[null,null,"",null,null,null,null,null,""]
[null,null,"",null,null,null,null,null,{"$f":"IF(F2576=\"\",\"\",IF(H2576<>\"\",H2576-F2576,IF(G2576<>\"\",G2576-F2576,\"\")))","v":""}]
[null,null,"",null,null,null,null,null,""]
[null,null,"",null,null,null,null,null,""]
[null,null,"",null,null,null,null,null,""]
[null,null,"",null,null,null,null,null,""]
[null,null,"",null,null,null,null,null,""]
[null,null,"",null,null,null,null,null,""]
[null,null,"",null,null,null,null,null,""]
[null,null,"",null,null,null,null,null,""]
[null,null,"",null,null,null,null,null,""]
[null,null,"",null,null,null,null,null,""]
[null,null,"",null,null,null,null,null,""]
[null,null,"",null,null,null,null,null,""]
[null,null,"",null,null,null,null,null,""]
[null,null,"",null,null,null,null,null,""]
[null,null,"",null,null,null,null,null,""]
[null,null,"",null,null,null,null,null,""]
[null,null,"",null,null,null,null,null,""]
[null,null,"",null,null,null,null,null,""]
[null,null,"",null,null,null,null,null,""]
[null,null,"",null,null,null,null,null,""]
[null,null,"",null,null,null,null,null,""]
[null,null,"",null,null,null,null,null,""]
[null,null,"",null,null,null,null,null,""]
[null,null,"",null,null,null,null,null,""]
[null,null,"",null,null,null,null,null,""]
[null,null,"",null,null,null,null,null,""]
[null,null,"",null,null,null,null,null,""]
[null,null,"",null,null,null,null,null,""]
[null,null,"",null,null,null,null,null,""]
[null,null,"",null,null,null,null,null,""]
[null,null,"",null,null,null,null,null,""]
[null,null,"",null,null,null,null,null,""]
[null,null,"",null,null,null,null,null,""]
[null,null,"",null,null,null,null,null,""]
[null,null,"",null,null,null,null,null,""]
[null,null,"",null,null,null,null,null,""]
[null,null,"",null,null,null,null,null,""]
[null,null,"",null,null,null,null,null,""]
[null,null,"",null,null,null,null,null,""]
[null,null,"",null,null,null,null,null,""]
[null,null,"",null,null,null,null,null,""]
[null,null,"",null,null,null,null,null,""]
[null,null,"",null,null,null,null,null,""]
[null,null,"",null,null,null,null,null,""]
[null,null,"",null,null,null,null,null,""]
[null,null,"",null,null,null,null,null,""]
[null,null,"",null,null,null,null,null,""]
[null,null,"",null,null,null,null,null,""]
[null,null,"",null,null,null,null,null,""]
[null,null,"",null,null,null,null,null,""]
[null,null,{"$f":"IF(B2627=\"\",\"\",IF(D2627<>\"\",DATEDIF(B2627,D2627,\"Y\"),DATEDIF(B2627,TODAY(),\"Y\")))","v":""},null,null,null,null,null,""]
[null,null,"",null,null,null,null,null,""]
[null,null,"",null,null,null,null,null,""]
[null,null,"",null,null,null,null,null,""]
[null,null,"",null,null,null,null,null,""]
[null,null,"",null,null,null,null,null,""]
[null,null,"",null,null,null,null,null,""]
[null,null,"",null,null,null,null,null,""]
[null,null,"",null,null,null,null,null,""]
[null,null,"",null,null,null,null,null,""]
[null,null,"",null,null,null,null,null,""]
[null,null,"",null,null,null,null,null,""]
[null,null,"",null,null,null,null,null,""]
[null,null,"",null,null,null,null,null,{"$f":"IF(F2640=\"\",\"\",IF(H2640<>\"\",H2640-F2640,IF(G2640<>\"\",G2640-F2640,\"\")))","v":""}]
[null,null,"",null,null,null,null,null,""]
[null,null,"",null,null,null,null,null,""]
[null,null,"",null,null,null,null,null,""]
[null,null,"",null,null,null,null,null,""]
[null,null,"",null,null,null,null,null,""]
[null,null,"",null,null,null,null,null,""]
[null,null,"",null,null,null,null,null,""]
[null,null,"",null,null,null,null,null,""]
[null,null,"",null,null,null,null,null,""]
[null,null,"",null,null,null,null,null,""]
[null,null,"",null,null,null,null,null,""]
[null,null,"",null,null,null,null,null,""]
[null,null,"",null,null,null,null,null,""]
[null,null,"",null,null,null,null,null,""]
[null,null,"",null,null,null,null,null,""]
[null,null,"",null,null,null,null,null,""]
[null,null,"",null,null,null,null,null,""]
[null,null,"",null,null,null,null,null,""]
[null,null,"",null,null,null,null,null,""]
[null,null,"",null,null,null,null,null,""]
[null,null,"",null,null,null,null,null,""]
[null,null,"",null,null,null,null,null,""]
[null,null,"",null,null,null,null,null,""]
[null,null,"",null,null,null,null,null,""]
[null,null,"",null,null,null,null,null,""]
[null,null,"",null,null,null,null,null,""]
[null,null,"",null,null,null,null,null,""]
[null,null,"",null,null,null,null,null,""]
[null,null,"",null,null,null,null,null,""]
[null,null,"",null,null,null,null,null,""]
[null,null,"",null,null,null,null,null,""]
[null,null,"",null,null,null,null,null,""]
[null,null,"",null,null,null,null,null,""]
[null,null,"",null,null,null,null,null,""]
[null,null,"",null,null,null,null,null,""]
[null,null,"",null,null,null,null,null,""]
[null,null,"",null,null,null,null,null,""]
[null,null,"",null,null,null,null,null,""]
[null,null,"",null,null,null,null,null,""]
[null,null,"",null,null,null,null,null,""]
[null,null,"",null,null,null,null,null,""]
[null,null,"",null,null,null,null,null,""]
[null,null,"",null,null,null,null,null,""]
[null,null,"",null,null,null,null,null,""]
[null,null,"",null,null,null,null,null,""]
[null,null,"",null,null,null,null,null,""]
[null,null,"",null,null,null,null,null,""]
[null,null,"",null,null,null,null,null,""]
[null,null,"",null,null,null,null,null,""]
[null,null,"",null,null,null,null,null,""]
[null,null,{"$f":"IF(B2691=\"\",\"\",IF(D2691<>\"\",DATEDIF(B2691,D2691,\"Y\"),DATEDIF(B2691,TODAY(),\"Y\")))","v":""},null,null,null,null,null,""]
[null,null,"",null,null,null,null,null,""]
[null,null,"",null,null,null,null,null,""]
[null,null,"",null,null,null,null,null,""]
[null,null,"",null,null,null,null,null,""]
[null,null,"",null,null,null,null,null,""]
[null,null,"",null,null,null,null,null,""]
[null,null,"",null,null,null,null,null,""]
[null,null,"",null,null,null,null,null,""]
[null,null,"",null,null,null,null,null,""]
[null,null,"",null,null,null,null,null,""]
[null,null,"",null,null,null,null,null,""]
[null,null,"",null,null,null,null,null,""]
[null,null,"",null,null,null,null,null,{"$f":"IF(F2704=\"\",\"\",IF(H2704<>\"\",H2704-F2704,IF(G2704<>\"\",G2704-F2704,\"\")))","v":""}]
[null,null,"",null,null,null,null,null,""]
[null,null,"",null,null,null,null,null,""]
[null,null,"",null,null,null,null,null,""]
[null,null,"",null,null,null,null,null,""]
[null,null,"",null,null,null,null,null,""]
[null,null,"",null,null,null,null,null,""]
[null,null,"",null,null,null,null,null,""]
[null,null,"",null,null,null,null,null,""]
[null,null,"",null,null,null,null,null,""]
[null,null,"",null,null,null,null,null,""]
[null,null,"",null,null,null,null,null,""]
[null,null,"",null,null,null,null,null,""]
[null,null,"",null,null,null,null,null,""]
[null,null,"",null,null,null,null,null,""]
[null,null,"",null,null,null,null,null,""]
[null,null,"",null,null,null,null,null,""]
[null,null,"",null,null,null,null,null,""]
[null,null,"",null,null,null,null,null,""]
[null,null,"",null,null,null,null,null,""]
[null,null,"",null,null,null,null,null,""]
[null,null,"",null,null,null,null,null,""]
[null,null,"",null,null,null,null,null,""]
[null,null,"",null,null,null,null,null,""]
[null,null,"",null,null,null,null,null,""]
[null,null,"",null,null,null,null,null,""]
[null,null,"",null,null,null,null,null,""]
[null,null,"",null,null,null,null,null,""]
[null,null,"",null,null,null,null,null,""]
[null,null,"",null,null,null,null,null,""]
[null,null,"",null,null,null,null,null,""]
[null,null,"",null,null,null,null,null,""]
[null,null,"",null,null,null,null,null,""]
[null,null,"",null,null,null,null,null,""]
[null,null,"",null,null,null,null,null,""]
[null,null,"",null,null,null,null,null,""]
[null,null,"",null,null,null,null,null,""]
[null,null,"",null,null,null,null,null,""]
[null,null,"",null,null,null,null,null,""]
[null,null,"",null,null,null,null,null,""]
[null,null,"",null,null,null,null,null,""]
[null,null,"",null,null,null,null,null,""]
[null,null,"",null,null,null,null,null,""]
[null,null,"",null,null,null,null,null,""]
[null,null,"",null,null,null,null,null,""]
[null,null,"",null,null,null,null,null,""]
[null,null,"",null,null,null,null,null,""]
[null,null,"",null,null,null,null,null,""]
[null,null,"",null,null,null,null,null,""]
[null,null,"",null,null,null,null,null,""]
[null,null,"",null,null,null,null,null,""]
[null,null,{"$f":"IF(B2755=\"\",\"\",IF(D2755<>\"\",DATEDIF(B2755,D2755,\"Y\"),DATEDIF(B2755,TODAY(),\"Y\")))","v":""},null,null,null,null,null,""]
[null,null,"",null,null,null,null,null,""]
[null,null,"",null,null,null,null,null,""]
[null,null,"",null,null,null,null,null,""]
[null,null,"",null,null,null,null,null,""]
[null,null,"",null,null,null,null,null,""]
[null,null,"",null,null,null,null,null,""]
[null,null,"",null,null,null,null,null,""]
[null,null,"",null,null,null,null,null,""]
[null,null,"",null,null,null,null,null,""]
[null,null,"",null,null,null,null,null,""]
[null,null,"",null,null,null,null,null,""]
[null,null,"",null,null,null,null,null,""]
[null,null,"",null,null,null,null,null,{"$f":"IF(F2768=\"\",\"\",IF(H2768<>\"\",H2768-F2768,IF(G2768<>\"\",G2768-F2768,\"\")))","v":""}]
[null,null,"",null,null,null,null,null,""]
[null,null,"",null,null,null,null,null,""]
[null,null,"",null,null,null,null,null,""]
[null,null,"",null,null,null,null,null,""]
[null,null,"",null,null,null,null,null,""]
[null,null,"",null,null,null,null,null,""]
[null,null,"",null,null,null,null,null,""]
[null,null,"",null,null,null,null,null,""]
[null,null,"",null,null,null,null,null,""]
[null,null,"",null,null,null,null,null,""]
[null,null,"",null,null,null,null,null,""]
[null,null,"",null,null,null,null,null,""]
[null,null,"",null,null,null,null,null,""]
[null,null,"",null,null,null,null,null,""]
[null,null,"",null,null,null,null,null,""]
[null,null,"",null,null,null,null,null,""]
[null,null,"",null,null,null,null,null,""]
[null,null,"",null,null,null,null,null,""]
[null,null,"",null,null,null,null,null,""]
[null,null,"",null,null,null,null,null,""]
[null,null,"",null,null,null,null,null,""]
[null,null,"",null,null,null,null,null,""]
[null,null,"",null,null,null,null,null,""]
[null,null,"",null,null,null,null,null,""]
[null,null,"",null,null,null,null,null,""]
[null,null,"",null,null,null,null,null,""]
[null,null,"",null,null,null,null,null,""]
[null,null,"",null,null,null,null,null,""]
[null,null,"",null,null,null,null,null,""]
[null,null,"",null,null,null,null,null,""]
[null,null,"",null,null,null,null,null,""]
[null,null,"",null,null,null,null,null,""]
[null,null,"",null,null,null,null,null,""]
[null,null,"",null,null,null,null,null,""]
[null,null,"",null,null,null,null,null,""]
[null,null,"",null,null,null,null,null,""]
[null,null,"",null,null,null,null,null,""]
[null,null,"",null,null,null,null,null,""]
[null,null,"",null,null,null,null,null,""]
[null,null,"",null,null,null,null,null,""]
[null,null,"",null,null,null,null,null,""]
[null,null,"",null,null,null,null,null,""]
[null,null,"",null,null,null,null,null,""]
[null,null,"",null,null,null,null,null,""]
[null,null,"",null,null,null,null,null,""]
[null,null,"",null,null,null,null,null,""]
[null,null,"",null,null,null,null,null,""]
[null,null,"",null,null,null,null,null,""]
[null,null,"",null,null,null,null,null,""]
[null,null,"",null,null,null,null,null,""]
[null,null,{"$f":"IF(B2819=\"\",\"\",IF(D2819<>\"\",DATEDIF(B2819,D2819,\"Y\"),DATEDIF(B2819,TODAY(),\"Y\")))","v":""},null,null,null,null,null,""]
[null,null,"",null,null,null,null,null,""]
[null,null,"",null,null,null,null,null,""]
[null,null,"",null,null,null,null,null,""]
[null,null,"",null,null,null,null,null,""]
[null,null,"",null,null,null,null,null,""]
[null,null,"",null,null,null,null,null,""]
[null,null,"",null,null,null,null,null,""]
[null,null,"",null,null,null,null,null,""]
[null,null,"",null,null,null,null,null,""]
[null,null,"",null,null,null,null,null,""]
[null,null,"",null,null,null,null,null,""]
[null,null,"",null,null,null,null,null,""]
[null,null,"",null,null,null,null,null,{"$f":"IF(F2832=\"\",\"\",IF(H2832<>\"\",H2832-F2832,IF(G2832<>\"\",G2832-F2832,\"\")))","v":""}]
[null,null,"",null,null,null,null,null,""]
[null,null,"",null,null,null,null,null,""]
[null,null,"",null,null,null,null,null,""]
[null,null,"",null,null,null,null,null,""]
[null,null,"",null,null,null,null,null,""]
[null,null,"",null,null,null,null,null,""]
[null,null,"",null,null,null,null,null,""]
[null,null,"",null,null,null,null,null,""]
[null,null,"",null,null,null,null,null,""]
[null,null,"",null,null,null,null,null,""]
[null,null,"",null,null,null,null,null,""]
[null,null,"",null,null,null,null,null,""]
[null,null,"",null,null,null,null,null,""]
[null,null,"",null,null,null,null,null,""]
[null,null,"",null,null,null,null,null,""]
[null,null,"",null,null,null,null,null,""]
[null,null,"",null,null,null,null,null,""]
[null,null,"",null,null,null,null,null,""]
[null,null,"",null,null,null,null,null,""]
[null,null,"",null,null,null,null,null,""]
[null,null,"",null,null,null,null,null,""]
[null,null,"",null,null,null,null,null,""]
[null,null,"",null,null,null,null,null,""]
[null,null,"",null,null,null,null,null,""]
[null,null,"",null,null,null,null,null,""]
[null,null,"",null,null,null,null,null,""]
[null,null,"",null,null,null,null,null,""]
[null,null,"",null,null,null,null,null,""]
[null,null,"",null,null,null,null,null,""]
[null,null,"",null,null,null,null,null,""]
[null,null,"",null,null,null,null,null,""]
[null,null,"",null,null,null,null,null,""]
[null,null,"",null,null,null,null,null,""]
[null,null,"",null,null,null,null,null,""]
[null,null,"",null,null,null,null,null,""]
[null,null,"",null,null,null,null,null,""]
[null,null,"",null,null,null,null,null,""]
[null,null,"",null,null,null,null,null,""]
[null,null,"",null,null,null,null,null,""]
[null,null,"",null,null,null,null,null,""]
[null,null,"",null,null,null,null,null,""]
[null,null,"",null,null,null,null,null,""]
[null,null,"",null,null,null,null,null,""]
[null,null,"",null,null,null,null,null,""]
[null,null,"",null,null,null,null,null,""]
[null,null,"",null,null,null,null,null,""]
[null,null,"",null,null,null,null,null,""]
[null,null,"",null,null,null,null,null,""]
[null,null,"",null,null,null,null,null,""]
[null,null,"",null,null,null,null,null,""]
[null,null,{"$f":"IF(B2883=\"\",\"\",IF(D2883<>\"\",DATEDIF(B2883,D2883,\"Y\"),DATEDIF(B2883,TODAY(),\"Y\")))","v":""},null,null,null,null,null,""]
[null,null,"",null,null,null,null,null,""]
[null,null,"",null,null,null,null,null,""]
[null,null,"",null,null,null,null,null,""]
[null,null,"",null,null,null,null,null,""]
[null,null,"",null,null,null,null,null,""]
[null,null,"",null,null,null,null,null,""]
[null,null,"",null,null,null,null,null,""]
[null,null,"",null,null,null,null,null,""]
[null,null,"",null,null,null,null,null,""]
[null,null,"",null,null,null,null,null,""]
[null,null,"",null,null,null,null,null,""]
[null,null,"",null,null,null,null,null,""]
[null,null,"",null,null,null,null,null,{"$f":"IF(F2896=\"\",\"\",IF(H2896<>\"\",H2896-F2896,IF(G2896<>\"\",G2896-F2896,\"\")))","v":""}]
[null,null,"",null,null,null,null,null,""]
[null,null,"",null,null,null,null,null,""]
[null,null,"",null,null,null,null,null,""]
[null,null,"",null,null,null,null,null,""]
[null,null,"",null,null,null,null,null,""]
[null,null,"",null,null,null,null,null,""]
[null,null,"",null,null,null,null,null,""]
[null,null,"",null,null,null,null,null,""]
[null,null,"",null,null,null,null,null,""]
[null,null,"",null,null,null,null,null,""]
[null,null,"",null,null,null,null,null,""]
[null,null,"",null,null,null,null,null,""]
[null,null,"",null,null,null,null,null,""]
[null,null,"",null,null,null,null,null,""]
[null,null,"",null,null,null,null,null,""]
[null,null,"",null,null,null,null,null,""]
[null,null,"",null,null,null,null,null,""]
[null,null,"",null,null,null,null,null,""]
[null,null,"",null,null,null,null,null,""]
[null,null,"",null,null,null,null,null,""]
[null,null,"",null,null,null,null,null,""]
[null,null,"",null,null,null,null,null,""]
[null,null,"",null,null,null,null,null,""]
[null,null,"",null,null,null,null,null,""]
[null,null,"",null,null,null,null,null,""]
[null,null,"",null,null,null,null,null,""]
[null,null,"",null,null,null,null,null,""]
[null,null,"",null,null,null,null,null,""]
[null,null,"",null,null,null,null,null,""]
[null,null,"",null,null,null,null,null,""]
[null,null,"",null,null,null,null,null,""]
[null,null,"",null,null,null,null,null,""]
[null,null,"",null,null,null,null,null,""]
[null,null,"",null,null,null,null,null,""]
[null,null,"",null,null,null,null,null,""]
[null,null,"",null,null,null,null,null,""]
[null,null,"",null,null,null,null,null,""]
[null,null,"",null,null,null,null,null,""]
[null,null,"",null,null,null,null,null,""]
[null,null,"",null,null,null,null,null,""]
[null,null,"",null,null,null,null,null,""]
[null,null,"",null,null,null,null,null,""]
[null,null,"",null,null,null,null,null,""]
[null,null,"",null,null,null,null,null,""]
[null,null,"",null,null,null,null,null,""]
[null,null,"",null,null,null,null,null,""]
[null,null,"",null,null,null,null,null,""]
[null,null,"",null,null,null,null,null,""]
[null,null,"",null,null,null,null,null,""]
[null,null,"",null,null,null,null,null,""]
[null,null,{"$f":"IF(B2947=\"\",\"\",IF(D2947<>\"\",DATEDIF(B2947,D2947,\"Y\"),DATEDIF(B2947,TODAY(),\"Y\")))","v":""},null,null,null,null,null,""]
[null,null,"",null,null,null,null,null,""]
[null,null,"",null,null,null,null,null,""]
[null,null,"",null,null,null,null,null,""]
[null,null,"",null,null,null,null,null,""]
[null,null,"",null,null,null,null,null,""]
[null,null,"",null,null,null,null,null,""]
[null,null,"",null,null,null,null,null,""]
[null,null,"",null,null,null,null,null,""]
[null,null,"",null,null,null,null,null,""]
[null,null,"",null,null,null,null,null,""]
[null,null,"",null,null,null,null,null,""]
[null,null,"",null,null,null,null,null,""]
[null,null,"",null,null,null,null,null,{"$f":"IF(F2960=\"\",\"\",IF(H2960<>\"\",H2960-F2960,IF(G2960<>\"\",G2960-F2960,\"\")))","v":""}]
[null,null,"",null,null,null,null,null,""]
[null,null,"",null,null,null,null,null,""]
[null,null,"",null,null,null,null,null,""]
[null,null,"",null,null,null,null,null,""]
[null,null,"",null,null,null,null,null,""]
[null,null,"",null,null,null,null,null,""]
[null,null,"",null,null,null,null,null,""]
[null,null,"",null,null,null,null,null,""]
[null,null,"",null,null,null,null,null,""]
[null,null,"",null,null,null,null,null,""]
[null,null,"",null,null,null,null,null,""]
[null,null,"",null,null,null,null,null,""]
[null,null,"",null,null,null,null,null,""]
[null,null,"",null,null,null,null,null,""]
[null,null,"",null,null,null,null,null,""]
[null,null,"",null,null,null,null,null,""]
[null,null,"",null,null,null,null,null,""]
[null,null,"",null,null,null,null,null,""]
[null,null,"",null,null,null,null,null,""]
[null,null,"",null,null,null,null,null,""]
[null,null,"",null,null,null,null,null,""]
[null,null,"",null,null,null,null,null,""]
[null,null,"",null,null,null,null,null,""]
[null,null,"",null,null,null,null,null,""]
[null,null,"",null,null,null,null,null,""]
[null,null,"",null,null,null,null,null,""]
[null,null,"",null,null,null,null,null,""]
[null,null,"",null,null,null,null,null,""]
[null,null,"",null,null,null,null,null,""]
[null,null,"",null,null,null,null,null,""]
[null,null,"",null,null,null,null,null,""]
[null,null,"",null,null,null,null,null,""]
[null,null,"",null,null,null,null,null,""]
[null,null,"",null,null,null,null,null,""]
[null,null,"",null,null,null,null,null,""]
[null,null,"",null,null,null,null,null,""]
[null,null,"",null,null,null,null,null,""]
[null,null,"",null,null,null,null,null,""]
[null,null,"",null,null,null,null,null,""]
[null,null,"",null,null,null,null,null,""]
[null,null,"",null,null,null,null,null,""]
[null,null,"",null,null,null,null,null,""]
[null,null,"",null,null,null,null,null,""]
[null,null,"",null,null,null,null,null,""]
[null,null,"",null,null,null,null,null,""]
[null,null,"",null,null,null,null,null,""]
[null,null,"",null,null,null,null,null,""]
[null,null,"",null,null,null,null,null,""]
[null,null,"",null,null,null,null,null,""]
[null,null,"",null,null,null,null,null,""]
[null,null,{"$f":"IF(B3011=\"\",\"\",IF(D3011<>\"\",DATEDIF(B3011,D3011,\"Y\"),DATEDIF(B3011,TODAY(),\"Y\")))","v":""},null,null,null,null,null,""]
[null,null,"",null,null,null,null,null,""]
[null,null,"",null,null,null,null,null,""]
[null,null,"",null,null,null,null,null,""]
[null,null,"",null,null,null,null,null,""]
[null,null,"",null,null,null,null,null,""]
[null,null,"",null,null,null,null,null,""]
[null,null,"",null,null,null,null,null,""]
[null,null,"",null,null,null,null,null,""]
[null,null,"",null,null,null,null,null,""]
[null,null,"",null,null,null,null,null,""]
[null,null,"",null,null,null,null,null,""]
[null,null,"",null,null,null,null,null,""]
[null,null,"",null,null,null,null,null,{"$f":"IF(F3024=\"\",\"\",IF(H3024<>\"\",H3024-F3024,IF(G3024<>\"\",G3024-F3024,\"\")))","v":""}]
[null,null,"",null,null,null,null,null,""]
[null,null,"",null,null,null,null,null,""]
[null,null,"",null,null,null,null,null,""]
[null,null,"",null,null,null,null,null,""]
[null,null,"",null,null,null,null,null,""]
[null,null,"",null,null,null,null,null,""]
[null,null,"",null,null,null,null,null,""]
[null,null,"",null,null,null,null,null,""]
[null,null,"",null,null,null,null,null,""]
[null,null,"",null,null,null,null,null,""]
[null,null,"",null,null,null,null,null,""]
[null,null,"",null,null,null,null,null,""]
[null,null,"",null,null,null,null,null,""]
[null,null,"",null,null,null,null,null,""]
[null,null,"",null,null,null,null,null,""]
[null,null,"",null,null,null,null,null,""]
[null,null,"",null,null,null,null,null,""]
[null,null,"",null,null,null,null,null,""]
[null,null,"",null,null,null,null,null,""]
[null,null,"",null,null,null,null,null,""]
[null,null,"",null,null,null,null,null,""]
[null,null,"",null,null,null,null,null,""]
[null,null,"",null,null,null,null,null,""]
[null,null,"",null,null,null,null,null,""]
[null,null,"",null,null,null,null,null,""]
[null,null,"",null,null,null,null,null,""]
[null,null,"",null,null,null,null,null,""]
[null,null,"",null,null,null,null,null,""]
[null,null,"",null,null,null,null,null,""]
[null,null,"",null,null,null,null,null,""]
[null,null,"",null,null,null,null,null,""]
[null,null,"",null,null,null,null,null,""]
[null,null,"",null,null,null,null,null,""]
[null,null,"",null,null,null,null,null,""]
[null,null,"",null,null,null,null,null,""]
[null,null,"",null,null,null,null,null,""]
[null,null,"",null,null,null,null,null,""]
[null,null,"",null,null,null,null,null,""]
[null,null,"",null,null,null,null,null,""]
[null,null,"",null,null,null,null,null,""]
[null,null,"",null,null,null,null,null,""]
[null,null,"",null,null,null,null,null,""]
[null,null,"",null,null,null,null,null,""]
[null,null,"",null,null,null,null,null,""]
[null,null,"",null,null,null,null,null,""]
[null,null,"",null,null,null,null,null,""]
[null,null,"",null,null,null,null,null,""]
[null,null,"",null,null,null,null,null,""]
[null,null,"",null,null,null,null,null,""]
[null,null,"",null,null,null,null,null,""]
[null,null,{"$f":"IF(B3075=\"\",\"\",IF(D3075<>\"\",DATEDIF(B3075,D3075,\"Y\"),DATEDIF(B3075,TODAY(),\"Y\")))","v":""},null,null,null,null,null,""]
[null,null,"",null,null,null,null,null,""]
[null,null,"",null,null,null,null,null,""]
[null,null,"",null,null,null,null,null,""]
[null,null,"",null,null,null,null,null,""]
[null,null,"",null,null,null,null,null,""]
[null,null,"",null,null,null,null,null,""]
[null,null,"",null,null,null,null,null,""]
[null,null,"",null,null,null,null,null,""]
[null,null,"",null,null,null,null,null,""]
[null,null,"",null,null,null,null,null,""]
[null,null,"",null,null,null,null,null,""]
[null,null,"",null,null,null,null,null,""]
[null,null,"",null,null,null,null,null,{"$f":"IF(F3088=\"\",\"\",IF(H3088<>\"\",H3088-F3088,IF(G3088<>\"\",G3088-F3088,\"\")))","v":""}]
[null,null,"",null,null,null,null,null,""]
[null,null,"",null,null,null,null,null,""]
[null,null,"",null,null,null,null,null,""]
[null,null,"",null,null,null,null,null,""]
[null,null,"",null,null,null,null,null,""]
[null,null,"",null,null,null,null,null,""]
[null,null,"",null,null,null,null,null,""]
[null,null,"",null,null,null,null,null,""]
[null,null,"",null,null,null,null,null,""]
[null,null,"",null,null,null,null,null,""]
[null,null,"",null,null,null,null,null,""]
[null,null,"",null,null,null,null,null,""]
[null,null,"",null,null,null,null,null,""]
[null,null,"",null,null,null,null,null,""]
[null,null,"",null,null,null,null,null,""]
[null,null,"",null,null,null,null,null,""]
[null,null,"",null,null,null,null,null,""]
[null,null,"",null,null,null,null,null,""]
[null,null,"",null,null,null,null,null,""]
[null,null,"",null,null,null,null,null,""]
[null,null,"",null,null,null,null,null,""]
[null,null,"",null,null,null,null,null,""]
[null,null,"",null,null,null,null,null,""]
[null,null,"",null,null,null,null,null,""]
[null,null,"",null,null,null,null,null,""]
[null,null,"",null,null,null,null,null,""]
[null,null,"",null,null,null,null,null,""]
[null,null,"",null,null,null,null,null,""]
[null,null,"",null,null,null,null,null,""]
[null,null,"",null,null,null,null,null,""]
[null,null,"",null,null,null,null,null,""]
[null,null,"",null,null,null,null,null,""]
[null,null,"",null,null,null,null,null,""]
[null,null,"",null,null,null,null,null,""]
[null,null,"",null,null,null,null,null,""]
[null,null,"",null,null,null,null,null,""]
[null,null,"",null,null,null,null,null,""]
[null,null,"",null,null,null,null,null,""]
[null,null,"",null,null,null,null,null,""]
[null,null,"",null,null,null,null,null,""]
[null,null,"",null,null,null,null,null,""]
[null,null,"",null,null,null,null,null,""]
[null,null,"",null,null,null,null,null,""]
[null,null,"",null,null,null,null,null,""]
[null,null,"",null,null,null,null,null,""]
[null,null,"",null,null,null,null,null,""]
[null,null,"",null,null,null,null,null,""]
[null,null,"",null,null,null,null,null,""]
[null,null,"",null,null,null,null,null,""]
[null,null,"",null,null,null,null,null,""]
[null,null,{"$f":"IF(B3139=\"\",\"\",IF(D3139<>\"\",DATEDIF(B3139,D3139,\"Y\"),DATEDIF(B3139,TODAY(),\"Y\")))","v":""},null,null,null,null,null,""]
[null,null,"",null,null,null,null,null,""]
[null,null,"",null,null,null,null,null,""]
[null,null,"",null,null,null,null,null,""]
[null,null,"",null,null,null,null,null,""]
[null,null,"",null,null,null,null,null,""]
[null,null,"",null,null,null,null,null,""]
[null,null,"",null,null,null,null,null,""]
[null,null,"",null,null,null,null,null,""]
[null,null,"",null,null,null,null,null,""]
[null,null,"",null,null,null,null,null,""]
[null,null,"",null,null,null,null,null,""]
[null,null,"",null,null,null,null,null,""]
[null,null,"",null,null,null,null,null,{"$f":"IF(F3152=\"\",\"\",IF(H3152<>\"\",H3152-F3152,IF(G3152<>\"\",G3152-F3152,\"\")))","v":""}]
[null,null,"",null,null,null,null,null,""]
[null,null,"",null,null,null,null,null,""]
[null,null,"",null,null,null,null,null,""]
[null,null,"",null,null,null,null,null,""]
[null,null,"",null,null,null,null,null,""]
[null,null,"",null,null,null,null,null,""]
[null,null,"",null,null,null,null,null,""]
[null,null,"",null,null,null,null,null,""]
[null,null,"",null,null,null,null,null,""]
[null,null,"",null,null,null,null,null,""]
[null,null,"",null,null,null,null,null,""]
[null,null,"",null,null,null,null,null,""]
[null,null,"",null,null,null,null,null,""]
[null,null,"",null,null,null,null,null,""]
[null,null,"",null,null,null,null,null,""]
[null,null,"",null,null,null,null,null,""]
[null,null,"",null,null,null,null,null,""]
[null,null,"",null,null,null,null,null,""]
[null,null,"",null,null,null,null,null,""]
[null,null,"",null,null,null,null,null,""]
[null,null,"",null,null,null,null,null,""]
[null,null,"",null,null,null,null,null,""]
[null,null,"",null,null,null,null,null,""]
[null,null,"",null,null,null,null,null,""]
[null,null,"",null,null,null,null,null,""]
[null,null,"",null,null,null,null,null,""]
[null,null,"",null,null,null,null,null,""]
[null,null,"",null,null,null,null,null,""]
[null,null,"",null,null,null,null,null,""]
[null,null,"",null,null,null,null,null,""]
[null,null,"",null,null,null,null,null,""]
[null,null,"",null,null,null,null,null,""]
[null,null,"",null,null,null,null,null,""]
[null,null,"",null,null,null,null,null,""]
[null,null,"",null,null,null,null,null,""]
[null,null,"",null,null,null,null,null,""]
[null,null,"",null,null,null,null,null,""]
[null,null,"",null,null,null,null,null,""]
[null,null,"",null,null,null,null,null,""]
[null,null,"",null,null,null,null,null,""]
[null,null,"",null,null,null,null,null,""]
[null,null,"",null,null,null,null,null,""]
[null,null,"",null,null,null,null,null,""]
[null,null,"",null,null,null,null,null,""]
[null,null,"",null,null,null,null,null,""]
[null,null,"",null,null,null,null,null,""]
[null,null,"",null,null,null,null,null,""]
[null,null,"",null,null,null,null,null,""]
[null,null,"",null,null,null,null,null,""]
[null,null,"",null,null,null,null,null,""]
[null,null,{"$f":"IF(B3203=\"\",\"\",IF(D3203<>\"\",DATEDIF(B3203,D3203,\"Y\"),DATEDIF(B3203,TODAY(),\"Y\")))","v":""},null,null,null,null,null,""]
[null,null,"",null,null,null,null,null,""]
[null,null,"",null,null,null,null,null,""]
[null,null,"",null,null,null,null,null,""]
[null,null,"",null,null,null,null,null,""]
[null,null,"",null,null,null,null,null,""]
[null,null,"",null,null,null,null,null,""]
[null,null,"",null,null,null,null,null,""]
[null,null,"",null,null,null,null,null,""]
[null,null,"",null,null,null,null,null,""]
[null,null,"",null,null,null,null,null,""]
[null,null,"",null,null,null,null,null,""]
[null,null,"",null,null,null,null,null,""]
[null,null,"",null,null,null,null,null,{"$f":"IF(F3216=\"\",\"\",IF(H3216<>\"\",H3216-F3216,IF(G3216<>\"\",G3216-F3216,\"\")))","v":""}]
[null,null,"",null,null,null,null,null,""]
[null,null,"",null,null,null,null,null,""]
[null,null,"",null,null,null,null,null,""]
[null,null,"",null,null,null,null,null,""]
[null,null,"",null,null,null,null,null,""]
[null,null,"",null,null,null,null,null,""]
[null,null,"",null,null,null,null,null,""]
[null,null,"",null,null,null,null,null,""]
[null,null,"",null,null,null,null,null,""]
[null,null,"",null,null,null,null,null,""]
[null,null,"",null,null,null,null,null,""]
[null,null,"",null,null,null,null,null,""]
[null,null,"",null,null,null,null,null,""]
[null,null,"",null,null,null,null,null,""]
[null,null,"",null,null,null,null,null,""]
[null,null,"",null,null,null,null,null,""]
[null,null,"",null,null,null,null,null,""]
[null,null,"",null,null,null,null,null,""]
[null,null,"",null,null,null,null,null,""]
[null,null,"",null,null,null,null,null,""]
[null,null,"",null,null,null,null,null,""]
[null,null,"",null,null,null,null,null,""]
[null,null,"",null,null,null,null,null,""]
[null,null,"",null,null,null,null,null,""]
[null,null,"",null,null,null,null,null,""]
[null,null,"",null,null,null,null,null,""]
[null,null,"",null,null,null,null,null,""]
[null,null,"",null,null,null,null,null,""]
[null,null,"",null,null,null,null,null,""]
[null,null,"",null,null,null,null,null,""]
[null,null,"",null,null,null,null,null,""]
[null,null,"",null,null,null,null,null,""]
[null,null,"",null,null,null,null,null,""]
[null,null,"",null,null,null,null,null,""]
[null,null,"",null,null,null,null,null,""]
[null,null,"",null,null,null,null,null,""]
[null,null,"",null,null,null,null,null,""]
[null,null,"",null,null,null,null,null,""]
[null,null,"",null,null,null,null,null,""]
[null,null,"",null,null,null,null,null,""]
[null,null,"",null,null,null,null,null,""]
[null,null,"",null,null,null,null,null,""]
[null,null,"",null,null,null,null,null,""]
[null,null,"",null,null,null,null,null,""]
[null,null,"",null,null,null,null,null,""]
[null,null,"",null,null,null,null,null,""]
[null,null,"",null,null,null,null,null,""]
[null,null,"",null,null,null,null,null,""]
[null,null,"",null,null,null,null,null,""]
[null,null,"",null,null,null,null,null,""]
[null,null,{"$f":"IF(B3267=\"\",\"\",IF(D3267<>\"\",DATEDIF(B3267,D3267,\"Y\"),DATEDIF(B3267,TODAY(),\"Y\")))","v":""},null,null,null,null,null,""]
[null,null,"",null,null,null,null,null,""]
[null,null,"",null,null,null,null,null,""]
[null,null,"",null,null,null,null,null,""]
[null,null,"",null,null,null,null,null,""]
[null,null,"",null,null,null,null,null,""]
[null,null,"",null,null,null,null,null,""]
[null,null,"",null,null,null,null,null,""]
[null,null,"",null,null,null,null,null,""]
[null,null,"",null,null,null,null,null,""]
[null,null,"",null,null,null,null,null,""]
[null,null,"",null,null,null,null,null,""]
[null,null,"",null,null,null,null,null,""]
[null,null,"",null,null,null,null,null,{"$f":"IF(F3280=\"\",\"\",IF(H3280<>\"\",H3280-F3280,IF(G3280<>\"\",G3280-F3280,\"\")))","v":""}]
[null,null,"",null,null,null,null,null,""]
[null,null,"",null,null,null,null,null,""]
[null,null,"",null,null,null,null,null,""]
[null,null,"",null,null,null,null,null,""]
[null,null,"",null,null,null,null,null,""]
[null,null,"",null,null,null,null,null,""]
[null,null,"",null,null,null,null,null,""]
[null,null,"",null,null,null,null,null,""]
[null,null,"",null,null,null,null,null,""]
[null,null,"",null,null,null,null,null,""]
[null,null,"",null,null,null,null,null,""]
[null,null,"",null,null,null,null,null,""]
[null,null,"",null,null,null,null,null,""]
[null,null,"",null,null,null,null,null,""]
[null,null,"",null,null,null,null,null,""]
[null,null,"",null,null,null,null,null,""]
[null,null,"",null,null,null,null,null,""]
[null,null,"",null,null,null,null,null,""]
[null,null,"",null,null,null,null,null,""]
[null,null,"",null,null,null,null,null,""]
[null,null,"",null,null,null,null,null,""]
[null,null,"",null,null,null,null,null,""]
[null,null,"",null,null,null,null,null,""]
[null,null,"",null,null,null,null,null,""]
[null,null,"",null,null,null,null,null,""]
[null,null,"",null,null,null,null,null,""]
[null,null,"",null,null,null,null,null,""]
[null,null,"",null,null,null,null,null,""]
[null,null,"",null,null,null,null,null,""]
[null,null,"",null,null,null,null,null,""]
[null,null,"",null,null,null,null,null,""]
[null,null,"",null,null,null,null,null,""]
[null,null,"",null,null,null,null,null,""]
[null,null,"",null,null,null,null,null,""]
[null,null,"",null,null,null,null,null,""]
[null,null,"",null,null,null,null,null,""]
[null,null,"",null,null,null,null,null,""]
[null,null,"",null,null,null,null,null,""]
[null,null,"",null,null,null,null,null,""]
[null,null,"",null,null,null,null,null,""]
[null,null,"",null,null,null,null,null,""]
[null,null,"",null,null,null,null,null,""]
[null,null,"",null,null,null,null,null,""]
[null,null,"",null,null,null,null,null,""]
[null,null,"",null,null,null,null,null,""]
[null,null,"",null,null,null,null,null,""]
[null,null,"",null,null,null,null,null,""]
[null,null,"",null,null,null,null,null,""]
[null,null,"",null,null,null,null,null,""]
[null,null,"",null,null,null,null,null,""]
[null,null,{"$f":"IF(B3331=\"\",\"\",IF(D3331<>\"\",DATEDIF(B3331,D3331,\"Y\"),DATEDIF(B3331,TODAY(),\"Y\")))","v":""},null,null,null,null,null,""]
[null,null,"",null,null,null,null,null,""]
[null,null,"",null,null,null,null,null,""]
[null,null,"",null,null,null,null,null,""]
[null,null,"",null,null,null,null,null,""]
[null,null,"",null,null,null,null,null,""]
[null,null,"",null,null,null,null,null,""]
[null,null,"",null,null,null,null,null,""]
[null,null,"",null,null,null,null,null,""]
[null,null,"",null,null,null,null,null,""]
[null,null,"",null,null,null,null,null,""]
[null,null,"",null,null,null,null,null,""]
[null,null,"",null,null,null,null,null,""]
[null,null,"",null,null,null,null,null,{"$f":"IF(F3344=\"\",\"\",IF(H3344<>\"\",H3344-F3344,IF(G3344<>\"\",G3344-F3344,\"\")))","v":""}]
[null,null,"",null,null,null,null,null,""]
[null,null,"",null,null,null,null,null,""]
[null,null,"",null,null,null,null,null,""]
[null,null,"",null,null,null,null,null,""]
[null,null,"",null,null,null,null,null,""]
[null,null,"",null,null,null,null,null,""]
[null,null,"",null,null,null,null,null,""]
[null,null,"",null,null,null,null,null,""]
[null,null,"",null,null,null,null,null,""]
[null,null,"",null,null,null,null,null,""]
[null,null,"",null,null,null,null,null,""]
[null,null,"",null,null,null,null,null,""]
[null,null,"",null,null,null,null,null,""]
[null,null,"",null,null,null,null,null,""]
[null,null,"",null,null,null,null,null,""]
[null,null,"",null,null,null,null,null,""]
[null,null,"",null,null,null,null,null,""]
[null,null,"",null,null,null,null,null,""]
[null,null,"",null,null,null,null,null,""]
[null,null,"",null,null,null,null,null,""]
[null,null,"",null,null,null,null,null,""]
[null,null,"",null,null,null,null,null,""]
[null,null,"",null,null,null,null,null,""]
[null,null,"",null,null,null,null,null,""]
[null,null,"",null,null,null,null,null,""]
[null,null,"",null,null,null,null,null,""]
[null,null,"",null,null,null,null,null,""]
[null,null,"",null,null,null,null,null,""]
[null,null,"",null,null,null,null,null,""]
[null,null,"",null,null,null,null,null,""]
[null,null,"",null,null,null,null,null,""]
[null,null,"",null,null,null,null,null,""]
[null,null,"",null,null,null,null,null,""]
[null,null,"",null,null,null,null,null,""]
[null,null,"",null,null,null,null,null,""]
[null,null,"",null,null,null,null,null,""]
[null,null,"",null,null,null,null,null,""]
[null,null,"",null,null,null,null,null,""]
[null,null,"",null,null,null,null,null,""]
[null,null,"",null,null,null,null,null,""]
[null,null,"",null,null,null,null,null,""]
[null,null,"",null,null,null,null,null,""]
[null,null,"",null,null,null,null,null,""]
[null,null,"",null,null,null,null,null,""]
[null,null,"",null,null,null,null,null,""]
[null,null,"",null,null,null,null,null,""]
[null,null,"",null,null,null,null,null,""]
[null,null,"",null,null,null,null,null,""]
[null,null,"",null,null,null,null,null,""]
[null,null,"",null,null,null,null,null,""]
[null,null,{"$f":"IF(B3395=\"\",\"\",IF(D3395<>\"\",DATEDIF(B3395,D3395,\"Y\"),DATEDIF(B3395,TODAY(),\"Y\")))","v":""},null,null,null,null,null,""]
[null,null,"",null,null,null,null,null,""]
[null,null,"",null,null,null,null,null,""]
[null,null,"",null,null,null,null,null,""]
[null,null,"",null,null,null,null,null,""]
[null,null,"",null,null,null,null,null,""]
[null,null,"",null,null,null,null,null,""]
[null,null,"",null,null,null,null,null,""]
[null,null,"",null,null,null,null,null,""]
[null,null,"",null,null,null,null,null,""]
[null,null,"",null,null,null,null,null,""]
[null,null,"",null,null,null,null,null,""]
[null,null,"",null,null,null,null,null,""]
[null,null,"",null,null,null,null,null,{"$f":"IF(F3408=\"\",\"\",IF(H3408<>\"\",H3408-F3408,IF(G3408<>\"\",G3408-F3408,\"\")))","v":""}]
[null,null,"",null,null,null,null,null,""]
[null,null,"",null,null,null,null,null,""]
[null,null,"",null,null,null,null,null,""]
[null,null,"",null,null,null,null,null,""]
[null,null,"",null,null,null,null,null,""]
[null,null,"",null,null,null,null,null,""]
[null,null,"",null,null,null,null,null,""]
[null,null,"",null,null,null,null,null,""]
[null,null,"",null,null,null,null,null,""]
[null,null,"",null,null,null,null,null,""]
[null,null,"",null,null,null,null,null,""]
[null,null,"",null,null,null,null,null,""]
[null,null,"",null,null,null,null,null,""]
[null,null,"",null,null,null,null,null,""]
[null,null,"",null,null,null,null,null,""]
[null,null,"",null,null,null,null,null,""]
[null,null,"",null,null,null,null,null,""]
[null,null,"",null,null,null,null,null,""]
[null,null,"",null,null,null,null,null,""]
[null,null,"",null,null,null,null,null,""]
[null,null,"",null,null,null,null,null,""]
[null,null,"",null,null,null,null,null,""]
[null,null,"",null,null,null,null,null,""]
[null,null,"",null,null,null,null,null,""]
[null,null,"",null,null,null,null,null,""]
[null,null,"",null,null,null,null,null,""]
[null,null,"",null,null,null,null,null,""]
[null,null,"",null,null,null,null,null,""]
[null,null,"",null,null,null,null,null,""]
[null,null,"",null,null,null,null,null,""]
[null,null,"",null,null,null,null,null,""]
[null,null,"",null,null,null,null,null,""]
[null,null,"",null,null,null,null,null,""]
[null,null,"",null,null,null,null,null,""]
[null,null,"",null,null,null,null,null,""]
[null,null,"",null,null,null,null,null,""]
[null,null,"",null,null,null,null,null,""]
[null,null,"",null,null,null,null,null,""]
[null,null,"",null,null,null,null,null,""]
[null,null,"",null,null,null,null,null,""]
[null,null,"",null,null,null,null,null,""]
[null,null,"",null,null,null,null,null,""]
[null,null,"",null,null,null,null,null,""]
[null,null,"",null,null,null,null,null,""]
[null,null,"",null,null,null,null,null,""]
[null,null,"",null,null,null,null,null,""]
[null,null,"",null,null,null,null,null,""]
[null,null,"",null,null,null,null,null,""]
[null,null,"",null,null,null,null,null,""]
[null,null,"",null,null,null,null,null,""]
[null,null,{"$f":"IF(B3459=\"\",\"\",IF(D3459<>\"\",DATEDIF(B3459,D3459,\"Y\"),DATEDIF(B3459,TODAY(),\"Y\")))","v":""},null,null,null,null,null,""]
[null,null,"",null,null,null,null,null,""]
[null,null,"",null,null,null,null,null,""]
[null,null,"",null,null,null,null,null,""]
[null,null,"",null,null,null,null,null,""]
[null,null,"",null,null,null,null,null,""]
[null,null,"",null,null,null,null,null,""]
[null,null,"",null,null,null,null,null,""]
[null,null,"",null,null,null,null,null,""]
[null,null,"",null,null,null,null,null,""]
[null,null,"",null,null,null,null,null,""]
[null,null,"",null,null,null,null,null,""]
[null,null,"",null,null,null,null,null,""]
[null,null,"",null,null,null,null,null,{"$f":"IF(F3472=\"\",\"\",IF(H3472<>\"\",H3472-F3472,IF(G3472<>\"\",G3472-F3472,\"\")))","v":""}]
[null,null,"",null,null,null,null,null,""]
[null,null,"",null,null,null,null,null,""]
[null,null,"",null,null,null,null,null,""]
[null,null,"",null,null,null,null,null,""]
[null,null,"",null,null,null,null,null,""]
[null,null,"",null,null,null,null,null,""]
[null,null,"",null,null,null,null,null,""]
[null,null,"",null,null,null,null,null,""]
[null,null,"",null,null,null,null,null,""]
[null,null,"",null,null,null,null,null,""]
[null,null,"",null,null,null,null,null,""]
[null,null,"",null,null,null,null,null,""]
[null,null,"",null,null,null,null,null,""]
[null,null,"",null,null,null,null,null,""]
[null,null,"",null,null,null,null,null,""]
[null,null,"",null,null,null,null,null,""]
[null,null,"",null,null,null,null,null,""]
[null,null,"",null,null,null,null,null,""]
[null,null,"",null,null,null,null,null,""]
[null,null,"",null,null,null,null,null,""]
[null,null,"",null,null,null,null,null,""]
[null,null,"",null,null,null,null,null,""]
[null,null,"",null,null,null,null,null,""]
[null,null,"",null,null,null,null,null,""]
[null,null,"",null,null,null,null,null,""]
[null,null,"",null,null,null,null,null,""]
[null,null,"",null,null,null,null,null,""]
[null,null,"",null,null,null,null,null,""]
[null,null,"",null,null,null,null,null,""]
[null,null,"",null,null,null,null,null,""]
[null,null,"",null,null,null,null,null,""]
[null,null,"",null,null,null,null,null,""]
[null,null,"",null,null,null,null,null,""]
[null,null,"",null,null,null,null,null,""]
[null,null,"",null,null,null,null,null,""]
[null,null,"",null,null,null,null,null,""]
[null,null,"",null,null,null,null,null,""]
[null,null,"",null,null,null,null,null,""]
[null,null,"",null,null,null,null,null,""]
[null,null,"",null,null,null,null,null,""]
[null,null,"",null,null,null,null,null,""]
[null,null,"",null,null,null,null,null,""]
[null,null,"",null,null,null,null,null,""]
[null,null,"",null,null,null,null,null,""]
[null,null,"",null,null,null,null,null,""]
[null,null,"",null,null,null,null,null,""]
[null,null,"",null,null,null,null,null,""]
[null,null,"",null,null,null,null,null,""]
[null,null,"",null,null,null,null,null,""]
[null,null,"",null,null,null,null,null,""]
[null,null,{"$f":"IF(B3523=\"\",\"\",IF(D3523<>\"\",DATEDIF(B3523,D3523,\"Y\"),DATEDIF(B3523,TODAY(),\"Y\")))","v":""},null,null,null,null,null,""]
[null,null,"",null,null,null,null,null,""]
[null,null,"",null,null,null,null,null,""]
[null,null,"",null,null,null,null,null,""]
[null,null,"",null,null,null,null,null,""]
[null,null,"",null,null,null,null,null,""]
[null,null,"",null,null,null,null,null,""]
[null,null,"",null,null,null,null,null,""]
[null,null,"",null,null,null,null,null,""]
[null,null,"",null,null,null,null,null,""]
[null,null,"",null,null,null,null,null,""]
[null,null,"",null,null,null,null,null,""]
[null,null,"",null,null,null,null,null,""]
[null,null,"",null,null,null,null,null,{"$f":"IF(F3536=\"\",\"\",IF(H3536<>\"\",H3536-F3536,IF(G3536<>\"\",G3536-F3536,\"\")))","v":""}]
[null,null,"",null,null,null,null,null,""]
[null,null,"",null,null,null,null,null,""]
[null,null,"",null,null,null,null,null,""]
[null,null,"",null,null,null,null,null,""]
[null,null,"",null,null,null,null,null,""]
[null,null,"",null,null,null,null,null,""]
[null,null,"",null,null,null,null,null,""]
[null,null,"",null,null,null,null,null,""]
[null,null,"",null,null,null,null,null,""]
[null,null,"",null,null,null,null,null,""]
[null,null,"",null,null,null,null,null,""]
[null,null,"",null,null,null,null,null,""]
[null,null,"",null,null,null,null,null,""]
[null,null,"",null,null,null,null,null,""]
[null,null,"",null,null,null,null,null,""]
[null,null,"",null,null,null,null,null,""]
[null,null,"",null,null,null,null,null,""]
[null,null,"",null,null,null,null,null,""]
[null,null,"",null,null,null,null,null,""]
[null,null,"",null,null,null,null,null,""]
[null,null,"",null,null,null,null,null,""]
[null,null,"",null,null,null,null,null,""]
[null,null,"",null,null,null,null,null,""]
[null,null,"",null,null,null,null,null,""]
[null,null,"",null,null,null,null,null,""]
[null,null,"",null,null,null,null,null,""]
[null,null,"",null,null,null,null,null,""]
[null,null,"",null,null,null,null,null,""]
[null,null,"",null,null,null,null,null,""]
[null,null,"",null,null,null,null,null,""]
[null,null,"",null,null,null,null,null,""]
[null,null,"",null,null,null,null,null,""]
[null,null,"",null,null,null,null,null,""]
[null,null,"",null,null,null,null,null,""]
[null,null,"",null,null,null,null,null,""]
[null,null,"",null,null,null,null,null,""]
[null,null,"",null,null,null,null,null,""]
[null,null,"",null,null,null,null,null,""]
[null,null,"",null,null,null,null,null,""]
[null,null,"",null,null,null,null,null,""]
[null,null,"",null,null,null,null,null,""]
[null,null,"",null,null,null,null,null,""]
[null,null,"",null,null,null,null,null,""]
[null,null,"",null,null,null,null,null,""]
[null,null,"",null,null,null,null,null,""]
[null,null,"",null,null,null,null,null,""]
[null,null,"",null,null,null,null,null,""]
[null,null,"",null,null,null,null,null,""]
[null,null,"",null,null,null,null,null,""]
[null,null,"",null,null,null,null,null,""]
[null,null,{"$f":"IF(B3587=\"\",\"\",IF(D3587<>\"\",DATEDIF(B3587,D3587,\"Y\"),DATEDIF(B3587,TODAY(),\"Y\")))","v":""},null,null,null,null,null,""]
[null,null,"",null,null,null,null,null,""]
[null,null,"",null,null,null,null,null,""]
[null,null,"",null,null,null,null,null,""]
[null,null,"",null,null,null,null,null,""]
[null,null,"",null,null,null,null,null,""]
[null,null,"",null,null,null,null,null,""]
[null,null,"",null,null,null,null,null,""]
[null,null,"",null,null,null,null,null,""]
[null,null,"",null,null,null,null,null,""]
[null,null,"",null,null,null,null,null,""]
[null,null,"",null,null,null,null,null,""]
[null,null,"",null,null,null,null,null,""]
[null,null,"",null,null,null,null,null,{"$f":"IF(F3600=\"\",\"\",IF(H3600<>\"\",H3600-F3600,IF(G3600<>\"\",G3600-F3600,\"\")))","v":""}]
[null,null,"",null,null,null,null,null,""]
[null,null,"",null,null,null,null,null,""]
[null,null,"",null,null,null,null,null,""]
[null,null,"",null,null,null,null,null,""]
[null,null,"",null,null,null,null,null,""]
[null,null,"",null,null,null,null,null,""]
[null,null,"",null,null,null,null,null,""]
[null,null,"",null,null,null,null,null,""]
[null,null,"",null,null,null,null,null,""]
[null,null,"",null,null,null,null,null,""]
[null,null,"",null,null,null,null,null,""]
[null,null,"",null,null,null,null,null,""]
[null,null,"",null,null,null,null,null,""]
[null,null,"",null,null,null,null,null,""]
[null,null,"",null,null,null,null,null,""]
[null,null,"",null,null,null,null,null,""]
[null,null,"",null,null,null,null,null,""]
[null,null,"",null,null,null,null,null,""]
[null,null,"",null,null,null,null,null,""]
[null,null,"",null,null,null,null,null,""]
[null,null,"",null,null,null,null,null,""]
[null,null,"",null,null,null,null,null,""]
[null,null,"",null,null,null,null,null,""]
[null,null,"",null,null,null,null,null,""]
[null,null,"",null,null,null,null,null,""]
[null,null,"",null,null,null,null,null,""]
[null,null,"",null,null,null,null,null,""]
[null,null,"",null,null,null,null,null,""]
[null,null,"",null,null,null,null,null,""]
[null,null,"",null,null,null,null,null,""]
[null,null,"",null,null,null,null,null,""]
[null,null,"",null,null,null,null,null,""]
[null,null,"",null,null,null,null,null,""]
[null,null,"",null,null,null,null,null,""]
[null,null,"",null,null,null,null,null,""]
[null,null,"",null,null,null,null,null,""]
[null,null,"",null,null,null,null,null,""]
[null,null,"",null,null,null,null,null,""]
[null,null,"",null,null,null,null,null,""]
[null,null,"",null,null,null,null,null,""]
[null,null,"",null,null,null,null,null,""]
[null,null,"",null,null,null,null,null,""]
[null,null,"",null,null,null,null,null,""]
[null,null,"",null,null,null,null,null,""]
[null,null,"",null,null,null,null,null,""]
[null,null,"",null,null,null,null,null,""]
[null,null,"",null,null,null,null,null,""]
[null,null,"",null,null,null,null,null,""]
[null,null,"",null,null,null,null,null,""]
[null,null,"",null,null,null,null,null,""]
[null,null,{"$f":"IF(B3651=\"\",\"\",IF(D3651<>\"\",DATEDIF(B3651,D3651,\"Y\"),DATEDIF(B3651,TODAY(),\"Y\")))","v":""},null,null,null,null,null,""]
[null,null,"",null,null,null,null,null,""]
[null,null,"",null,null,null,null,null,""]
[null,null,"",null,null,null,null,null,""]
[null,null,"",null,null,null,null,null,""]
[null,null,"",null,null,null,null,null,""]
[null,null,"",null,null,null,null,null,""]
[null,null,"",null,null,null,null,null,""]
[null,null,"",null,null,null,null,null,""]
[null,null,"",null,null,null,null,null,""]
[null,null,"",null,null,null,null,null,""]
[null,null,"",null,null,null,null,null,""]
[null,null,"",null,null,null,null,null,""]
[null,null,"",null,null,null,null,null,{"$f":"IF(F3664=\"\",\"\",IF(H3664<>\"\",H3664-F3664,IF(G3664<>\"\",G3664-F3664,\"\")))","v":""}]
[null,null,"",null,null,null,null,null,""]
[null,null,"",null,null,null,null,null,""]
[null,null,"",null,null,null,null,null,""]
[null,null,"",null,null,null,null,null,""]
[null,null,"",null,null,null,null,null,""]
[null,null,"",null,null,null,null,null,""]
[null,null,"",null,null,null,null,null,""]
[null,null,"",null,null,null,null,null,""]
[null,null,"",null,null,null,null,null,""]
[null,null,"",null,null,null,null,null,""]
[null,null,"",null,null,null,null,null,""]
[null,null,"",null,null,null,null,null,""]
[null,null,"",null,null,null,null,null,""]
[null,null,"",null,null,null,null,null,""]
[null,null,"",null,null,null,null,null,""]
[null,null,"",null,null,null,null,null,""]
[null,null,"",null,null,null,null,null,""]
[null,null,"",null,null,null,null,null,""]
[null,null,"",null,null,null,null,null,""]
[null,null,"",null,null,null,null,null,""]
[null,null,"",null,null,null,null,null,""]
[null,null,"",null,null,null,null,null,""]
[null,null,"",null,null,null,null,null,""]
[null,null,"",null,null,null,null,null,""]
[null,null,"",null,null,null,null,null,""]
[null,null,"",null,null,null,null,null,""]
[null,null,"",null,null,null,null,null,""]
[null,null,"",null,null,null,null,null,""]
[null,null,"",null,null,null,null,null,""]
[null,null,"",null,null,null,null,null,""]
[null,null,"",null,null,null,null,null,""]
[null,null,"",null,null,null,null,null,""]
[null,null,"",null,null,null,null,null,""]
[null,null,"",null,null,null,null,null,""]
[null,null,"",null,null,null,null,null,""]
[null,null,"",null,null,null,null,null,""]
[null,null,"",null,null,null,null,null,""]
[null,null,"",null,null,null,null,null,""]
[null,null,"",null,null,null,null,null,""]
[null,null,"",null,null,null,null,null,""]
[null,null,"",null,null,null,null,null,""]
[null,null,"",null,null,null,null,null,""]
[null,null,"",null,null,null,null,null,""]
[null,null,"",null,null,null,null,null,""]
[null,null,"",null,null,null,null,null,""]
[null,null,"",null,null,null,null,null,""]
[null,null,"",null,null,null,null,null,""]
[null,null,"",null,null,null,null,null,""]
[null,null,"",null,null,null,null,null,""]
[null,null,"",null,null,null,null,null,""]
[null,null,{"$f":"IF(B3715=\"\",\"\",IF(D3715<>\"\",DATEDIF(B3715,D3715,\"Y\"),DATEDIF(B3715,TODAY(),\"Y\")))","v":""},null,null,null,null,null,""]
[null,null,"",null,null,null,null,null,""]
[null,null,"",null,null,null,null,null,""]
[null,null,"",null,null,null,null,null,""]
[null,null,"",null,null,null,null,null,""]
[null,null,"",null,null,null,null,null,""]
[null,null,"",null,null,null,null,null,""]
[null,null,"",null,null,null,null,null,""]
[null,null,"",null,null,null,null,null,""]
[null,null,"",null,null,null,null,null,""]
[null,null,"",null,null,null,null,null,""]
[null,null,"",null,null,null,null,null,""]
[null,null,"",null,null,null,null,null,""]
[null,null,"",null,null,null,null,null,{"$f":"IF(F3728=\"\",\"\",IF(H3728<>\"\",H3728-F3728,IF(G3728<>\"\",G3728-F3728,\"\")))","v":""}]
[null,null,"",null,null,null,null,null,""]
[null,null,"",null,null,null,null,null,""]
[null,null,"",null,null,null,null,null,""]
[null,null,"",null,null,null,null,null,""]
[null,null,"",null,null,null,null,null,""]
[null,null,"",null,null,null,null,null,""]
[null,null,"",null,null,null,null,null,""]
[null,null,"",null,null,null,null,null,""]
[null,null,"",null,null,null,null,null,""]
[null,null,"",null,null,null,null,null,""]
[null,null,"",null,null,null,null,null,""]
[null,null,"",null,null,null,null,null,""]
[null,null,"",null,null,null,null,null,""]
[null,null,"",null,null,null,null,null,""]
[null,null,"",null,null,null,null,null,""]
[null,null,"",null,null,null,null,null,""]
[null,null,"",null,null,null,null,null,""]
[null,null,"",null,null,null,null,null,""]
[null,null,"",null,null,null,null,null,""]
[null,null,"",null,null,null,null,null,""]
[null,null,"",null,null,null,null,null,""]
[null,null,"",null,null,null,null,null,""]
[null,null,"",null,null,null,null,null,""]
[null,null,"",null,null,null,null,null,""]
[null,null,"",null,null,null,null,null,""]
[null,null,"",null,null,null,null,null,""]
[null,null,"",null,null,null,null,null,""]
[null,null,"",null,null,null,null,null,""]
[null,null,"",null,null,null,null,null,""]
[null,null,"",null,null,null,null,null,""]
[null,null,"",null,null,null,null,null,""]
[null,null,"",null,null,null,null,null,""]
[null,null,"",null,null,null,null,null,""]
[null,null,"",null,null,null,null,null,""]
[null,null,"",null,null,null,null,null,""]
[null,null,"",null,null,null,null,null,""]
[null,null,"",null,null,null,null,null,""]
[null,null,"",null,null,null,null,null,""]
[null,null,"",null,null,null,null,null,""]
[null,null,"",null,null,null,null,null,""]
[null,null,"",null,null,null,null,null,""]
[null,null,"",null,null,null,null,null,""]
[null,null,"",null,null,null,null,null,""]
[null,null,"",null,null,null,null,null,""]
[null,null,"",null,null,null,null,null,""]
[null,null,"",null,null,null,null,null,""]
[null,null,"",null,null,null,null,null,""]
[null,null,"",null,null,null,null,null,""]
[null,null,"",null,null,null,null,null,""]
[null,null,"",null,null,null,null,null,""]
[null,null,{"$f":"IF(B3779=\"\",\"\",IF(D3779<>\"\",DATEDIF(B3779,D3779,\"Y\"),DATEDIF(B3779,TODAY(),\"Y\")))","v":""},null,null,null,null,null,""]
[null,null,"",null,null,null,null,null,""]
[null,null,"",null,null,null,null,null,""]
[null,null,"",null,null,null,null,null,""]
[null,null,"",null,null,null,null,null,""]
[null,null,"",null,null,null,null,null,""]
[null,null,"",null,null,null,null,null,""]
[null,null,"",null,null,null,null,null,""]
[null,null,"",null,null,null,null,null,""]
[null,null,"",null,null,null,null,null,""]
[null,null,"",null,null,null,null,null,""]
[null,null,"",null,null,null,null,null,""]
[null,null,"",null,null,null,null,null,""]
[null,null,"",null,null,null,null,null,{"$f":"IF(F3792=\"\",\"\",IF(H3792<>\"\",H3792-F3792,IF(G3792<>\"\",G3792-F3792,\"\")))","v":""}]
[null,null,"",null,null,null,null,null,""]
[null,null,"",null,null,null,null,null,""]
[null,null,"",null,null,null,null,null,""]
[null,null,"",null,null,null,null,null,""]
[null,null,"",null,null,null,null,null,""]
[null,null,"",null,null,null,null,null,""]
[null,null,"",null,null,null,null,null,""]
[null,null,"",null,null,null,null,null,""]
[null,null,"",null,null,null,null,null,""]
[null,null,"",null,null,null,null,null,""]
[null,null,"",null,null,null,null,null,""]
[null,null,"",null,null,null,null,null,""]
[null,null,"",null,null,null,null,null,""]
[null,null,"",null,null,null,null,null,""]
[null,null,"",null,null,null,null,null,""]
[null,null,"",null,null,null,null,null,""]
[null,null,"",null,null,null,null,null,""]
[null,null,"",null,null,null,null,null,""]
[null,null,"",null,null,null,null,null,""]
[null,null,"",null,null,null,null,null,""]
[null,null,"",null,null,null,null,null,""]
[null,null,"",null,null,null,null,null,""]
[null,null,"",null,null,null,null,null,""]
[null,null,"",null,null,null,null,null,""]
[null,null,"",null,null,null,null,null,""]
[null,null,"",null,null,null,null,null,""]
[null,null,"",null,null,null,null,null,""]
[null,null,"",null,null,null,null,null,""]
[null,null,"",null,null,null,null,null,""]
[null,null,"",null,null,null,null,null,""]
[null,null,"",null,null,null,null,null,""]
[null,null,"",null,null,null,null,null,""]
[null,null,"",null,null,null,null,null,""]
[null,null,"",null,null,null,null,null,""]
[null,null,"",null,null,null,null,null,""]
[null,null,"",null,null,null,null,null,""]
[null,null,"",null,null,null,null,null,""]
[null,null,"",null,null,null,null,null,""]
[null,null,"",null,null,null,null,null,""]
[null,null,"",null,null,null,null,null,""]
[null,null,"",null,null,null,null,null,""]
[null,null,"",null,null,null,null,null,""]
[null,null,"",null,null,null,null,null,""]
[null,null,"",null,null,null,null,null,""]
[null,null,"",null,null,null,null,null,""]
[null,null,"",null,null,null,null,null,""]
[null,null,"",null,null,null,null,null,""]
[null,null,"",null,null,null,null,null,""]
[null,null,"",null,null,null,null,null,""]
[null,null,"",null,null,null,null,null,""]
[null,null,{"$f":"IF(B3843=\"\",\"\",IF(D3843<>\"\",DATEDIF(B3843,D3843,\"Y\"),DATEDIF(B3843,TODAY(),\"Y\")))","v":""},null,null,null,null,null,""]
[null,null,"",null,null,null,null,null,""]
[null,null,"",null,null,null,null,null,""]
[null,null,"",null,null,null,null,null,""]
[null,null,"",null,null,null,null,null,""]
[null,null,"",null,null,null,null,null,""]
[null,null,"",null,null,null,null,null,""]
[null,null,"",null,null,null,null,null,""]
[null,null,"",null,null,null,null,null,""]
[null,null,"",null,null,null,null,null,""]
[null,null,"",null,null,null,null,null,""]
[null,null,"",null,null,null,null,null,""]
[null,null,"",null,null,null,null,null,""]
[null,null,"",null,null,null,null,null,{"$f":"IF(F3856=\"\",\"\",IF(H3856<>\"\",H3856-F3856,IF(G3856<>\"\",G3856-F3856,\"\")))","v":""}]
[null,null,"",null,null,null,null,null,""]
[null,null,"",null,null,null,null,null,""]
[null,null,"",null,null,null,null,null,""]
[null,null,"",null,null,null,null,null,""]
[null,null,"",null,null,null,null,null,""]
[null,null,"",null,null,null,null,null,""]
[null,null,"",null,null,null,null,null,""]
[null,null,"",null,null,null,null,null,""]
[null,null,"",null,null,null,null,null,""]
[null,null,"",null,null,null,null,null,""]
[null,null,"",null,null,null,null,null,""]
[null,null,"",null,null,null,null,null,""]
[null,null,"",null,null,null,null,null,""]
[null,null,"",null,null,null,null,null,""]
[null,null,"",null,null,null,null,null,""]
[null,null,"",null,null,null,null,null,""]
[null,null,"",null,null,null,null,null,""]
[null,null,"",null,null,null,null,null,""]
[null,null,"",null,null,null,null,null,""]
[null,null,"",null,null,null,null,null,""]
[null,null,"",null,null,null,null,null,""]
[null,null,"",null,null,null,null,null,""]
[null,null,"",null,null,null,null,null,""]
[null,null,"",null,null,null,null,null,""]
[null,null,"",null,null,null,null,null,""]
[null,null,"",null,null,null,null,null,""]
[null,null,"",null,null,null,null,null,""]
[null,null,"",null,null,null,null,null,""]
[null,null,"",null,null,null,null,null,""]
[null,null,"",null,null,null,null,null,""]
[null,null,"",null,null,null,null,null,""]
[null,null,"",null,null,null,null,null,""]
[null,null,"",null,null,null,null,null,""]
[null,null,"",null,null,null,null,null,""]
[null,null,"",null,null,null,null,null,""]
[null,null,"",null,null,null,null,null,""]
[null,null,"",null,null,null,null,null,""]
[null,null,"",null,null,null,null,null,""]
[null,null,"",null,null,null,null,null,""]
[null,null,"",null,null,null,null,null,""]
[null,null,"",null,null,null,null,null,""]
[null,null,"",null,null,null,null,null,""]
[null,null,"",null,null,null,null,null,""]
[null,null,"",null,null,null,null,null,""]
[null,null,"",null,null,null,null,null,""]
[null,null,"",null,null,null,null,null,""]
[null,null,"",null,null,null,null,null,""]
[null,null,"",null,null,null,null,null,""]
[null,null,"",null,null,null,null,null,""]
[null,null,"",null,null,null,null,null,""]
[null,null,{"$f":"IF(B3907=\"\",\"\",IF(D3907<>\"\",DATEDIF(B3907,D3907,\"Y\"),DATEDIF(B3907,TODAY(),\"Y\")))","v":""},null,null,null,null,null,""]
[null,null,"",null,null,null,null,null,""]
[null,null,"",null,null,null,null,null,""]
[null,null,"",null,null,null,null,null,""]
[null,null,"",null,null,null,null,null,""]
[null,null,"",null,null,null,null,null,""]
[null,null,"",null,null,null,null,null,""]
[null,null,"",null,null,null,null,null,""]
[null,null,"",null,null,null,null,null,""]
[null,null,"",null,null,null,null,null,""]
[null,null,"",null,null,null,null,null,""]
[null,null,"",null,null,null,null,null,""]
[null,null,"",null,null,null,null,null,""]
[null,null,"",null,null,null,null,null,{"$f":"IF(F3920=\"\",\"\",IF(H3920<>\"\",H3920-F3920,IF(G3920<>\"\",G3920-F3920,\"\")))","v":""}]
[null,null,"",null,null,null,null,null,""]
[null,null,"",null,null,null,null,null,""]
[null,null,"",null,null,null,null,null,""]
[null,null,"",null,null,null,null,null,""]
[null,null,"",null,null,null,null,null,""]
[null,null,"",null,null,null,null,null,""]
[null,null,"",null,null,null,null,null,""]
[null,null,"",null,null,null,null,null,""]
[null,null,"",null,null,null,null,null,""]
[null,null,"",null,null,null,null,null,""]
[null,null,"",null,null,null,null,null,""]
[null,null,"",null,null,null,null,null,""]
[null,null,"",null,null,null,null,null,""]
[null,null,"",null,null,null,null,null,""]
[null,null,"",null,null,null,null,null,""]
[null,null,"",null,null,null,null,null,""]
[null,null,"",null,null,null,null,null,""]
[null,null,"",null,null,null,null,null,""]
[null,null,"",null,null,null,null,null,""]
[null,null,"",null,null,null,null,null,""]
[null,null,"",null,null,null,null,null,""]
[null,null,"",null,null,null,null,null,""]
[null,null,"",null,null,null,null,null,""]
[null,null,"",null,null,null,null,null,""]
[null,null,"",null,null,null,null,null,""]
[null,null,"",null,null,null,null,null,""]
[null,null,"",null,null,null,null,null,""]
[null,null,"",null,null,null,null,null,""]
[null,null,"",null,null,null,null,null,""]
[null,null,"",null,null,null,null,null,""]
[null,null,"",null,null,null,null,null,""]
[null,null,"",null,null,null,null,null,""]
[null,null,"",null,null,null,null,null,""]
[null,null,"",null,null,null,null,null,""]
[null,null,"",null,null,null,null,null,""]
[null,null,"",null,null,null,null,null,""]
[null,null,"",null,null,null,null,null,""]
[null,null,"",null,null,null,null,null,""]
[null,null,"",null,null,null,null,null,""]
[null,null,"",null,null,null,null,null,""]
[null,null,"",null,null,null,null,null,""]
[null,null,"",null,null,null,null,null,""]
[null,null,"",null,null,null,null,null,""]
[null,null,"",null,null,null,null,null,""]
[null,null,"",null,null,null,null,null,""]
[null,null,"",null,null,null,null,null,""]
[null,null,"",null,null,null,null,null,""]
[null,null,"",null,null,null,null,null,""]
[null,null,"",null,null,null,null,null,""]
[null,null,"",null,null,null,null,null,""]
[null,null,{"$f":"IF(B3971=\"\",\"\",IF(D3971<>\"\",DATEDIF(B3971,D3971,\"Y\"),DATEDIF(B3971,TODAY(),\"Y\")))","v":""},null,null,null,null,null,""]
[null,null,"",null,null,null,null,null,""]
[null,null,"",null,null,null,null,null,""]
[null,null,"",null,null,null,null,null,""]
[null,null,"",null,null,null,null,null,""]
[null,null,"",null,null,null,null,null,""]
[null,null,"",null,null,null,null,null,""]
[null,null,"",null,null,null,null,null,""]
[null,null,"",null,null,null,null,null,""]
[null,null,"",null,null,null,null,null,""]
[null,null,"",null,null,null,null,null,""]
[null,null,"",null,null,null,null,null,""]
[null,null,"",null,null,null,null,null,""]
[null,null,"",null,null,null,null,null,{"$f":"IF(F3984=\"\",\"\",IF(H3984<>\"\",H3984-F3984,IF(G3984<>\"\",G3984-F3984,\"\")))","v":""}]
[null,null,"",null,null,null,null,null,""]
[null,null,"",null,null,null,null,null,""]
[null,null,"",null,null,null,null,null,""]
[null,null,"",null,null,null,null,null,""]
[null,null,"",null,null,null,null,null,""]
[null,null,"",null,null,null,null,null,""]
[null,null,"",null,null,null,null,null,""]
[null,null,"",null,null,null,null,null,""]
[null,null,"",null,null,null,null,null,""]
[null,null,"",null,null,null,null,null,""]
[null,null,"",null,null,null,null,null,""]
[null,null,"",null,null,null,null,null,""]
[null,null,"",null,null,null,null,null,""]
[null,null,"",null,null,null,null,null,""]
[null,null,"",null,null,null,null,null,""]
[null,null,"",null,null,null,null,null,""]
[null,null,"",null,null,null,null,null,""]
[null,null,"",null,null,null,null,null,""]
[null,null,"",null,null,null,null,null,""]
[null,null,"",null,null,null,null,null,""]
[null,null,"",null,null,null,null,null,""]
[null,null,"",null,null,null,null,null,""]
[null,null,"",null,null,null,null,null,""]
[null,null,"",null,null,null,null,null,""]
[null,null,"",null,null,null,null,null,""]
[null,null,"",null,null,null,null,null,""]
[null,null,"",null,null,null,null,null,""]
[null,null,"",null,null,null,null,null,""]
[null,null,"",null,null,null,null,null,""]
[null,null,"",null,null,null,null,null,""]
[null,null,"",null,null,null,null,null,""]
[null,null,"",null,null,null,null,null,""]
[null,null,"",null,null,null,null,null,""]
[null,null,"",null,null,null,null,null,""]
[null,null,"",null,null,null,null,null,""]
[null,null,"",null,null,null,null,null,""]
[null,null,"",null,null,null,null,null,""]
[null,null,"",null,null,null,null,null,""]
[null,null,"",null,null,null,null,null,""]
[null,null,"",null,null,null,null,null,""]
[null,null,"",null,null,null,null,null,""]
[null,null,"",null,null,null,null,null,""]
[null,null,"",null,null,null,null,null,""]
[null,null,"",null,null,null,null,null,""]
[null,null,"",null,null,null,null,null,""]
[null,null,"",null,null,null,null,null,""]
[null,null,"",null,null,null,null,null,""]
[null,null,"",null,null,null,null,null,""]
[null,null,"",null,null,null,null,null,""]
[null,null,"",null,null,null,null,null,""]
[null,null,{"$f":"IF(B4035=\"\",\"\",IF(D4035<>\"\",DATEDIF(B4035,D4035,\"Y\"),DATEDIF(B4035,TODAY(),\"Y\")))","v":""},null,null,null,null,null,""]
[null,null,"",null,null,null,null,null,""]
[null,null,"",null,null,null,null,null,""]
[null,null,"",null,null,null,null,null,""]
[null,null,"",null,null,null,null,null,""]
[null,null,"",null,null,null,null,null,""]
[null,null,"",null,null,null,null,null,""]
[null,null,"",null,null,null,null,null,""]
[null,null,"",null,null,null,null,null,""]
[null,null,"",null,null,null,null,null,""]
[null,null,"",null,null,null,null,null,""]
[null,null,"",null,null,null,null,null,""]
[null,null,"",null,null,null,null,null,""]
[null,null,"",null,null,null,null,null,{"$f":"IF(F4048=\"\",\"\",IF(H4048<>\"\",H4048-F4048,IF(G4048<>\"\",G4048-F4048,\"\")))","v":""}]
[null,null,"",null,null,null,null,null,""]
[null,null,"",null,null,null,null,null,""]
[null,null,"",null,null,null,null,null,""]
[null,null,"",null,null,null,null,null,""]
[null,null,"",null,null,null,null,null,""]
[null,null,"",null,null,null,null,null,""]
[null,null,"",null,null,null,null,null,""]
[null,null,"",null,null,null,null,null,""]
[null,null,"",null,null,null,null,null,""]
[null,null,"",null,null,null,null,null,""]
[null,null,"",null,null,null,null,null,""]
[null,null,"",null,null,null,null,null,""]
[null,null,"",null,null,null,null,null,""]
[null,null,"",null,null,null,null,null,""]
[null,null,"",null,null,null,null,null,""]
[null,null,"",null,null,null,null,null,""]
[null,null,"",null,null,null,null,null,""]
[null,null,"",null,null,null,null,null,""]
[null,null,"",null,null,null,null,null,""]
[null,null,"",null,null,null,null,null,""]
[null,null,"",null,null,null,null,null,""]
[null,null,"",null,null,null,null,null,""]
[null,null,"",null,null,null,null,null,""]
[null,null,"",null,null,null,null,null,""]
[null,null,"",null,null,null,null,null,""]
[null,null,"",null,null,null,null,null,""]
[null,null,"",null,null,null,null,null,""]
[null,null,"",null,null,null,null,null,""]
[null,null,"",null,null,null,null,null,""]
[null,null,"",null,null,null,null,null,""]
[null,null,"",null,null,null,null,null,""]
[null,null,"",null,null,null,null,null,""]
[null,null,"",null,null,null,null,null,""]
[null,null,"",null,null,null,null,null,""]
[null,null,"",null,null,null,null,null,""]
[null,null,"",null,null,null,null,null,""]
[null,null,"",null,null,null,null,null,""]
[null,null,"",null,null,null,null,null,""]
[null,null,"",null,null,null,null,null,""]
[null,null,"",null,null,null,null,null,""]
[null,null,"",null,null,null,null,null,""]
[null,null,"",null,null,null,null,null,""]
[null,null,"",null,null,null,null,null,""]
[null,null,"",null,null,null,null,null,""]
[null,null,"",null,null,null,null,null,""]
[null,null,"",null,null,null,null,null,""]
[null,null,"",null,null,null,null,null,""]
[null,null,"",null,null,null,null,null,""]
[null,null,"",null,null,null,null,null,""]
[null,null,"",null,null,null,null,null,""]
[null,null,{"$f":"IF(B4099=\"\",\"\",IF(D4099<>\"\",DATEDIF(B4099,D4099,\"Y\"),DATEDIF(B4099,TODAY(),\"Y\")))","v":""},null,null,null,null,null,""]
[null,null,"",null,null,null,null,null,""]
[null,null,"",null,null,null,null,null,""]
[null,null,"",null,null,null,null,null,""]
[null,null,"",null,null,null,null,null,""]
[null,null,"",null,null,null,null,null,""]
[null,null,"",null,null,null,null,null,""]
[null,null,"",null,null,null,null,null,""]
[null,null,"",null,null,null,null,null,""]
[null,null,"",null,null,null,null,null,""]
[null,null,"",null,null,null,null,null,""]
[null,null,"",null,null,null,null,null,""]
[null,null,"",null,null,null,null,null,""]
[null,null,"",null,null,null,null,null,{"$f":"IF(F4112=\"\",\"\",IF(H4112<>\"\",H4112-F4112,IF(G4112<>\"\",G4112-F4112,\"\")))","v":""}]
[null,null,"",null,null,null,null,null,""]
[null,null,"",null,null,null,null,null,""]
[null,null,"",null,null,null,null,null,""]
[null,null,"",null,null,null,null,null,""]
[null,null,"",null,null,null,null,null,""]
[null,null,"",null,null,null,null,null,""]
[null,null,"",null,null,null,null,null,""]
[null,null,"",null,null,null,null,null,""]
[null,null,"",null,null,null,null,null,""]
[null,null,"",null,null,null,null,null,""]
[null,null,"",null,null,null,null,null,""]
[null,null,"",null,null,null,null,null,""]
[null,null,"",null,null,null,null,null,""]
[null,null,"",null,null,null,null,null,""]
[null,null,"",null,null,null,null,null,""]
[null,null,"",null,null,null,null,null,""]
[null,null,"",null,null,null,null,null,""]
[null,null,"",null,null,null,null,null,""]
[null,null,"",null,null,null,null,null,""]
[null,null,"",null,null,null,null,null,""]
[null,null,"",null,null,null,null,null,""]
[null,null,"",null,null,null,null,null,""]
[null,null,"",null,null,null,null,null,""]
[null,null,"",null,null,null,null,null,""]
[null,null,"",null,null,null,null,null,""]
[null,null,"",null,null,null,null,null,""]
[null,null,"",null,null,null,null,null,""]
[null,null,"",null,null,null,null,null,""]
[null,null,"",null,null,null,null,null,""]
[null,null,"",null,null,null,null,null,""]
[null,null,"",null,null,null,null,null,""]
[null,null,"",null,null,null,null,null,""]
[null,null,"",null,null,null,null,null,""]
[null,null,"",null,null,null,null,null,""]
[null,null,"",null,null,null,null,null,""]
[null,null,"",null,null,null,null,null,""]
[null,null,"",null,null,null,null,null,""]
[null,null,"",null,null,null,null,null,""]
[null,null,"",null,null,null,null,null,""]
[null,null,"",null,null,null,null,null,""]
[null,null,"",null,null,null,null,null,""]
[null,null,"",null,null,null,null,null,""]
[null,null,"",null,null,null,null,null,""]
[null,null,"",null,null,null,null,null,""]
[null,null,"",null,null,null,null,null,""]
[null,null,"",null,null,null,null,null,""]
[null,null,"",null,null,null,null,null,""]
[null,null,"",null,null,null,null,null,""]
[null,null,"",null,null,null,null,null,""]
[null,null,"",null,null,null,null,null,""]
[null,null,{"$f":"IF(B4163=\"\",\"\",IF(D4163<>\"\",DATEDIF(B4163,D4163,\"Y\"),DATEDIF(B4163,TODAY(),\"Y\")))","v":""},null,null,null,null,null,""]
[null,null,"",null,null,null,null,null,""]
[null,null,"",null,null,null,null,null,""]
[null,null,"",null,null,null,null,null,""]
[null,null,"",null,null,null,null,null,""]
[null,null,"",null,null,null,null,null,""]
[null,null,"",null,null,null,null,null,""]
[null,null,"",null,null,null,null,null,""]
[null,null,"",null,null,null,null,null,""]
[null,null,"",null,null,null,null,null,""]
[null,null,"",null,null,null,null,null,""]
[null,null,"",null,null,null,null,null,""]
[null,null,"",null,null,null,null,null,""]
[null,null,"",null,null,null,null,null,{"$f":"IF(F4176=\"\",\"\",IF(H4176<>\"\",H4176-F4176,IF(G4176<>\"\",G4176-F4176,\"\")))","v":""}]
[null,null,"",null,null,null,null,null,""]
[null,null,"",null,null,null,null,null,""]
[null,null,"",null,null,null,null,null,""]
[null,null,"",null,null,null,null,null,""]
[null,null,"",null,null,null,null,null,""]
[null,null,"",null,null,null,null,null,""]
[null,null,"",null,null,null,null,null,""]
[null,null,"",null,null,null,null,null,""]
[null,null,"",null,null,null,null,null,""]
[null,null,"",null,null,null,null,null,""]
[null,null,"",null,null,null,null,null,""]
[null,null,"",null,null,null,null,null,""]
[null,null,"",null,null,null,null,null,""]
[null,null,"",null,null,null,null,null,""]
[null,null,"",null,null,null,null,null,""]
[null,null,"",null,null,null,null,null,""]
[null,null,"",null,null,null,null,null,""]
[null,null,"",null,null,null,null,null,""]
[null,null,"",null,null,null,null,null,""]
[null,null,"",null,null,null,null,null,""]
[null,null,"",null,null,null,null,null,""]
[null,null,"",null,null,null,null,null,""]
[null,null,"",null,null,null,null,null,""]
[null,null,"",null,null,null,null,null,""]
[null,null,"",null,null,null,null,null,""]
[null,null,"",null,null,null,null,null,""]
[null,null,"",null,null,null,null,null,""]
[null,null,"",null,null,null,null,null,""]
[null,null,"",null,null,null,null,null,""]
[null,null,"",null,null,null,null,null,""]
[null,null,"",null,null,null,null,null,""]
[null,null,"",null,null,null,null,null,""]
[null,null,"",null,null,null,null,null,""]
[null,null,"",null,null,null,null,null,""]
[null,null,"",null,null,null,null,null,""]
[null,null,"",null,null,null,null,null,""]
[null,null,"",null,null,null,null,null,""]
[null,null,"",null,null,null,null,null,""]
[null,null,"",null,null,null,null,null,""]
[null,null,"",null,null,null,null,null,""]
[null,null,"",null,null,null,null,null,""]
[null,null,"",null,null,null,null,null,""]
[null,null,"",null,null,null,null,null,""]
[null,null,"",null,null,null,null,null,""]
[null,null,"",null,null,null,null,null,""]
[null,null,"",null,null,null,null,null,""]
[null,null,"",null,null,null,null,null,""]
[null,null,"",null,null,null,null,null,""]
[null,null,"",null,null,null,null,null,""]
[null,null,"",null,null,null,null,null,""]
[null,null,{"$f":"IF(B4227=\"\",\"\",IF(D4227<>\"\",DATEDIF(B4227,D4227,\"Y\"),DATEDIF(B4227,TODAY(),\"Y\")))","v":""},null,null,null,null,null,""]
[null,null,"",null,null,null,null,null,""]
[null,null,"",null,null,null,null,null,""]
[null,null,"",null,null,null,null,null,""]
[null,null,"",null,null,null,null,null,""]
[null,null,"",null,null,null,null,null,""]
[null,null,"",null,null,null,null,null,""]
[null,null,"",null,null,null,null,null,""]
[null,null,"",null,null,null,null,null,""]
[null,null,"",null,null,null,null,null,""]
[null,null,"",null,null,null,null,null,""]
[null,null,"",null,null,null,null,null,""]
[null,null,"",null,null,null,null,null,""]
[null,null,"",null,null,null,null,null,{"$f":"IF(F4240=\"\",\"\",IF(H4240<>\"\",H4240-F4240,IF(G4240<>\"\",G4240-F4240,\"\")))","v":""}]
[null,null,"",null,null,null,null,null,""]
[null,null,"",null,null,null,null,null,""]
[null,null,"",null,null,null,null,null,""]
[null,null,"",null,null,null,null,null,""]
[null,null,"",null,null,null,null,null,""]
[null,null,"",null,null,null,null,null,""]
[null,null,"",null,null,null,null,null,""]
[null,null,"",null,null,null,null,null,""]
[null,null,"",null,null,null,null,null,""]
[null,null,"",null,null,null,null,null,""]
[null,null,"",null,null,null,null,null,""]
[null,null,"",null,null,null,null,null,""]
[null,null,"",null,null,null,null,null,""]
[null,null,"",null,null,null,null,null,""]
[null,null,"",null,null,null,null,null,""]
[null,null,"",null,null,null,null,null,""]
[null,null,"",null,null,null,null,null,""]
[null,null,"",null,null,null,null,null,""]
[null,null,"",null,null,null,null,null,""]
[null,null,"",null,null,null,null,null,""]
[null,null,"",null,null,null,null,null,""]
[null,null,"",null,null,null,null,null,""]
[null,null,"",null,null,null,null,null,""]
[null,null,"",null,null,null,null,null,""]
[null,null,"",null,null,null,null,null,""]
[null,null,"",null,null,null,null,null,""]
[null,null,"",null,null,null,null,null,""]
[null,null,"",null,null,null,null,null,""]
[null,null,"",null,null,null,null,null,""]
[null,null,"",null,null,null,null,null,""]
[null,null,"",null,null,null,null,null,""]
[null,null,"",null,null,null,null,null,""]
[null,null,"",null,null,null,null,null,""]
[null,null,"",null,null,null,null,null,""]
[null,null,"",null,null,null,null,null,""]
[null,null,"",null,null,null,null,null,""]
[null,null,"",null,null,null,null,null,""]
[null,null,"",null,null,null,null,null,""]
[null,null,"",null,null,null,null,null,""]
[null,null,"",null,null,null,null,null,""]
[null,null,"",null,null,null,null,null,""]
[null,null,"",null,null,null,null,null,""]
[null,null,"",null,null,null,null,null,""]
[null,null,"",null,null,null,null,null,""]
[null,null,"",null,null,null,null,null,""]
[null,null,"",null,null,null,null,null,""]
[null,null,"",null,null,null,null,null,""]
[null,null,"",null,null,null,null,null,""]
[null,null,"",null,null,null,null,null,""]
[null,null,"",null,null,null,null,null,""]
[null,null,{"$f":"IF(B4291=\"\",\"\",IF(D4291<>\"\",DATEDIF(B4291,D4291,\"Y\"),DATEDIF(B4291,TODAY(),\"Y\")))","v":""},null,null,null,null,null,""]
[null,null,"",null,null,null,null,null,""]
[null,null,"",null,null,null,null,null,""]
[null,null,"",null,null,null,null,null,""]
[null,null,"",null,null,null,null,null,""]
[null,null,"",null,null,null,null,null,""]
[null,null,"",null,null,null,null,null,""]
[null,null,"",null,null,null,null,null,""]
[null,null,"",null,null,null,null,null,""]
[null,null,"",null,null,null,null,null,""]
[null,null,"",null,null,null,null,null,""]
[null,null,"",null,null,null,null,null,""]
[null,null,"",null,null,null,null,null,""]
[null,null,"",null,null,null,null,null,{"$f":"IF(F4304=\"\",\"\",IF(H4304<>\"\",H4304-F4304,IF(G4304<>\"\",G4304-F4304,\"\")))","v":""}]
[null,null,"",null,null,null,null,null,""]
[null,null,"",null,null,null,null,null,""]
[null,null,"",null,null,null,null,null,""]
[null,null,"",null,null,null,null,null,""]
[null,null,"",null,null,null,null,null,""]
[null,null,"",null,null,null,null,null,""]
[null,null,"",null,null,null,null,null,""]
[null,null,"",null,null,null,null,null,""]
[null,null,"",null,null,null,null,null,""]
[null,null,"",null,null,null,null,null,""]
[null,null,"",null,null,null,null,null,""]
[null,null,"",null,null,null,null,null,""]
[null,null,"",null,null,null,null,null,""]
[null,null,"",null,null,null,null,null,""]
[null,null,"",null,null,null,null,null,""]
[null,null,"",null,null,null,null,null,""]
[null,null,"",null,null,null,null,null,""]
[null,null,"",null,null,null,null,null,""]
[null,null,"",null,null,null,null,null,""]
[null,null,"",null,null,null,null,null,""]
[null,null,"",null,null,null,null,null,""]
[null,null,"",null,null,null,null,null,""]
[null,null,"",null,null,null,null,null,""]
[null,null,"",null,null,null,null,null,""]
[null,null,"",null,null,null,null,null,""]
[null,null,"",null,null,null,null,null,""]
[null,null,"",null,null,null,null,null,""]
[null,null,"",null,null,null,null,null,""]
[null,null,"",null,null,null,null,null,""]
[null,null,"",null,null,null,null,null,""]
[null,null,"",null,null,null,null,null,""]
[null,null,"",null,null,null,null,null,""]
[null,null,"",null,null,null,null,null,""]
[null,null,"",null,null,null,null,null,""]
[null,null,"",null,null,null,null,null,""]
[null,null,"",null,null,null,null,null,""]
[null,null,"",null,null,null,null,null,""]
[null,null,"",null,null,null,null,null,""]
[null,null,"",null,null,null,null,null,""]
[null,null,"",null,null,null,null,null,""]
[null,null,"",null,null,null,null,null,""]
[null,null,"",null,null,null,null,null,""]
[null,null,"",null,null,null,null,null,""]
[null,null,"",null,null,null,null,null,""]
[null,null,"",null,null,null,null,null,""]
[null,null,"",null,null,null,null,null,""]
[null,null,"",null,null,null,null,null,""]
[null,null,"",null,null,null,null,null,""]
[null,null,"",null,null,null,null,null,""]
[null,null,"",null,null,null,null,null,""]
[null,null,{"$f":"IF(B4355=\"\",\"\",IF(D4355<>\"\",DATEDIF(B4355,D4355,\"Y\"),DATEDIF(B4355,TODAY(),\"Y\")))","v":""},null,null,null,null,null,""]
[null,null,"",null,null,null,null,null,""]
[null,null,"",null,null,null,null,null,""]
[null,null,"",null,null,null,null,null,""]
[null,null,"",null,null,null,null,null,""]
[null,null,"",null,null,null,null,null,""]
[null,null,"",null,null,null,null,null,""]
[null,null,"",null,null,null,null,null,""]
[null,null,"",null,null,null,null,null,""]
[null,null,"",null,null,null,null,null,""]
[null,null,"",null,null,null,null,null,""]
[null,null,"",null,null,null,null,null,""]
[null,null,"",null,null,null,null,null,""]
[null,null,"",null,null,null,null,null,{"$f":"IF(F4368=\"\",\"\",IF(H4368<>\"\",H4368-F4368,IF(G4368<>\"\",G4368-F4368,\"\")))","v":""}]
[null,null,"",null,null,null,null,null,""]
[null,null,"",null,null,null,null,null,""]
[null,null,"",null,null,null,null,null,""]
[null,null,"",null,null,null,null,null,""]
[null,null,"",null,null,null,null,null,""]
[null,null,"",null,null,null,null,null,""]
[null,null,"",null,null,null,null,null,""]
[null,null,"",null,null,null,null,null,""]
[null,null,"",null,null,null,null,null,""]
[null,null,"",null,null,null,null,null,""]
[null,null,"",null,null,null,null,null,""]
[null,null,"",null,null,null,null,null,""]
[null,null,"",null,null,null,null,null,""]
[null,null,"",null,null,null,null,null,""]
[null,null,"",null,null,null,null,null,""]
[null,null,"",null,null,null,null,null,""]
[null,null,"",null,null,null,null,null,""]
[null,null,"",null,null,null,null,null,""]
[null,null,"",null,null,null,null,null,""]
[null,null,"",null,null,null,null,null,""]
[null,null,"",null,null,null,null,null,""]
[null,null,"",null,null,null,null,null,""]
[null,null,"",null,null,null,null,null,""]
[null,null,"",null,null,null,null,null,""]
[null,null,"",null,null,null,null,null,""]
[null,null,"",null,null,null,null,null,""]
[null,null,"",null,null,null,null,null,""]
[null,null,"",null,null,null,null,null,""]
[null,null,"",null,null,null,null,null,""]
[null,null,"",null,null,null,null,null,""]
[null,null,"",null,null,null,null,null,""]
[null,null,"",null,null,null,null,null,""]
[null,null,"",null,null,null,null,null,""]
[null,null,"",null,null,null,null,null,""]
[null,null,"",null,null,null,null,null,""]
[null,null,"",null,null,null,null,null,""]
[null,null,"",null,null,null,null,null,""]
[null,null,"",null,null,null,null,null,""]
[null,null,"",null,null,null,null,null,""]
[null,null,"",null,null,null,null,null,""]
[null,null,"",null,null,null,null,null,""]
[null,null,"",null,null,null,null,null,""]
[null,null,"",null,null,null,null,null,""]
[null,null,"",null,null,null,null,null,""]
[null,null,"",null,null,null,null,null,""]
[null,null,"",null,null,null,null,null,""]
[null,null,"",null,null,null,null,null,""]
[null,null,"",null,null,null,null,null,""]
[null,null,"",null,null,null,null,null,""]
[null,null,"",null,null,null,null,null,""]
[null,null,{"$f":"IF(B4419=\"\",\"\",IF(D4419<>\"\",DATEDIF(B4419,D4419,\"Y\"),DATEDIF(B4419,TODAY(),\"Y\")))","v":""},null,null,null,null,null,""]
[null,null,"",null,null,null,null,null,""]
[null,null,"",null,null,null,null,null,""]
[null,null,"",null,null,null,null,null,""]
[null,null,"",null,null,null,null,null,""]
[null,null,"",null,null,null,null,null,""]
[null,null,"",null,null,null,null,null,""]
[null,null,"",null,null,null,null,null,""]
[null,null,"",null,null,null,null,null,""]
[null,null,"",null,null,null,null,null,""]
[null,null,"",null,null,null,null,null,""]
[null,null,"",null,null,null,null,null,""]
[null,null,"",null,null,null,null,null,""]
[null,null,"",null,null,null,null,null,{"$f":"IF(F4432=\"\",\"\",IF(H4432<>\"\",H4432-F4432,IF(G4432<>\"\",G4432-F4432,\"\")))","v":""}]
[null,null,"",null,null,null,null,null,""]
[null,null,"",null,null,null,null,null,""]
[null,null,"",null,null,null,null,null,""]
[null,null,"",null,null,null,null,null,""]
[null,null,"",null,null,null,null,null,""]
[null,null,"",null,null,null,null,null,""]
[null,null,"",null,null,null,null,null,""]
[null,null,"",null,null,null,null,null,""]
[null,null,"",null,null,null,null,null,""]
[null,null,"",null,null,null,null,null,""]
[null,null,"",null,null,null,null,null,""]
[null,null,"",null,null,null,null,null,""]
[null,null,"",null,null,null,null,null,""]
[null,null,"",null,null,null,null,null,""]
[null,null,"",null,null,null,null,null,""]
[null,null,"",null,null,null,null,null,""]
[null,null,"",null,null,null,null,null,""]
[null,null,"",null,null,null,null,null,""]
[null,null,"",null,null,null,null,null,""]
[null,null,"",null,null,null,null,null,""]
[null,null,"",null,null,null,null,null,""]
[null,null,"",null,null,null,null,null,""]
[null,null,"",null,null,null,null,null,""]
[null,null,"",null,null,null,null,null,""]
[null,null,"",null,null,null,null,null,""]
[null,null,"",null,null,null,null,null,""]
[null,null,"",null,null,null,null,null,""]
[null,null,"",null,null,null,null,null,""]
[null,null,"",null,null,null,null,null,""]
[null,null,"",null,null,null,null,null,""]
[null,null,"",null,null,null,null,null,""]
[null,null,"",null,null,null,null,null,""]
[null,null,"",null,null,null,null,null,""]
[null,null,"",null,null,null,null,null,""]
[null,null,"",null,null,null,null,null,""]
[null,null,"",null,null,null,null,null,""]
[null,null,"",null,null,null,null,null,""]
[null,null,"",null,null,null,null,null,""]
[null,null,"",null,null,null,null,null,""]
[null,null,"",null,null,null,null,null,""]
[null,null,"",null,null,null,null,null,""]
[null,null,"",null,null,null,null,null,""]
[null,null,"",null,null,null,null,null,""]
[null,null,"",null,null,null,null,null,""]
[null,null,"",null,null,null,null,null,""]
[null,null,"",null,null,null,null,null,""]
[null,null,"",null,null,null,null,null,""]
[null,null,"",null,null,null,null,null,""]
[null,null,"",null,null,null,null,null,""]
[null,null,"",null,null,null,null,null,""]
[null,null,{"$f":"IF(B4483=\"\",\"\",IF(D4483<>\"\",DATEDIF(B4483,D4483,\"Y\"),DATEDIF(B4483,TODAY(),\"Y\")))","v":""},null,null,null,null,null,""]
[null,null,"",null,null,null,null,null,""]
[null,null,"",null,null,null,null,null,""]
[null,null,"",null,null,null,null,null,""]
[null,null,"",null,null,null,null,null,""]
[null,null,"",null,null,null,null,null,""]
[null,null,"",null,null,null,null,null,""]
[null,null,"",null,null,null,null,null,""]
[null,null,"",null,null,null,null,null,""]
[null,null,"",null,null,null,null,null,""]
[null,null,"",null,null,null,null,null,""]
[null,null,"",null,null,null,null,null,""]
[null,null,"",null,null,null,null,null,""]
[null,null,"",null,null,null,null,null,{"$f":"IF(F4496=\"\",\"\",IF(H4496<>\"\",H4496-F4496,IF(G4496<>\"\",G4496-F4496,\"\")))","v":""}]
[null,null,"",null,null,null,null,null,""]
[null,null,"",null,null,null,null,null,""]
[null,null,"",null,null,null,null,null,""]
[null,null,"",null,null,null,null,null,""]
[null,null,"",null,null,null,null,null,""]
[null,null,"",null,null,null,null,null,""]
[null,null,"",null,null,null,null,null,""]
[null,null,"",null,null,null,null,null,""]
[null,null,"",null,null,null,null,null,""]
[null,null,"",null,null,null,null,null,""]
[null,null,"",null,null,null,null,null,""]
[null,null,"",null,null,null,null,null,""]
[null,null,"",null,null,null,null,null,""]
[null,null,"",null,null,null,null,null,""]
[null,null,"",null,null,null,null,null,""]
[null,null,"",null,null,null,null,null,""]
[null,null,"",null,null,null,null,null,""]
[null,null,"",null,null,null,null,null,""]
[null,null,"",null,null,null,null,null,""]
[null,null,"",null,null,null,null,null,""]
[null,null,"",null,null,null,null,null,""]
[null,null,"",null,null,null,null,null,""]
[null,null,"",null,null,null,null,null,""]
[null,null,"",null,null,null,null,null,""]
[null,null,"",null,null,null,null,null,""]
[null,null,"",null,null,null,null,null,""]
[null,null,"",null,null,null,null,null,""]
[null,null,"",null,null,null,null,null,""]
[null,null,"",null,null,null,null,null,""]
[null,null,"",null,null,null,null,null,""]
[null,null,"",null,null,null,null,null,""]
[null,null,"",null,null,null,null,null,""]
[null,null,"",null,null,null,null,null,""]
[null,null,"",null,null,null,null,null,""]
[null,null,"",null,null,null,null,null,""]
[null,null,"",null,null,null,null,null,""]
[null,null,"",null,null,null,null,null,""]
[null,null,"",null,null,null,null,null,""]
[null,null,"",null,null,null,null,null,""]
[null,null,"",null,null,null,null,null,""]
[null,null,"",null,null,null,null,null,""]
[null,null,"",null,null,null,null,null,""]
[null,null,"",null,null,null,null,null,""]
[null,null,"",null,null,null,null,null,""]
[null,null,"",null,null,null,null,null,""]
[null,null,"",null,null,null,null,null,""]
[null,null,"",null,null,null,null,null,""]
[null,null,"",null,null,null,null,null,""]
[null,null,"",null,null,null,null,null,""]
[null,null,"",null,null,null,null,null,""]
[null,null,{"$f":"IF(B4547=\"\",\"\",IF(D4547<>\"\",DATEDIF(B4547,D4547,\"Y\"),DATEDIF(B4547,TODAY(),\"Y\")))","v":""},null,null,null,null,null,""]
[null,null,"",null,null,null,null,null,""]
[null,null,"",null,null,null,null,null,""]
[null,null,"",null,null,null,null,null,""]
[null,null,"",null,null,null,null,null,""]
[null,null,"",null,null,null,null,null,""]
[null,null,"",null,null,null,null,null,""]
[null,null,"",null,null,null,null,null,""]
[null,null,"",null,null,null,null,null,""]
[null,null,"",null,null,null,null,null,""]
[null,null,"",null,null,null,null,null,""]
[null,null,"",null,null,null,null,null,""]
[null,null,"",null,null,null,null,null,""]
[null,null,"",null,null,null,null,null,{"$f":"IF(F4560=\"\",\"\",IF(H4560<>\"\",H4560-F4560,IF(G4560<>\"\",G4560-F4560,\"\")))","v":""}]
[null,null,"",null,null,null,null,null,""]
[null,null,"",null,null,null,null,null,""]
[null,null,"",null,null,null,null,null,""]
[null,null,"",null,null,null,null,null,""]
[null,null,"",null,null,null,null,null,""]
[null,null,"",null,null,null,null,null,""]
[null,null,"",null,null,null,null,null,""]
[null,null,"",null,null,null,null,null,""]
[null,null,"",null,null,null,null,null,""]
[null,null,"",null,null,null,null,null,""]
[null,null,"",null,null,null,null,null,""]
[null,null,"",null,null,null,null,null,""]
[null,null,"",null,null,null,null,null,""]
[null,null,"",null,null,null,null,null,""]
[null,null,"",null,null,null,null,null,""]
[null,null,"",null,null,null,null,null,""]
[null,null,"",null,null,null,null,null,""]
[null,null,"",null,null,null,null,null,""]
[null,null,"",null,null,null,null,null,""]
[null,null,"",null,null,null,null,null,""]
[null,null,"",null,null,null,null,null,""]
[null,null,"",null,null,null,null,null,""]
[null,null,"",null,null,null,null,null,""]
[null,null,"",null,null,null,null,null,""]
[null,null,"",null,null,null,null,null,""]
[null,null,"",null,null,null,null,null,""]
[null,null,"",null,null,null,null,null,""]
[null,null,"",null,null,null,null,null,""]
[null,null,"",null,null,null,null,null,""]
[null,null,"",null,null,null,null,null,""]
[null,null,"",null,null,null,null,null,""]
[null,null,"",null,null,null,null,null,""]
[null,null,"",null,null,null,null,null,""]
[null,null,"",null,null,null,null,null,""]
[null,null,"",null,null,null,null,null,""]
[null,null,"",null,null,null,null,null,""]
[null,null,"",null,null,null,null,null,""]
[null,null,"",null,null,null,null,null,""]
[null,null,"",null,null,null,null,null,""]
[null,null,"",null,null,null,null,null,""]
[null,null,"",null,null,null,null,null,""]
[null,null,"",null,null,null,null,null,""]
[null,null,"",null,null,null,null,null,""]
[null,null,"",null,null,null,null,null,""]
[null,null,"",null,null,null,null,null,""]
[null,null,"",null,null,null,null,null,""]
[null,null,"",null,null,null,null,null,""]
[null,null,"",null,null,null,null,null,""]
[null,null,"",null,null,null,null,null,""]
[null,null,"",null,null,null,null,null,""]
[null,null,{"$f":"IF(B4611=\"\",\"\",IF(D4611<>\"\",DATEDIF(B4611,D4611,\"Y\"),DATEDIF(B4611,TODAY(),\"Y\")))","v":""},null,null,null,null,null,""]
[null,null,"",null,null,null,null,null,""]
[null,null,"",null,null,null,null,null,""]
[null,null,"",null,null,null,null,null,""]
[null,null,"",null,null,null,null,null,""]
[null,null,"",null,null,null,null,null,""]
[null,null,"",null,null,null,null,null,""]
[null,null,"",null,null,null,null,null,""]
[null,null,"",null,null,null,null,null,""]
[null,null,"",null,null,null,null,null,""]
[null,null,"",null,null,null,null,null,""]
[null,null,"",null,null,null,null,null,""]
[null,null,"",null,null,null,null,null,""]
[null,null,"",null,null,null,null,null,{"$f":"IF(F4624=\"\",\"\",IF(H4624<>\"\",H4624-F4624,IF(G4624<>\"\",G4624-F4624,\"\")))","v":""}]
[null,null,"",null,null,null,null,null,""]
[null,null,"",null,null,null,null,null,""]
[null,null,"",null,null,null,null,null,""]
[null,null,"",null,null,null,null,null,""]
[null,null,"",null,null,null,null,null,""]
[null,null,"",null,null,null,null,null,""]
[null,null,"",null,null,null,null,null,""]
[null,null,"",null,null,null,null,null,""]
[null,null,"",null,null,null,null,null,""]
[null,null,"",null,null,null,null,null,""]
[null,null,"",null,null,null,null,null,""]
[null,null,"",null,null,null,null,null,""]
[null,null,"",null,null,null,null,null,""]
[null,null,"",null,null,null,null,null,""]
[null,null,"",null,null,null,null,null,""]
[null,null,"",null,null,null,null,null,""]
[null,null,"",null,null,null,null,null,""]
[null,null,"",null,null,null,null,null,""]
[null,null,"",null,null,null,null,null,""]
[null,null,"",null,null,null,null,null,""]
[null,null,"",null,null,null,null,null,""]
[null,null,"",null,null,null,null,null,""]
[null,null,"",null,null,null,null,null,""]
[null,null,"",null,null,null,null,null,""]
[null,null,"",null,null,null,null,null,""]
[null,null,"",null,null,null,null,null,""]
[null,null,"",null,null,null,null,null,""]
[null,null,"",null,null,null,null,null,""]
[null,null,"",null,null,null,null,null,""]
[null,null,"",null,null,null,null,null,""]
[null,null,"",null,null,null,null,null,""]
[null,null,"",null,null,null,null,null,""]
[null,null,"",null,null,null,null,null,""]
[null,null,"",null,null,null,null,null,""]
[null,null,"",null,null,null,null,null,""]
[null,null,"",null,null,null,null,null,""]
[null,null,"",null,null,null,null,null,""]
[null,null,"",null,null,null,null,null,""]
[null,null,"",null,null,null,null,null,""]
[null,null,"",null,null,null,null,null,""]
[null,null,"",null,null,null,null,null,""]
[null,null,"",null,null,null,null,null,""]
[null,null,"",null,null,null,null,null,""]
[null,null,"",null,null,null,null,null,""]
[null,null,"",null,null,null,null,null,""]
[null,null,"",null,null,null,null,null,""]
[null,null,"",null,null,null,null,null,""]
[null,null,"",null,null,null,null,null,""]
[null,null,"",null,null,null,null,null,""]
[null,null,"",null,null,null,null,null,""]
[null,null,{"$f":"IF(B4675=\"\",\"\",IF(D4675<>\"\",DATEDIF(B4675,D4675,\"Y\"),DATEDIF(B4675,TODAY(),\"Y\")))","v":""},null,null,null,null,null,""]
[null,null,"",null,null,null,null,null,""]
[null,null,"",null,null,null,null,null,""]
[null,null,"",null,null,null,null,null,""]
[null,null,"",null,null,null,null,null,""]
[null,null,"",null,null,null,null,null,""]
[null,null,"",null,null,null,null,null,""]
[null,null,"",null,null,null,null,null,""]
[null,null,"",null,null,null,null,null,""]
[null,null,"",null,null,null,null,null,""]
[null,null,"",null,null,null,null,null,""]
[null,null,"",null,null,null,null,null,""]
[null,null,"",null,null,null,null,null,""]
[null,null,"",null,null,null,null,null,{"$f":"IF(F4688=\"\",\"\",IF(H4688<>\"\",H4688-F4688,IF(G4688<>\"\",G4688-F4688,\"\")))","v":""}]
[null,null,"",null,null,null,null,null,""]
[null,null,"",null,null,null,null,null,""]
[null,null,"",null,null,null,null,null,""]
[null,null,"",null,null,null,null,null,""]
[null,null,"",null,null,null,null,null,""]
[null,null,"",null,null,null,null,null,""]
[null,null,"",null,null,null,null,null,""]
[null,null,"",null,null,null,null,null,""]
[null,null,"",null,null,null,null,null,""]
[null,null,"",null,null,null,null,null,""]
[null,null,"",null,null,null,null,null,""]
[null,null,"",null,null,null,null,null,""]
[null,null,"",null,null,null,null,null,""]
[null,null,"",null,null,null,null,null,""]
[null,null,"",null,null,null,null,null,""]
[null,null,"",null,null,null,null,null,""]
[null,null,"",null,null,null,null,null,""]
[null,null,"",null,null,null,null,null,""]
[null,null,"",null,null,null,null,null,""]
[null,null,"",null,null,null,null,null,""]
[null,null,"",null,null,null,null,null,""]
[null,null,"",null,null,null,null,null,""]
[null,null,"",null,null,null,null,null,""]
[null,null,"",null,null,null,null,null,""]
[null,null,"",null,null,null,null,null,""]
[null,null,"",null,null,null,null,null,""]
[null,null,"",null,null,null,null,null,""]
[null,null,"",null,null,null,null,null,""]
[null,null,"",null,null,null,null,null,""]
[null,null,"",null,null,null,null,null,""]
[null,null,"",null,null,null,null,null,""]
[null,null,"",null,null,null,null,null,""]
[null,null,"",null,null,null,null,null,""]
[null,null,"",null,null,null,null,null,""]
[null,null,"",null,null,null,null,null,""]
[null,null,"",null,null,null,null,null,""]
[null,null,"",null,null,null,null,null,""]
[null,null,"",null,null,null,null,null,""]
[null,null,"",null,null,null,null,null,""]
[null,null,"",null,null,null,null,null,""]
[null,null,"",null,null,null,null,null,""]
[null,null,"",null,null,null,null,null,""]
[null,null,"",null,null,null,null,null,""]
[null,null,"",null,null,null,null,null,""]
[null,null,"",null,null,null,null,null,""]
[null,null,"",null,null,null,null,null,""]
[null,null,"",null,null,null,null,null,""]
[null,null,"",null,null,null,null,null,""]
[null,null,"",null,null,null,null,null,""]
[null,null,"",null,null,null,null,null,""]
[null,null,{"$f":"IF(B4739=\"\",\"\",IF(D4739<>\"\",DATEDIF(B4739,D4739,\"Y\"),DATEDIF(B4739,TODAY(),\"Y\")))","v":""},null,null,null,null,null,""]
[null,null,"",null,null,null,null,null,""]
[null,null,"",null,null,null,null,null,""]
[null,null,"",null,null,null,null,null,""]
[null,null,"",null,null,null,null,null,""]
[null,null,"",null,null,null,null,null,""]
[null,null,"",null,null,null,null,null,""]
[null,null,"",null,null,null,null,null,""]
[null,null,"",null,null,null,null,null,""]
[null,null,"",null,null,null,null,null,""]
[null,null,"",null,null,null,null,null,""]
[null,null,"",null,null,null,null,null,""]
[null,null,"",null,null,null,null,null,""]
[null,null,"",null,null,null,null,null,{"$f":"IF(F4752=\"\",\"\",IF(H4752<>\"\",H4752-F4752,IF(G4752<>\"\",G4752-F4752,\"\")))","v":""}]
[null,null,"",null,null,null,null,null,""]
[null,null,"",null,null,null,null,null,""]
[null,null,"",null,null,null,null,null,""]
[null,null,"",null,null,null,null,null,""]
[null,null,"",null,null,null,null,null,""]
[null,null,"",null,null,null,null,null,""]
[null,null,"",null,null,null,null,null,""]
[null,null,"",null,null,null,null,null,""]
[null,null,"",null,null,null,null,null,""]
[null,null,"",null,null,null,null,null,""]
[null,null,"",null,null,null,null,null,""]
[null,null,"",null,null,null,null,null,""]
[null,null,"",null,null,null,null,null,""]
[null,null,"",null,null,null,null,null,""]
[null,null,"",null,null,null,null,null,""]
[null,null,"",null,null,null,null,null,""]
[null,null,"",null,null,null,null,null,""]
[null,null,"",null,null,null,null,null,""]
[null,null,"",null,null,null,null,null,""]
[null,null,"",null,null,null,null,null,""]
[null,null,"",null,null,null,null,null,""]
[null,null,"",null,null,null,null,null,""]
[null,null,"",null,null,null,null,null,""]
[null,null,"",null,null,null,null,null,""]
[null,null,"",null,null,null,null,null,""]
[null,null,"",null,null,null,null,null,""]
[null,null,"",null,null,null,null,null,""]
[null,null,"",null,null,null,null,null,""]
[null,null,"",null,null,null,null,null,""]
[null,null,"",null,null,null,null,null,""]
[null,null,"",null,null,null,null,null,""]
[null,null,"",null,null,null,null,null,""]
[null,null,"",null,null,null,null,null,""]
[null,null,"",null,null,null,null,null,""]
[null,null,"",null,null,null,null,null,""]
[null,null,"",null,null,null,null,null,""]
[null,null,"",null,null,null,null,null,""]
[null,null,"",null,null,null,null,null,""]
[null,null,"",null,null,null,null,null,""]
[null,null,"",null,null,null,null,null,""]
[null,null,"",null,null,null,null,null,""]
[null,null,"",null,null,null,null,null,""]
[null,null,"",null,null,null,null,null,""]
[null,null,"",null,null,null,null,null,""]
[null,null,"",null,null,null,null,null,""]
[null,null,"",null,null,null,null,null,""]
[null,null,"",null,null,null,null,null,""]
[null,null,"",null,null,null,null,null,""]
[null,null,"",null,null,null,null,null,""]
[null,null,"",null,null,null,null,null,""]
[null,null,{"$f":"IF(B4803=\"\",\"\",IF(D4803<>\"\",DATEDIF(B4803,D4803,\"Y\"),DATEDIF(B4803,TODAY(),\"Y\")))","v":""},null,null,null,null,null,""]
[null,null,"",null,null,null,null,null,""]
[null,null,"",null,null,null,null,null,""]
[null,null,"",null,null,null,null,null,""]
[null,null,"",null,null,null,null,null,""]
[null,null,"",null,null,null,null,null,""]
[null,null,"",null,null,null,null,null,""]
[null,null,"",null,null,null,null,null,""]
[null,null,"",null,null,null,null,null,""]
[null,null,"",null,null,null,null,null,""]
[null,null,"",null,null,null,null,null,""]
[null,null,"",null,null,null,null,null,""]
[null,null,"",null,null,null,null,null,""]
[null,null,"",null,null,null,null,null,{"$f":"IF(F4816=\"\",\"\",IF(H4816<>\"\",H4816-F4816,IF(G4816<>\"\",G4816-F4816,\"\")))","v":""}]
[null,null,"",null,null,null,null,null,""]
[null,null,"",null,null,null,null,null,""]
[null,null,"",null,null,null,null,null,""]
[null,null,"",null,null,null,null,null,""]
[null,null,"",null,null,null,null,null,""]
[null,null,"",null,null,null,null,null,""]
[null,null,"",null,null,null,null,null,""]
[null,null,"",null,null,null,null,null,""]
[null,null,"",null,null,null,null,null,""]
[null,null,"",null,null,null,null,null,""]
[null,null,"",null,null,null,null,null,""]
[null,null,"",null,null,null,null,null,""]
[null,null,"",null,null,null,null,null,""]
[null,null,"",null,null,null,null,null,""]
[null,null,"",null,null,null,null,null,""]
[null,null,"",null,null,null,null,null,""]
[null,null,"",null,null,null,null,null,""]
[null,null,"",null,null,null,null,null,""]
[null,null,"",null,null,null,null,null,""]
[null,null,"",null,null,null,null,null,""]
[null,null,"",null,null,null,null,null,""]
[null,null,"",null,null,null,null,null,""]
[null,null,"",null,null,null,null,null,""]
[null,null,"",null,null,null,null,null,""]
[null,null,"",null,null,null,null,null,""]
[null,null,"",null,null,null,null,null,""]
[null,null,"",null,null,null,null,null,""]
[null,null,"",null,null,null,null,null,""]
[null,null,"",null,null,null,null,null,""]
[null,null,"",null,null,null,null,null,""]
[null,null,"",null,null,null,null,null,""]
[null,null,"",null,null,null,null,null,""]
[null,null,"",null,null,null,null,null,""]
[null,null,"",null,null,null,null,null,""]
[null,null,"",null,null,null,null,null,""]
[null,null,"",null,null,null,null,null,""]
[null,null,"",null,null,null,null,null,""]
[null,null,"",null,null,null,null,null,""]
[null,null,"",null,null,null,null,null,""]
[null,null,"",null,null,null,null,null,""]
[null,null,"",null,null,null,null,null,""]
[null,null,"",null,null,null,null,null,""]
[null,null,"",null,null,null,null,null,""]
[null,null,"",null,null,null,null,null,""]
[null,null,"",null,null,null,null,null,""]
[null,null,"",null,null,null,null,null,""]
[null,null,"",null,null,null,null,null,""]
[null,null,"",null,null,null,null,null,""]
[null,null,"",null,null,null,null,null,""]
[null,null,"",null,null,null,null,null,""]
[null,null,{"$f":"IF(B4867=\"\",\"\",IF(D4867<>\"\",DATEDIF(B4867,D4867,\"Y\"),DATEDIF(B4867,TODAY(),\"Y\")))","v":""},null,null,null,null,null,""]
[null,null,"",null,null,null,null,null,""]
[null,null,"",null,null,null,null,null,""]
[null,null,"",null,null,null,null,null,""]
[null,null,"",null,null,null,null,null,""]
[null,null,"",null,null,null,null,null,""]
[null,null,"",null,null,null,null,null,""]
[null,null,"",null,null,null,null,null,""]
[null,null,"",null,null,null,null,null,""]
[null,null,"",null,null,null,null,null,""]
[null,null,"",null,null,null,null,null,""]
[null,null,"",null,null,null,null,null,""]
[null,null,"",null,null,null,null,null,""]
[null,null,"",null,null,null,null,null,{"$f":"IF(F4880=\"\",\"\",IF(H4880<>\"\",H4880-F4880,IF(G4880<>\"\",G4880-F4880,\"\")))","v":""}]
[null,null,"",null,null,null,null,null,""]
[null,null,"",null,null,null,null,null,""]
[null,null,"",null,null,null,null,null,""]
[null,null,"",null,null,null,null,null,""]
[null,null,"",null,null,null,null,null,""]
[null,null,"",null,null,null,null,null,""]
[null,null,"",null,null,null,null,null,""]
[null,null,"",null,null,null,null,null,""]
[null,null,"",null,null,null,null,null,""]
[null,null,"",null,null,null,null,null,""]
[null,null,"",null,null,null,null,null,""]
[null,null,"",null,null,null,null,null,""]
[null,null,"",null,null,null,null,null,""]
[null,null,"",null,null,null,null,null,""]
[null,null,"",null,null,null,null,null,""]
[null,null,"",null,null,null,null,null,""]
[null,null,"",null,null,null,null,null,""]
[null,null,"",null,null,null,null,null,""]
[null,null,"",null,null,null,null,null,""]
[null,null,"",null,null,null,null,null,""]
[null,null,"",null,null,null,null,null,""]
[null,null,"",null,null,null,null,null,""]
[null,null,"",null,null,null,null,null,""]
[null,null,"",null,null,null,null,null,""]
[null,null,"",null,null,null,null,null,""]
[null,null,"",null,null,null,null,null,""]
[null,null,"",null,null,null,null,null,""]
[null,null,"",null,null,null,null,null,""]
[null,null,"",null,null,null,null,null,""]
[null,null,"",null,null,null,null,null,""]
[null,null,"",null,null,null,null,null,""]
[null,null,"",null,null,null,null,null,""]
[null,null,"",null,null,null,null,null,""]
[null,null,"",null,null,null,null,null,""]
[null,null,"",null,null,null,null,null,""]
[null,null,"",null,null,null,null,null,""]
[null,null,"",null,null,null,null,null,""]
[null,null,"",null,null,null,null,null,""]
[null,null,"",null,null,null,null,null,""]
[null,null,"",null,null,null,null,null,""]
[null,null,"",null,null,null,null,null,""]
[null,null,"",null,null,null,null,null,""]
[null,null,"",null,null,null,null,null,""]
[null,null,"",null,null,null,null,null,""]
[null,null,"",null,null,null,null,null,""]
[null,null,"",null,null,null,null,null,""]
[null,null,"",null,null,null,null,null,""]
[null,null,"",null,null,null,null,null,""]
[null,null,"",null,null,null,null,null,""]
[null,null,"",null,null,null,null,null,""]
[null,null,{"$f":"IF(B4931=\"\",\"\",IF(D4931<>\"\",DATEDIF(B4931,D4931,\"Y\"),DATEDIF(B4931,TODAY(),\"Y\")))","v":""},null,null,null,null,null,""]
[null,null,"",null,null,null,null,null,""]
[null,null,"",null,null,null,null,null,""]
[null,null,"",null,null,null,null,null,""]
[null,null,"",null,null,null,null,null,""]
[null,null,"",null,null,null,null,null,""]
[null,null,"",null,null,null,null,null,""]
[null,null,"",null,null,null,null,null,""]
[null,null,"",null,null,null,null,null,""]
[null,null,"",null,null,null,null,null,""]
[null,null,"",null,null,null,null,null,""]
[null,null,"",null,null,null,null,null,""]
[null,null,"",null,null,null,null,null,""]
[null,null,"",null,null,null,null,null,{"$f":"IF(F4944=\"\",\"\",IF(H4944<>\"\",H4944-F4944,IF(G4944<>\"\",G4944-F4944,\"\")))","v":""}]
[null,null,"",null,null,null,null,null,""]
[null,null,"",null,null,null,null,null,""]
[null,null,"",null,null,null,null,null,""]
[null,null,"",null,null,null,null,null,""]
[null,null,"",null,null,null,null,null,""]
[null,null,"",null,null,null,null,null,""]
[null,null,"",null,null,null,null,null,""]
[null,null,"",null,null,null,null,null,""]
[null,null,"",null,null,null,null,null,""]
[null,null,"",null,null,null,null,null,""]
[null,null,"",null,null,null,null,null,""]
[null,null,"",null,null,null,null,null,""]
[null,null,"",null,null,null,null,null,""]
[null,null,"",null,null,null,null,null,""]
[null,null,"",null,null,null,null,null,""]
[null,null,"",null,null,null,null,null,""]
[null,null,"",null,null,null,null,null,""]
[null,null,"",null,null,null,null,null,""]
[null,null,"",null,null,null,null,null,""]
[null,null,"",null,null,null,null,null,""]
[null,null,"",null,null,null,null,null,""]
[null,null,"",null,null,null,null,null,""]
[null,null,"",null,null,null,null,null,""]
[null,null,"",null,null,null,null,null,""]
[null,null,"",null,null,null,null,null,""]
[null,null,"",null,null,null,null,null,""]
[null,null,"",null,null,null,null,null,""]
[null,null,"",null,null,null,null,null,""]
[null,null,"",null,null,null,null,null,""]
[null,null,"",null,null,null,null,null,""]
[null,null,"",null,null,null,null,null,""]
[null,null,"",null,null,null,null,null,""]
[null,null,"",null,null,null,null,null,""]
[null,null,"",null,null,null,null,null,""]
[null,null,"",null,null,null,null,null,""]
[null,null,"",null,null,null,null,null,""]
[null,null,"",null,null,null,null,null,""]
[null,null,"",null,null,null,null,null,""]
[null,null,"",null,null,null,null,null,""]
[null,null,"",null,null,null,null,null,""]
[null,null,"",null,null,null,null,null,""]
[null,null,"",null,null,null,null,null,""]
[null,null,"",null,null,null,null,null,""]
[null,null,"",null,null,null,null,null,""]
[null,null,"",null,null,null,null,null,""]
[null,null,"",null,null,null,null,null,""]
[null,null,"",null,null,null,null,null,""]
[null,null,"",null,null,null,null,null,""]
[null,null,"",null,null,null,null,null,""]
[null,null,"",null,null,null,null,null,""]
[null,null,{"$f":"IF(B4995=\"\",\"\",IF(D4995<>\"\",DATEDIF(B4995,D4995,\"Y\"),DATEDIF(B4995,TODAY(),\"Y\")))","v":""},null,null,null,null,null,""]
[null,null,"",null,null,null,null,null,""]
[null,null,"",null,null,null,null,null,""]
[null,null,"",null,null,null,null,null,""]
[null,null,"",null,null,null,null,null,""]